Workbook

Sheet AER only (hidden)
B1: Data in these columns used for data validation and database purposes.
B2: Date last modified: | C2: 2017-01-16 | D2: added (Albury and Victora) for AGN
C3: 2016-10-17 | D3: updated TransGrid's correct legal name, corrected TasNetworks (T) to June financial year
C4: 2017-02-01 | D4: inserted Power and Water, added NRs (dms_FeederCat_1 and dms_FeederCat_2)
C5: 2017-03-03 | D5: inserted AEMO as a business | AB5: FOR ELECTRICITY BUSINESSES ONLY
AB6: Feeder Types | AF6: TasNetworks (D) | AG6: MAIFI flag | AH6: Feeder Names
AB7: CBD | AC7: Urban | AD7: Short rural | AE7: long rural | AF7: EXTRA
B8: dms_TradingName_List | C8: dms_TradingNameFull_List | D8: dms_ABN_List | E8: dms_JurisdictionList | F8: dms_Sector_List | G8: dms_Segment_List | H8: dms_FormControl_List | I8: dms_RPT_List | J8: dms_RPTMonth_List | K8: dms_CRCPlength_List | L8: dms_FRCPlength_List | M8: dms_663_List | N8: dms_DeterminationRef_List | O8: dms_Addr1_List | P8: dms_Addr2_List | Q8: dms_Suburb_List | R8: dms_State_List | S8: dms_PostCode_List | T8: dms_PAddr1_List | U8: dms_PAddr2_List | V8: dms_PSuburb_List | W8: dms_PState_List | X8: dms_PPostCode_List | Y8: dms_ContactName1_List | Z8: dms_ContactPh1_List | AA8: dms_ContactEmail_List | AB8: dms_CBD_flag | AC8: dms_Urban_flag | AD8: dms_ShortRural_flag | AE8: dms_LongRural_flag | AF8: dms_FeederType_5_flag | AG8: dms_MAIFI_flag_List | AH8: dms_FeederName_1 | AI8: dms_FeederName_2 | AJ8: dms_FeederName_3 | AK8: dms_FeederName_4 | AL8: dms_FeederName_5 | AM8: Column1
B9: ActewAGL Distribution | C9: ActewAGL Distribution | D9: 76670568688 | E9: ACT | F9: Electricity | G9: Distribution | H9: Revenue cap | I9: Financial | J9: June | K9: 5 | L9: 5 | M9: 5 | N9: 2014-19 Distribution Determination | O9: 40 Bunda Street | Q9: CANBERRA | R9: ACT | S9: 2600 | T9: GPO BOX 366 | V9: CANBERRA | W9: ACT | X9: 2601 | Y9: Robert Walker | Z9: 02 6248 3847 | AA9: robert.walker@actewagle.com.au | AB9: NO | AC9: YES | AD9: YES | AE9: NO | AF9: NO | AH9: CBD | AI9: Urban | AJ9: Short rural | AK9: Long rural | AM9: ActewAGL Distribution
B10: ActewAGL Distribution (Tx Assets) | C10: ActewAGL Distribution (Tx Assets) | D10: 76670568688 | E10: ACT | F10: Electricity | G10: Distribution | H10: Revenue cap | I10: Financial | J10: June | K10: 5 | L10: 5 | M10: 5 | N10: distribution determination | O10: 40 Bunda Street | Q10: CANBERRA | R10: ACT | S10: 2600 | T10: GPO BOX 366 | V10: CANBERRA | W10: ACT | X10: 2601 | Y10: Robert Walker | Z10: 02 6248 3847 | AA10: robert.walker@actewagle.com.au | AH10: CBD | AI10: Urban | AJ10: Short rural | AK10: Long rural | AM10: ActewAGL Distribution (Tx Assets)
B11: ActewAGL Gas | C11: ActewAGL Gas | D11: 76670568688 | E11: ACT | F11: Gas | G11: Distribution | H11: Weighted average price cap | I11: Financial | J11: June | K11: 5 | L11: 5 | M11: x | O11: 40 Bunda Street | Q11: CANBERRA | R11: ACT | S11: 2600 | T11: GPO BOX 366 | V11: CANBERRA | W11: ACT | X11: 2601 | Y11: Philip Deamer | Z11: 02 6248 3438 | AA11: GasAAReview@actewagl.com.au | AM11: ActewAGL Gas
B12: AEMO | C12: Australian Energy Market Operator Ltd | D12: 94072010327 | E12: Vic | F12: Electricity | G12: Transmission | H12: - | I12: Financial | J12: March | K12: 5 | L12: 5 | M12: x | N12: - | O12: Level 22 | P12: 530 Collins Street | Q12: MELBOURNE | R12: VIC | S12: 3000 | T12: GPO Box 2008 | V12: MELBOURNE | W12: VIC | X12: 3001 | AM12: AEMO
B13: AGN (Albury and Victoria) | C13: Australian Gas Networks Limited (reporting data for Albury and Victoria) | D13: 19078551685 | E13: Vic | F13: Gas | G13: Distribution | H13: Weighted average price cap | I13: Calendar | J13: December | K13: 5 | L13: 5 | M13: x | O13: Level 6 | P13: 400 King William Street | Q13: ADELAIDE | R13: SA | S13: 5000 | T13: PO Box 6468 | U13: Halifax Street | V13: ADELAIDE | W13: SA | X13: 5000 | Y13: Craig de Laine | Z13: 08 8418 1129 | AA13: craig.delaine@agn.com.au | AH13: CBD | AI13: Urban | AJ13: Short rural | AK13: Long rural | AM13: AGN (Albury)
B14: AGN (Albury) | C14: Australian Gas Networks Limited (reporting data for Albury) | D14: 19078551685 | E14: Vic | F14: Gas | G14: Distribution | H14: Weighted average price cap | I14: Calendar | J14: December | K14: 5 | L14: 5 | M14: x | O14: Level 6 | P14: 400 King William Street | Q14: ADELAIDE | R14: SA | S14: 5000 | T14: PO Box 6468 | U14: Halifax Street | V14: ADELAIDE | W14: SA | X14: 5000 | Y14: Craig de Laine | Z14: 08 8418 1129 | AA14: craig.delaine@agn.com.au | AH14: CBD | AI14: Urban | AJ14: Short rural | AK14: Long rural
B15: AGN (SA) | C15: Australian Gas Networks Limited (reporting data for SA) | D15: 19078551685 | E15: SA | F15: Gas | G15: Distribution | H15: Weighted average price cap | I15: Financial | J15: June | K15: 5 | L15: 5 | M15: 5 | N15: distribution determination | O15: Level 6 | P15: 400 King William Street | Q15: ADELAIDE | R15: SA | S15: 5000 | T15: PO Box 6468 | U15: Halifax Street | V15: ADELAIDE | W15: SA | X15: 5000 | Y15: Craig de Laine | Z15: 08 8418 1129 | AA15: craig.delaine@agn.com.au | AM15: AGN (SA)
B16: AGN (Victoria) | C16: Australian Gas Networks Limited (reporting data for Victoria) | D16: 19078551685 | E16: Vic | F16: Gas | G16: Distribution | H16: Weighted average price cap | I16: Calendar | J16: December | K16: 5 | L16: 5 | M16: x | O16: Level 6 | P16: 400 King William Street | Q16: ADELAIDE | R16: SA | S16: 5000 | T16: PO Box 6468 | U16: Halifax Street | V16: ADELAIDE | W16: SA | X16: 5000 | Y16: Craig de Laine | Z16: 08 8418 1129 | AA16: craig.delaine@agn.com.au | AM16: AGN (Victoria)
B17: Amadeus | C17: APT Pipelines (NT) Pty Ltd | D17: 39009737393 | E17: NT | F17: Gas | G17: Transmission | H17: Weighted average price cap | I17: Financial | J17: June | K17: 5 | L17: 5 | M17: x | N17: n/a | O17: Level 19, HSBC Building | P17: 580 George Street | Q17: SYDNEY | R17: NSW | S17: 2000 | T17: Level 19, HSBC Building | U17: 580 George Street | V17: SYDNEY | W17: NSW | X17: 2000 | Y17: Alexandra Curran | Z17: 02 9275 0020 | AA17: alexandra.curran@apa.com.au | AM17: Amadeus
B18: APA GasNet | C18: APA GasNet Australia (Operations) Pty Ltd | D18: 065083009 | E18: Vic | F18: Gas | G18: Transmission | H18: Weighted average price cap | I18: Calendar | J18: December | K18: 5 | L18: 5 | M18: x | O18: Level 19, HSBC Building | P18: 580 George Street | Q18: SYDNEY | R18: NSW | S18: 2000 | T18: PO Box R41 | V18: ROYAL EXCHANGE | W18: NSW | X18: 1225 | Y18: Alexandra Curran | Z18: 02 9275 0020 | AA18: alexandra.curran@apa.com.au | AM18: APA GasNet
B19: Ausgrid | C19: Ausgrid | D19: 78508211731 | E19: NSW | F19: Electricity | G19: Distribution | H19: Revenue cap | I19: Financial | J19: June | K19: 5 | L19: 5 | M19: 5 | N19: 2014-19 Distribution Determination | O19: 570 George St | Q19: SYDNEY | R19: NSW | S19: 2000 | T19: GPO Box 4009 | V19: SYDNEY | W19: NSW | X19: 2001 | Y19: John Thomson | Z19: (02) 9269 2312 | AA19: john.thomson@ausgrid.com.au | AB19: YES | AC19: YES | AD19: YES | AE19: YES | AF19: NO | AH19: CBD | AI19: Urban | AJ19: Short rural | AK19: Long rural | AM19: Ausgrid
B20: Ausgrid (Tx Assets) | C20: Ausgrid (Tx Assets) | D20: 67505337385 | E20: NSW | F20: Electricity | G20: Distribution | H20: Revenue cap | I20: Financial | J20: June | K20: 5 | L20: 5 | M20: 5 | N20: distribution determination | O20: 570 George St | Q20: SYDNEY | R20: NSW | S20: 2000 | T20: GPO Box 4009 | V20: SYDNEY | W20: NSW | X20: 2001 | Y20: John Thomson | Z20: (02) 9269 2312 | AA20: john.thomson@ausgrid.com.au | AH20: CBD | AI20: Urban | AJ20: Short rural | AK20: Long rural | AM20: Ausgrid (Tx Assets)
B21: AusNet (D) | C21: AusNet Electricity Services Pty Ltd | D21: 91064651118 | E21: Vic | F21: Electricity | G21: Distribution | H21: Revenue cap | I21: Calendar | J21: December | K21: 5 | L21: 5 | M21: 2 | N21: 2016-20 Distribution Determination | O21: Level 32 | P21: 2 Southbank Boulevard | Q21: SOUTHBANK | R21: Vic | S21: 3006 | T21: Locked Bag 14051 | V21: MELBOURNE CITY MAIL CENTRE | W21: VIC | X21: 8001 | AC21: YES | AD21: YES | AE21: YES | AF21: NO | AH21: CBD | AI21: Urban | AJ21: Short rural | AK21: Long rural | AM21: AusNet (D)
B22: AusNet (Gas) | C22: AusNet Gas Services | D22: 086015036 | E22: Vic | F22: Gas | G22: Distribution | H22: Weighted average price cap | I22: Calendar | J22: December | K22: 5 | L22: 5 | M22: X | O22: Level 19, HSBC Building | P22: 580 George Street | Q22: SYDNEY | R22: NSW | S22: 2000 | T22: PO Box R41 | V22: ROYAL EXCHANGE | W22: NSW | X22: 1225 | Y22: Alexandra Curran | Z22: 02 9275 0020 | AA22: alexandra.curran@apa.com.au | AM22: AusNet (Gas)
B23: AusNet (T) | C23: Ausnet Services (Transmission) Ltd | D23: 48116124362 | E23: Vic | F23: Electricity | G23: Transmission | H23: Revenue cap | I23: Financial | J23: March | K23: 5 | L23: 5 | M23: 2 | N23: transmission determination | O23: Level 32 | P23: 2 Southbank Boulevard | Q23: SOUTHBANK | R23: Vic | S23: 3006 | T23: Locked Bag 14051 | V23: MELBOURNE CITY MAIL CENTRE | W23: Vic | X23: 8001 | Y23: Clare Thompson | Z23: 03 9695 6670 | AA23: clare.e.thompson@ausnetservices.com.au | AH23: CBD | AI23: Urban | AJ23: Short rural | AK23: Long rural | AM23: AusNet (T)
B24: Australian Distribution Co. | C24: Australian Distribution Co. | D24: 11222333444 | E24: - | F24: Electricity | G24: Distribution | H24: Revenue cap | I24: Financial | J24: June | K24: 5 | L24: 5 | M24: 2 | N24: distribution determination | O24: 123 Straight Street | Q24: SYDNEY | R24: NSW | S24: 2000 | T24: PO Box 123 | V24: SYDNEY | W24: NSW | X24: 2000 | Y24: Bob Smith | Z24: 02 1234 5678 | AA24: bob@auselec.net.au | AH24: CBD | AI24: Urban | AJ24: Short rural | AK24: Long rural | AM24: Australian Distribution Co.
B25: Australian Distribution Co. (Vic) | C25: Australian Distribution Co. (Victoria) | D25: 11222333444 | E25: Vic | F25: Electricity | G25: Distribution | H25: Revenue cap | I25: Calendar | J25: December | K25: 5 | L25: 5 | M25: 2 | N25: distribution determination | O25: 123 Straight Street | Q25: MELBOURNE | R25: Vic | S25: 3000 | T25: PO Box 123 | V25: MELBOURNE | W25: VIC | X25: 3000 | Y25: Bob Smith | Z25: 02 1234 5678 | AA25: bob@auselec.net.au | AH25: CBD | AI25: Urban | AJ25: Short rural | AK25: Long rural | AM25: Australian Distribution Co. (Vic)
B26: Australian Transmission Co. | C26: Australian Transmission Co. | D26: 11222333444 | E26: - | F26: Electricity | G26: Transmission | H26: Revenue cap | I26: Financial | J26: June | K26: 5 | L26: 5 | M26: 5 | N26: transmission determination | O26: 123 Straight Street | Q26: SYDNEY | R26: NSW | S26: 2000 | T26: PO Box 123 | V26: SYDNEY | W26: NSW | X26: 2000 | Y26: Bob Smith | Z26: 02 1234 5678 | AA26: bob@auselec.net.au | AH26: CBD | AI26: Urban | AJ26: Short rural | AK26: Long rural | AM26: Australian Transmission Co.
B27: Central Ranges Pipeline (D) | C27: Central Ranges Pipeline Pty Ltd | D27: 108218355 | E27: NSW | F27: Gas | G27: Distribution | H27: Weighted average price cap | I27: Financial | J27: June | K27: 15 | L27: 5 | M27: 5 | N27: distribution determination | O27: Level 19 | P27: 580 George Street | Q27: SYDNEY | R27: NSW | S27: 2000 | T27: PO Box R41 | V27: ROYAL EXCHANGE | W27: NSW | X27: 1225 | Y27: Scott Young | Z27: 02 9275 0031 | AA27: scott.young@apa.com.au
B28: Central Ranges Pipeline (T) | C28: Central Ranges Pipeline Pty Ltd | D28: 108218355 | E28: NSW | F28: Gas | G28: Distribution | H28: Weighted average price cap | I28: Financial | J28: June | K28: 14 | L28: 5 | M28: 5 | N28: transmission determination | O28: Level 19 | P28: 580 George Street | Q28: SYDNEY | R28: NSW | S28: 2000 | T28: PO Box R41 | V28: ROYAL EXCHANGE | W28: NSW | X28: 1225 | Y28: Scott Young | Z28: 02 9275 0031 | AA28: scott.young@apa.com.au
B29: CitiPower | C29: CitiPower | D29: 76064651056 | E29: Vic | F29: Electricity | G29: Distribution | H29: Revenue cap | I29: Calendar | J29: December | K29: 5 | L29: 5 | M29: 2 | N29: 2016-20 Distribution Determination | O29: 40 Market Street | Q29: MELBOURNE | R29: Vic | S29: 3000 | T29: Locked Bag 14090 | V29: MELBOURNE | W29: VIC | X29: 8001 | Y29: Hannah Williams | Z29: 03 9683 4088 | AA29: hwilliams@powercor.com.au | AB29: YES | AC29: YES | AD29: NO | AE29: NO | AF29: NO | AH29: CBD | AI29: Urban | AJ29: Short rural | AK29: Long rural | AM29: CitiPower
B30: Directlink | C30: Directlink | D30: 16779340889 | E30: Qld | F30: Electricity | G30: Transmission | H30: Revenue cap | I30: Financial | J30: June | K30: 9 | L30: 5 | M30: 5 | N30: transmission determination | O30: Level 19, HSBC Building | P30: 580 George Street | Q30: SYDNEY | R30: NSW | S30: 2000 | T30: PO Box R41 | V30: ROYAL EXCHANGE | W30: NSW | X30: 1225 | Y30: Scott Young | Z30: 02 9275 0031 | AA30: scott.young@apa.com.au | AH30: CBD | AI30: Urban | AJ30: Short rural | AK30: Long rural | AM30: Directlink
B31: ElectraNet | C31: ElectraNet | D31: 41094482416 | E31: SA | F31: Electricity | G31: Transmission | H31: Revenue cap | I31: Financial | J31: June | K31: 5 | L31: 5 | M31: 5 | N31: transmission determination | O31: 52-55 East Terrace | P31: Rymill Park | Q31: ADELAIDE | R31: SA | S31: 5000 | T31: PO Box 7096 | U31: Hutt Street Post Office | V31: ADELAIDE | W31: SA | X31: 5000 | Y31: Bill Jackson | Z31: 08 8404 7969 | AA31: jackson.bill@electranet.com.au | AH31: CBD | AI31: Urban | AJ31: Short rural | AK31: Long rural | AM31: ElectraNet
B32: Endeavour Energy | C32: Endeavour Energy | D32: 11247365823 | E32: NSW | F32: Electricity | G32: Distribution | H32: Revenue cap | I32: Financial | J32: June | K32: 5 | L32: 5 | M32: 5 | N32: 2014-19 Distribution Determination | O32: 51 Huntingwood Drive | Q32: HUNTINGWOOD | R32: NSW | S32: 2148 | T32: PO Box 811 | V32: SEVEN HILLS | W32: NSW | X32: 1730 | Y32: Jon Hocking | Z32: 02 9853 4386 / 0407 348 156 | AA32: Jon.Hocking@Endeavourenergy.com.au | AB32: NO | AC32: YES | AD32: YES | AE32: YES | AF32: NO | AH32: CBD | AI32: Urban | AJ32: Short rural | AK32: Long rural | AM32: Endeavour Energy
B33: Energex | C33: Energex | D33: 40078849055 | E33: Qld | F33: Electricity | G33: Distribution | H33: Revenue cap | I33: Financial | J33: June | K33: 5 | L33: 5 | M33: 5 | N33: 2015-20 Distribution Determination | O33: 26 Reddacliff Street | Q33: NEWSTEAD | R33: Qld | S33: 4006 | T33: 26 Reddacliff Street | V33: NEWSTEAD | W33: QLD | X33: 4006 | Y33: Nicola Roscoe | Z33: 07 3664 5891 | AA33: nicolaroscoe@energex.com.au | AB33: YES | AC33: YES | AD33: YES | AE33: NO | AF33: NO | AH33: CBD | AI33: Urban | AJ33: Short rural | AK33: Long rural | AM33: Energex
B34: Ergon Energy | C34: Ergon Energy | D34: 50087646062 | E34: Qld | F34: Electricity | G34: Distribution | H34: Revenue cap | I34: Financial | J34: June | K34: 5 | L34: 5 | M34: 5 | N34: 2015-20 Distribution Determination | O34: 22 Walker Street | Q34: TOWNSVILLE | R34: Qld | S34: 4810 | T34: Po Box 264 | V34: FORTITUDE VALLEY | W34: QLD | X34: 4006 | Y34: Jenny Doyle, Group Manager Regulatory Affairs | Z34: (07) 3851 6416 | AA34: jenny.doyle@ergon.com.au | AB34: NO | AC34: YES | AD34: YES | AE34: YES | AF34: NO | AH34: CBD | AI34: Urban | AJ34: Short rural | AK34: Long rural | AM34: Ergon Energy
B35: Essential Energy | C35: Essential Energy | D35: 37428185226 | E35: NSW | F35: Electricity | G35: Distribution | H35: Revenue cap | I35: Financial | J35: June | K35: 5 | L35: 5 | M35: 5 | N35: 2014-19 Distribution Determination | O35: 8 Buller Street | Q35: PORT MACQUARIE | R35: NSW | S35: 2444 | T35: PO Box 5730 | V35: PORT MACQUARIE | W35: NSW | X35: 2444 | Y35: Catherine Waddell | Z35: 02 6338 3553 | AA35: catherine.waddell@essentialenergy.com.au | AD35: YES | AE35: YES | AF35: NO | AH35: CBD | AI35: Urban | AJ35: Short rural | AK35: Long rural | AM35: Essential Energy
B36: Jemena Electricity | C36: Jemena Electricity | D36: 82064651083 | E36: Vic | F36: Electricity | G36: Distribution | H36: Revenue cap | I36: Calendar | J36: December | K36: 5 | L36: 5 | M36: 2 | N36: 2016-20 Distribution Determination | O36: Level 16 | P36: 567 Collins Street | Q36: MELBOURNE | R36: VIC | S36: 3000 | T36: PO Box 16182 | V36: MELBOURNE | W36: VIC | X36: 8001 | Y36: Matthew Serpell | Z36: 03 9173 8231 | AA36: matthew.serpell@jemena.com.au | AD36: YES | AE36: NO | AF36: NO | AH36: CBD | AI36: Urban | AJ36: Short rural | AK36: Long rural | AM36: Jemena Electricity
B37: JGN | C37: Jemena Gas Networks (NSW) Ltd | D37: 003 004 322 | E37: NSW | F37: Gas | G37: Distribution | H37: Weighted average price cap | I37: Financial | J37: June | K37: 5 | L37: 5 | AM37: JGN
B38: Multinet Gas | C38: Multinet Gas (DB No.1) Pty Ltd (ACN 086 026 986), Multinet Gas (DB No.2) Pty Ltd (ACN 086 230 122) | D38: 086026986 | E38: Vic | F38: Gas | G38: Distribution | H38: Weighted average price cap | I38: Calendar | J38: December | K38: 5 | L38: 5 | M38: x | O38: 43-45 Centreway | Q38: MT WAVERLEY | R38: Vic | S38: 3149 | Y38: Andrew Schille | Z38: 03 8846 9860 | AA38: andrew.schille@ue.com.au | AM38: Multinet Gas
B39: Murraylink | C39: Murraylink | D39: 79181207909 | E39: SA | F39: Electricity | G39: Transmission | H39: Revenue cap | I39: Financial | J39: June | K39: 5 | L39: 5 | M39: 5 | N39: transmission determination | O39: Level 19 | P39: 580 George Street | Q39: SYDNEY | R39: NSW | S39: 2000 | T39: PO Box R41 | V39: ROYAL EXCHANGE | W39: NSW | X39: 1225 | Y39: Scott Young | Z39: 02 9275 0031 | AA39: scott.young@apa.com.au | AH39: CBD | AI39: Urban | AJ39: Short rural | AK39: Long rural | AM39: Murraylink
B40: Power and Water | C40: Power and Water Corporation | D40: 15947352360 | E40: NT | F40: Electricity | G40: Distribution | H40: Revenue cap | I40: Financial | J40: June | K40: 5 | L40: 5 | M40: x | N40: distribution determination | O40: GPO Box 1921 | Q40: DARWIN | R40: NT | S40: 0801 | T40: GPO Box 1921 | V40: DARWIN | W40: NT | X40: 0801 | Y40: Jodi Triggs | Z40: 08 8985 8456 | AA40: jodi.triggs@powerwater.com.au | AB40: YES | AC40: YES | AD40: YES | AE40: YES | AF40: NO
B41: Powercor Australia | C41: Powercor Australia | D41: 89064651109 | E41: Vic | F41: Electricity | G41: Distribution | H41: Revenue cap | I41: Calendar | J41: December | K41: 5 | L41: 5 | M41: 2 | N41: 2016-20 Distribution Determination | O41: 40 Market Street | Q41: MELBOURNE | R41: Vic | S41: 3000 | T41: Locked bag 14090 | V41: MELBOURNE | W41: VIC | X41: 8001 | Y41: Hannah Williams | Z41: 03 9683 4088 | AA41: hwilliams@powercor.com.au | AD41: YES | AE41: YES | AF41: NO | AH41: CBD | AI41: Urban | AJ41: Short rural | AK41: Long rural | AM41: Powercor Australia
B42: Powerlink | C42: Queensland Electricity Transmission Corporation Limited trading as Powerlink Queensland | D42: 82078849233 | E42: Qld | F42: Electricity | G42: Transmission | H42: Revenue cap | I42: Financial | J42: June | K42: 5 | L42: 5 | M42: 5 | N42: transmission determination | O42: 33 Harold St | Q42: VIRGINIA | R42: Qld | S42: 4014 | T42: PO Box 1193 | V42: VIRGINIA | W42: QLD | X42: 4014 | Y42: Jennifer Harris | Z42: 07 3860 2667 | AA42: jharris@powerlink.com.au | AH42: CBD | AI42: Urban | AJ42: Short rural | AK42: Long rural | AM42: Powerlink
B43: Roma to Brisbane Pipeline | C43: APT Petroleum Pipelines Limited t/a Roma to Brisbane Pipeline | D43: 009 737 393 | E43: Qld | F43: Gas | G43: Transmission | H43: Weighted average price cap | I43: Financial | J43: June | K43: 5 | L43: 5 | M43: x | N43: n/a | O43: 580 George Street | Q43: SYDNEY | R43: NSW | S43: 2000 | T43: PO Box R41 | V43: ROYAL EXCHANGE | W43: NSW | X43: 1225 | Y43: Mark Allen | Z43: 02 9275 0010 | AA43: mark.allen@apa.com.au | AH43: CBD | AI43: Urban | AJ43: Short rural | AK43: Long rural | AM43: Roma to Brisbane Pipeline
B44: SA Power Networks | C44: SA Power Networks | D44: 13332330749 | E44: SA | F44: Electricity | G44: Distribution | H44: Revenue cap | I44: Financial | J44: June | K44: 5 | L44: 5 | M44: 5 | N44: 2015-20 Distribution Determination | O44: 1 Anzac Highway | Q44: KESWICK | R44: SA | S44: 5035 | T44: GPO Box 77 | V44: ADELAIDE | W44: SA | X44: 5000 | Y44: Richard Sibly | Z44: 08 8404 5613 | AA44: richard.sibly@sapowernetworks.com.au | AD44: YES | AE44: YES | AF44: NO | AH44: CBD | AI44: Urban | AJ44: Short rural | AK44: Long rural | AM44: SA Power Networks
B45: TasNetworks (D) | C45: TasNetworks (D) | D45: 24167357299 | E45: Tas | F45: Electricity | G45: Distribution | H45: Revenue cap | I45: Financial | J45: June | K45: 5 | L45: 5 | M45: 5 | N45: distribution determination | O45: 1-7 Maria Street | Q45: LENAH VALLEY | R45: Tas | S45: 7008 | T45: PO Box 606 | V45: MOONAH | W45: Tas | X45: 7009 | Y45: John Sayers | Z45: 03 6271 6469 | AA45: john.sayers@tasnetworks.com.au | AD45: YES | AE45: YES | AF45: YES | AH45: Critical Infrastructure | AI45: High density commercial | AJ45: Urban | AK45: High density rural | AL45: Low density rural | AM45: TasNetworks (D)
B46: TasNetworks (T) | C46: TasNetworks (T) | D46: 24167357299 | E46: Tas | F46: Electricity | G46: Transmission | H46: Revenue cap | I46: Financial | J46: June | K46: 5 | L46: 5 | M46: 5 | N46: transmission determination | O46: 1-7 Maria Street | Q46: LENAH VALLEY | R46: Tas | S46: 7008 | T46: PO Box 606 | V46: MOONAH | W46: Tas | X46: 7009 | Y46: John Sayers | Z46: 03 6271 6469 | AA46: john.sayers@tasnetworks.com.au | AH46: CBD | AI46: Urban | AJ46: Short rural | AK46: Long rural | AM46: TasNetworks (T)
B47: TransGrid | C47: NSW Electricity Networks Operations Pty Ltd trading as TransGrid | D47: 609169959 | E47: NSW | F47: Electricity | G47: Transmission | H47: Revenue cap | I47: Financial | J47: June | K47: 5 | L47: 4 | M47: 5 | N47: transmission determination | O47: 180 Thomas Street | Q47: SYDNEY | R47: NSW | S47: 2000 | T47: PO Box A1000 | V47: SYDNEY SOUTH | W47: NSW | X47: 1235 | Y47: Garrie Chubb | Z47: 0408 210 221 | AA47: garrie.chubb@transgrid.com.au | AH47: CBD | AI47: Urban | AJ47: Short rural | AK47: Long rural | AM47: TransGrid
B48: United Energy | C48: United Energy | D48: 70064651029 | E48: Vic | F48: Electricity | G48: Distribution | H48: Revenue cap | I48: Calendar | J48: December | K48: 5 | L48: 5 | M48: 2 | N48: 2016-20 Distribution Determination | O48: Level 3 | P48: 6 Nexus Court | Q48: MULGRAVE | R48: Vic | S48: 3149 | T48: PO Box 449 | V48: MOUNT WAVERLEY | W48: VIC | X48: 3170 | Y48: Mathew Abraham | Z48: 03 8846 9758 | AA48: mathew.abraham@ue.com.au | AD48: YES | AE48: NO | AF48: NO | AH48: CBD | AI48: Urban | AJ48: Short rural | AK48: Long rural | AM48: United Energy
B49: Western Power (D) | C49: Western Power (D) | D49: 18540492861 | E49: WA | F49: Electricity | G49: Distribution | H49: Revenue cap | I49: Financial | J49: June | K49: 12 | L49: 4 | M49: x | N49: distribution determination | O49: 363 Wellington Street | Q49: PERTH | R49: WA | S49: 6000 | T49: GPO Box L921 | V49: PERTH | W49: WA | X49: 6842 | Y49: Judy Hunter | Z49: 08 9326 6239 | AA49: judy.hunter@westernpower.com.au | AD49: YES | AE49: YES | AF49: NO | AG49: NO | AH49: CBD | AI49: Urban | AJ49: Short rural | AK49: Long rural | AM49: Western Power (D)
B50: Western Power (T) | C50: Western Power (T) | D50: 18540492861 | E50: WA | F50: Electricity | G50: Transmission | H50: Revenue cap | I50: Financial | J50: June | K50: 12 | L50: 4 | M50: x | N50: transmission determination | O50: 363 Wellington Street | Q50: PERTH | R50: WA | S50: 6000 | T50: GPO Box L921 | V50: PERTH | W50: WA | X50: 6842 | Y50: Judy Hunter | Z50: 08 9326 6239 | AA50: judy.hunter@westernpower.com.au | AD50: YES | AE50: YES | AF50: NO | AH50: CBD | AI50: Urban | AJ50: Short rural | AK50: Long rural | AM50: Western Power (T)
Y53: For EB & Reset RINs only | AD53: For AARs only
B54: The Reg Year Ending (dms_RYE) must be set to the last year of the regulatory period. For forecast data is is usually (FRCP_y5) for actual it is a single year (CRY). For historical actual data the RYE will need to be set manually in the business details sheet by setting the dms_Multiyear_flag to 1 and putting the correct value in 'dms_Specified_FinalYear. See cells C67:C68 | G54: =IF(dms_RPT="financial",VALUE(LEFT(CRCP_y1,4)-1)&"-"&TEXT(VALUE(RIGHT(CRCP_y1,2)-1),"00"),VALUE(LEFT(CRCP_y1,4)-1)) -> 2011 | N54: Drop down selector box for CA & Reset RINs. | O54: For CA & Reset RINs only | Y54: for DNSP only | AD54: For DNSPs only | AJ54: Reason for interruption | AK54: dms_Reason_Interruption_Detailed | AL54: dms_Reason_Interruption | AM54: dms_STPIS_Exclusion_List
B55: dms_Model_List | C55: DELETE NR 'CRY' IF NOT AN ANNUAL RIN (EB, CA , ARR) | E55: dms_RYE_Formula_Result | N55: dms_0203_ProjectType | O55: dms_020303_01_UOM | P55: dms_020501_01_UOM | Q55: dms_020501_02_UOM | R55: dms_020501_03_UOM | S55: dms_020501_04_UOM | T55: dms_020603_01_UOM | U55: dms_020701_01_UOM | V55: dms_020701_02_UOM | W55: dms_040102_01_UOM | X55: dms_040102_04_UOM | Y55: dms_030601_01_UOM | Z55: dms_030601_02_UOM | AA55: dms_030701_01_UOM | AB55: dms_030702_01_UOM | AC55: dms_030703_01_UOM | AD55: dms_030605_UOM | AE55: dms_03060703_UOM | AJ55: Animal | AK55: Animal impact | AL55: Animal | AM55: Weather
B56: ARR | C56: ANNUAL REPORTING STATEMENT | E56: =LEFT(dms_SingleYear_FinalYear_Result,2)&RIGHT(dms_SingleYear_FinalYear_Result,2) -> 2017 | F56: =LEFT(dms_SingleYear_FinalYear_Result,2)&RIGHT(dms_SingleYear_FinalYear_Result,2) | H56: Formula errors are OK | N56: New line on new route - single circuit | O56: Circuit line length in km | P56: 0's | Q56: 0's | R56: 0's | S56: 0's | T56: 0's | U56: km | V56: km | W56: 0's | X56: days | Y56: minutes/customer | Z56: minutes/customer | AA56: Customer / km | AB56: % | AC56: km | AD56: number | AE56: number | AK56: Animal nesting/burrowing, etc and other | AL56: Asset failure | AM56: Equipment failure
B57: CA | C57: CATEGORY ANALYSIS | E57: =LEFT(dms_SingleYear_FinalYear_Result,2)&RIGHT(dms_SingleYear_FinalYear_Result,2) -> 2017 | F57: =LEFT(dms_SingleYear_FinalYear_Result,2)&RIGHT(dms_SingleYear_FinalYear_Result,2) | H57: Formula errors are OK | N57: New line on new route - dual circuit | O57: Circuit line length in km | P57: 0's | Q57: 0's | R57: 0's | S57: 0's | T57: 0's | U57: 0's | V57: 0's | W57: 0's | X57: 0's | Y57: minutes/customer | Z57: minutes/customer | AA57: MWh/customer | AB57: Number of spans | AD57: number | AE57: number | AK57: Other | AL57: Other | AM57: Operational error
B58: CPI | C58: CPI | N58: New line on new route - other | O58: Circuit line length in km | P58: MVA added | Q58: MVA added | R58: MVA added | S58: MVA added | T58: 0's | U58: km | V58: km | W58: 0's | X58: $0s | Y58: interruptions/customer | Z58: interruptions/customer | AA58: kVA / customer | AB58: Number of spans | AD58: number | AE58: number | AJ58: Asset failure | AK58: LV | AL58: Overloads | AM58: Vegetation
B59: EB | C59: ECONOMIC BENCHMARKING | E59: =LEFT(dms_SingleYear_FinalYear_Result,2)&RIGHT(dms_SingleYear_FinalYear_Result,2) -> 2017 | F59: =LEFT(dms_SingleYear_FinalYear_Result,2)&RIGHT(dms_SingleYear_FinalYear_Result,2) | H59: Formula errors are OK | N59: Line rebuild over existing route - single circuit | O59: Circuit line length in km | P59: 0's | Q59: 0's | R59: 0's | S59: 0's | T59: 0's | U59: km | V59: km | W59: $0s | X59: 0's | Y59: interruptions/customer | Z59: interruptions/customer | AB59: Number of spans | AD59: number | AE59: number | AK59: Distribution substation | AL59: Planned | AM59: Animals
B60: PTRM | C60: POST TAX REVENUE MODEL | E60: =LEFT(dms_MultiYear_FinalYear_Result,2)&RIGHT(dms_MultiYear_FinalYear_Result,2) -> 2021 | F60: =LEFT(dms_MultiYear_FinalYear_Result,2)&RIGHT(dms_MultiYear_FinalYear_Result,2) | N60: Line rebuild over existing route - dual circuit | O60: Number | P60: total spend $0s | Q60: total spend $0s | R60: total spend $0s | S60: total spend $0s | T60: (per cent) | U60: 0's | V60: 0's | AB60: Number of spans | AD60: number | AE60: (per cent) | AK60: HV | AL60: Network business | AM60: Third party impacts
B61: Reset | C61: REGULATORY REPORTING STATEMENT | E61: =LEFT(dms_MultiYear_FinalYear_Result,2)&RIGHT(dms_MultiYear_FinalYear_Result,2) -> 2021 | F61: =LEFT(dms_MultiYear_FinalYear_Result,2)&RIGHT(dms_MultiYear_FinalYear_Result,2) | H61: Formula errors are OK | N61: Reconductor - Single circuit | O61: Number | P61: net circuit km added | Q61: net circuit km added | R61: net circuit km added | S61: net circuit km added | U61: years | V61: years | AB61: Years | AD61: number | AK61: Zone substation | AL61: Third party | AM61: Transmission failure
B62: RFM | C62: ROLL FORWARD MODEL | E62: =LEFT(dms_CRCP_FinalYear_Result,2)&RIGHT(dms_CRCP_FinalYear_Result,2) -> 2017 | F62: =LEFT(dms_CRCP_FinalYear_Result,2)&RIGHT(dms_CRCP_FinalYear_Result,2) | N62: Reconductor - Dual circuit | O62: Number | P62: total spend $0s | Q62: total spend $0s | R62: total spend $0s | S62: total spend $0s | AB62: Years | AD62: number | AK62: Subtransmission | AL62: Unknown | AM62: Load shedding
B63: WACC | C63: WEIGHTED AVERAGE COST OF CAPITAL | E63: =LEFT(dms_MultiYear_FinalYear_Result,2)&RIGHT(dms_MultiYear_FinalYear_Result,2) -> 2021 | F63: =LEFT(dms_MultiYear_FinalYear_Result,2)&RIGHT(dms_MultiYear_FinalYear_Result,2) | N63: Other | P63: net circuit km added | Q63: net circuit km added | R63: net circuit km added | S63: net circuit km added | AB63: Trees | AD63: number | AJ63: Other | AK63: insert description of 'other' | AL63: Vegetation | AM63: Inter-distributor connection failure
P64: total spend $0s | Q64: total spend $0s | R64: total spend $0s | S64: total spend $0s | AB64: Trees | AD64: number | AJ64: Overloads | AK64: - | AL64: Weather | AM64: Other
B65: dms_DataQuality_List | P65: 0's | R65: $0s | AB65: Defects | AD65: number | AJ65: Planned | AK65: - | AL65: 2 - STPIS Exclusion (3.3)(a)
B66: Actual | P66: 0's | AB66: Defects | AD66: number | AJ66: Network business | AK66: Network error | AL66: 3 - STPIS Exclusion (3.3)(a)
B67: Estimate | P67: 0's | AB67: Spans | AD67: number | AK67: Switching and protection error | AL67: 4 - STPIS Exclusion (3.3)(a)
B68: Consolidated | P68: $0s | AB68: km | AD68: (per cent) | AJ68: Third party | AK68: Fire | AL68: 5 - STPIS Exclusion (3.3)(a)
B69: Recast | AB69: Spans | AD69: (per cent) | AK69: Other | AL69: 6 - STPIS Exclusion (3.3)(a)
B70: Public | AK70: Dig-in | AL70: 7 - STPIS Exclusion (3.3)(a)
AK71: Unauthorised access
B72: For all files either AER or business needs to be able to specify the type of submission | C72: For PTRM & RFM templates we must provide a choice in case they change their form of control - otherwise it is drawn from the business specific lookup table above. | O72: For PTRM files - this field set the text for the named range "DMS_Xfactor" which in all cases is simply the text "x factors" - this saves putting in each old gas PTRM file | Y72: for TNSP only | AK72: Vehicle impact
B73: dms_SourceList | C73: dms_FormControl_Choices | O73: DMS_Xfactor | Y73: dms_030601_01_UOM | AA73: dms_030701_01_UOM | AB73: dms_030702_01_UOM | AJ73: Unknown | AK73: Unknown
B74: After appeal | C74: Revenue cap | O74: x factors | Y74: % | AA74: Number of spans | AB74: km | AJ74: Vegetation | AK74: Blow-in/Fall-in - NSP responsibility
B75: Draft decision | C75: Revenue yield | Y75: number | AA75: Years | AB75: % | AK75: Grow-in - NSP responsibility
B76: Final decision | C76: Weighted average price cap | Y76: number | AA76: Trees | AB76: km | AK76: Blow-in/Fall-in - Other responsible party
B77: PTRM update 1 | Y77: % | AA77: Defects | AB77: number | AK77: Grow-in - Other responsible party
B78: PTRM update 2 | Y78: number | AA78: Number of spans | AJ78: Weather
B79: PTRM update 3 | Y79: number | AA79: km | AJ79: 2 - STPIS Exclusion (3.3)(a)
B80: PTRM update 4 | Y80: % | AA80: km | AJ80: 3 - STPIS Exclusion (3.3)(a)
B81: PTRM update 5 | Y81: number | AA81: Number of spans | AJ81: 4 - STPIS Exclusion (3.3)(a)
B82: PTRM update 6 | Y82: number | AJ82: 5 - STPIS Exclusion (3.3)(a)
B83: PTRM update 7 | Y83: % | AJ83: 6 - STPIS Exclusion (3.3)(a)
B84: Regulatory proposal | Y84: number | AJ84: 7 - STPIS Exclusion (3.3)(a)
B85: Reporting | Y85: %
B86: Revised regulatory proposal | Y86: number
Y87: %
Y88: number
B92: These are indeces and lookup values for various dates. All step from the value placed in FRCP_y1 on the business and other details worksheet | L92: These date tables are currently used in the Recast templates to provide column headings and conditional formatting
B93: dms_FRCPlength_Num_List | C93: dms_FinalYear_List | D93: dms_CRCPlength_Num_List | E93: dms_CFinalYear_List | F93: dms_FRCP_years | H93: dms_CRCP_years | J93: dms_CRCP_index | L93: CRY from input cell on business sheet | M93: CRY - financial | N93: dms_FinYears | O93: CRY calendar | P93: dms_CalYears
B94: 1 | C94: dms_FRCP_y1 | D94: 1 | E94: CRCP_y1 | F94: =FRCP_y1 -> 2017 | G94: dms_FRCP_y1 | H94: =IF(dms_RPT="financial",VALUE(LEFT(dms_FRCP_y1,4)-1)&"-"&TEXT(VALUE(MID(dms_FRCP_y1,3,2)),"00"),VALUE(LEFT(dms_FRCP_y1,4)-1)) -> 2016 | I94: dms_CRCP_yZ | J94: 1 | L94: =CRY -> 2017 | M94: =VALUE(LEFT(CRY,4))&"-"&TEXT(MID(CRY,3,2)+1,"00") -> 2017-18 | N94: dms_CRYf_y1 | O94: =VALUE(LEFT(CRY,4)+1) -> 2018 | P94: dms_CRYc_y1
B95: 2 | C95: dms_FRCP_y2 | D95: 2 | E95: CRCP_y2 | F95: =IF(dms_RPT="financial",VALUE(LEFT(dms_FRCP_y1,4)+1)&"-"&TEXT(VALUE(RIGHT(dms_FRCP_y1,2)+1),"00"),VALUE(LEFT(dms_FRCP_y1,4)+1)) -> 2018 | G95: dms_FRCP_y2 | H95: =IF(dms_RPT="financial",VALUE(LEFT(dms_CRCP_yZ,4)-1)&"-"&TEXT(VALUE(MID(dms_CRCP_yZ,3,2)),"00"),VALUE(LEFT(dms_CRCP_yZ,4)-1)) -> 2015 | I95: dms_CRCP_yY | J95: 2 | M95: =VALUE(LEFT(dms_CRYf_y1,4)+1)&"-"&TEXT(MID(dms_CRYf_y1,3,2)+2,"00") -> 2018-19 | N95: dms_CRYf_y2 | O95: =VALUE(LEFT(dms_CRYc_y1,4)+1) -> 2019 | P95: dms_CRYc_y2
B96: 3 | C96: dms_FRCP_y3 | D96: 3 | E96: CRCP_y3 | F96: =IF(dms_RPT="financial",VALUE(LEFT(dms_FRCP_y2,4)+1)&"-"&TEXT(VALUE(RIGHT(dms_FRCP_y2,2)+1),"00"),VALUE(LEFT(dms_FRCP_y2,4)+1)) -> 2019 | G96: dms_FRCP_y3 | H96: =IF(dms_RPT="financial",VALUE(LEFT(dms_CRCP_yY,4)-1)&"-"&TEXT(VALUE(MID(dms_CRCP_yY,3,2)),"00"),VALUE(LEFT(dms_CRCP_yY,4)-1)) -> 2014 | I96: dms_CRCP_yX | J96: 3 | M96: =VALUE(LEFT(dms_CRYf_y2,4)+1)&"-"&TEXT(MID(dms_CRYf_y2,3,2)+2,"00") -> 2019-20 | N96: dms_CRYf_y3 | O96: =VALUE(LEFT(dms_CRYc_y2,4)+1) -> 2020 | P96: dms_CRYc_y3
B97: 4 | C97: dms_FRCP_y4 | D97: 4 | E97: CRCP_y4 | F97: =IF(dms_RPT="financial",VALUE(LEFT(dms_FRCP_y3,4)+1)&"-"&TEXT(VALUE(RIGHT(dms_FRCP_y3,2)+1),"00"),VALUE(LEFT(dms_FRCP_y3,4)+1)) -> 2020 | G97: dms_FRCP_y4 | H97: =IF(dms_RPT="financial",VALUE(LEFT(dms_CRCP_yX,4)-1)&"-"&TEXT(VALUE(MID(dms_CRCP_yX,3,2)),"00"),VALUE(LEFT(dms_CRCP_yX,4)-1)) -> 2013 | I97: dms_CRCP_yW | J97: 4 | M97: =VALUE(LEFT(dms_CRYf_y3,4)+1)&"-"&TEXT(MID(dms_CRYf_y3,3,2)+2,"00") -> 2020-21 | N97: dms_CRYf_y4 | O97: =VALUE(LEFT(dms_CRYc_y3,4)+1) -> 2021 | P97: dms_CRYc_y4
B98: 5 | C98: dms_FRCP_y5 | D98: 5 | E98: CRCP_y5 | F98: =IF(dms_RPT="financial",VALUE(LEFT(dms_FRCP_y4,4)+1)&"-"&TEXT(VALUE(RIGHT(dms_FRCP_y4,2)+1),"00"),VALUE(LEFT(dms_FRCP_y4,4)+1)) -> 2021 | G98: dms_FRCP_y5 | H98: =IF(dms_RPT="financial",VALUE(LEFT(dms_CRCP_yW,4)-1)&"-"&TEXT(VALUE(MID(dms_CRCP_yW,3,2)),"00"),VALUE(LEFT(dms_CRCP_yW,4)-1)) -> 2012 | I98: dms_CRCP_yV | J98: 5 | M98: =VALUE(LEFT(dms_CRYf_y4,4)+1)&"-"&TEXT(MID(dms_CRYf_y4,3,2)+2,"00") -> 2021-22 | N98: dms_CRYf_y5 | O98: =VALUE(LEFT(dms_CRYc_y4,4)+1) -> 2022 | P98: dms_CRYc_y5
B99: 6 | C99: dms_FRCP_y6 | D99: 6 | E99: CRCP_y6 | F99: =IF(dms_RPT="financial",VALUE(LEFT(dms_FRCP_y5,4)+1)&"-"&TEXT(VALUE(RIGHT(dms_FRCP_y5,2)+1),"00"),VALUE(LEFT(dms_FRCP_y5,4)+1)) -> 2022 | G99: dms_FRCP_y6 | H99: =IF(dms_RPT="financial",VALUE(LEFT(dms_CRCP_yV,4)-1)&"-"&TEXT(VALUE(MID(dms_CRCP_yV,3,2)),"00"),VALUE(LEFT(dms_CRCP_yV,4)-1)) -> 2011 | I99: dms_CRCP_yU | J99: 6 | M99: =VALUE(LEFT(dms_CRYf_y5,4)+1)&"-"&TEXT(MID(dms_CRYf_y5,3,2)+2,"00") -> 2022-23 | N99: dms_CRYf_y6 | O99: =VALUE(LEFT(dms_CRYc_y5,4)+1) -> 2023 | P99: dms_CRYc_y6
B100: 7 | C100: dms_FRCP_y7 | D100: 7 | E100: CRCP_y7 | F100: =IF(dms_RPT="financial",VALUE(LEFT(dms_FRCP_y6,4)+1)&"-"&TEXT(VALUE(RIGHT(dms_FRCP_y6,2)+1),"00"),VALUE(LEFT(dms_FRCP_y6,4)+1)) -> 2023 | G100: dms_FRCP_y7 | H100: =IF(dms_RPT="financial",VALUE(LEFT(dms_CRCP_yU,4)-1)&"-"&TEXT(VALUE(MID(dms_CRCP_yU,3,2)),"00"),VALUE(LEFT(dms_CRCP_yU,4)-1)) -> 2010 | I100: dms_CRCP_yT | J100: 7 | M100: =VALUE(LEFT(dms_CRYf_y6,4)+1)&"-"&TEXT(MID(dms_CRYf_y6,3,2)+2,"00") -> 2023-24 | N100: dms_CRYf_y7 | O100: =VALUE(LEFT(dms_CRYc_y6,4)+1) -> 2024 | P100: dms_CRYc_y7
B101: 8 | C101: dms_FRCP_y8 | D101: 8 | E101: CRCP_y8 | F101: =IF(dms_RPT="financial",VALUE(LEFT(dms_FRCP_y7,4)+1)&"-"&TEXT(VALUE(RIGHT(dms_FRCP_y7,2)+1),"00"),VALUE(LEFT(dms_FRCP_y7,4)+1)) -> 2024 | G101: dms_FRCP_y8 | H101: =IF(dms_RPT="financial",VALUE(LEFT(dms_CRCP_yT,4)-1)&"-"&TEXT(VALUE(MID(dms_CRCP_yT,3,2)),"00"),VALUE(LEFT(dms_CRCP_yT,4)-1)) -> 2009 | I101: dms_CRCP_yS | J101: 8 | M101: =VALUE(LEFT(dms_CRYf_y7,4)+1)&"-"&TEXT(MID(dms_CRYf_y7,3,2)+2,"00") -> 2024-25 | N101: dms_CRYf_y8 | O101: =VALUE(LEFT(dms_CRYc_y7,4)+1) -> 2025 | P101: dms_CRYc_y8
B102: 9 | C102: dms_FRCP_y9 | D102: 9 | E102: CRCP_y9 | F102: =IF(dms_RPT="financial",VALUE(LEFT(dms_FRCP_y8,4)+1)&"-"&TEXT(VALUE(RIGHT(dms_FRCP_y8,2)+1),"00"),VALUE(LEFT(dms_FRCP_y8,4)+1)) -> 2025 | G102: dms_FRCP_y9 | H102: =IF(dms_RPT="financial",VALUE(LEFT(dms_CRCP_yS,4)-1)&"-"&TEXT(VALUE(MID(dms_CRCP_yS,3,2)),"00"),VALUE(LEFT(dms_CRCP_yS,4)-1)) -> 2008 | I102: dms_CRCP_yR | J102: 9 | M102: =VALUE(LEFT(dms_CRYf_y8,4)+1)&"-"&TEXT(MID(dms_CRYf_y8,3,2)+2,"00") -> 2025-26 | N102: dms_CRYf_y9 | O102: =VALUE(LEFT(dms_CRYc_y8,4)+1) -> 2026 | P102: dms_CRYc_y9
B103: 10 | C103: dms_FRCP_y10 | D103: 10 | E103: CRCP_y10 | F103: =IF(dms_RPT="financial",VALUE(LEFT(dms_FRCP_y9,4)+1)&"-"&TEXT(VALUE(RIGHT(dms_FRCP_y9,2)+1),"00"),VALUE(LEFT(dms_FRCP_y9,4)+1)) -> 2026 | G103: dms_FRCP_y10 | H103: =IF(dms_RPT="financial",VALUE(LEFT(dms_CRCP_yR,4)-1)&"-"&TEXT(VALUE(MID(dms_CRCP_yR,3,2)),"00"),VALUE(LEFT(dms_CRCP_yR,4)-1)) -> 2007 | I103: dms_CRCP_yQ | J103: 10 | M103: =VALUE(LEFT(dms_CRYf_y9,4)+1)&"-"&TEXT(MID(dms_CRYf_y9,3,2)+2,"00") -> 2026-27 | N103: dms_CRYf_y10 | O103: =VALUE(LEFT(dms_CRYc_y9,4)+1) -> 2027 | P103: dms_CRYc_y10
B104: 11 | C104: dms_FRCP_y11 | D104: 11 | E104: CRCP_y11 | F104: =IF(dms_RPT="financial",VALUE(LEFT(dms_FRCP_y10,4)+1)&"-"&TEXT(VALUE(RIGHT(dms_FRCP_y10,2)+1),"00"),VALUE(LEFT(dms_FRCP_y10,4)+1)) -> 2027 | G104: dms_FRCP_y11 | H104: =IF(dms_RPT="financial",VALUE(LEFT(dms_CRCP_yQ,4)-1)&"-"&TEXT(VALUE(MID(dms_CRCP_yQ,3,2)),"00"),VALUE(LEFT(dms_CRCP_yQ,4)-1)) -> 2006 | I104: dms_CRCP_yP | J104: 11 | M104: =VALUE(LEFT(dms_CRYf_y10,4)+1)&"-"&TEXT(MID(dms_CRYf_y10,3,2)+2,"00") -> 2027-28 | N104: dms_CRYf_y11 | O104: =VALUE(LEFT(dms_CRYc_y10,4)+1) -> 2028 | P104: dms_CRYc_y11
B105: 12 | C105: dms_FRCP_y12 | D105: 12 | E105: CRCP_y12 | F105: =IF(dms_RPT="financial",VALUE(LEFT(dms_FRCP_y11,4)+1)&"-"&TEXT(VALUE(RIGHT(dms_FRCP_y11,2)+1),"00"),VALUE(LEFT(dms_FRCP_y11,4)+1)) -> 2028 | G105: dms_FRCP_y12 | H105: =IF(dms_RPT="financial",VALUE(LEFT(dms_CRCP_yP,4)-1)&"-"&TEXT(VALUE(MID(dms_CRCP_yP,3,2)),"00"),VALUE(LEFT(dms_CRCP_yP,4)-1)) -> 2005 | I105: dms_CRCP_yO | J105: 12 | M105: =VALUE(LEFT(dms_CRYf_y11,4)+1)&"-"&TEXT(MID(dms_CRYf_y11,3,2)+2,"00") -> 2028-29 | N105: dms_CRYf_y12 | O105: =VALUE(LEFT(dms_CRYc_y11,4)+1) -> 2029 | P105: dms_CRYc_y12
B106: 13 | C106: dms_FRCP_y13 | D106: 13 | E106: CRCP_y13 | F106: =IF(dms_RPT="financial",VALUE(LEFT(dms_FRCP_y12,4)+1)&"-"&TEXT(VALUE(RIGHT(dms_FRCP_y12,2)+1),"00"),VALUE(LEFT(dms_FRCP_y12,4)+1)) -> 2029 | G106: dms_FRCP_y13 | H106: =IF(dms_RPT="financial",VALUE(LEFT(dms_CRCP_yO,4)-1)&"-"&TEXT(VALUE(MID(dms_CRCP_yO,3,2)),"00"),VALUE(LEFT(dms_CRCP_yO,4)-1)) -> 2004 | I106: dms_CRCP_yN | J106: 13 | M106: =VALUE(LEFT(dms_CRYf_y12,4)+1)&"-"&TEXT(MID(dms_CRYf_y12,3,2)+2,"00") -> 2029-30 | N106: dms_CRYf_y13 | O106: =VALUE(LEFT(dms_CRYc_y12,4)+1) -> 2030 | P106: dms_CRYc_y13
B107: 14 | C107: dms_FRCP_y14 | D107: 14 | E107: CRCP_y14 | F107: =IF(dms_RPT="financial",VALUE(LEFT(dms_FRCP_y13,4)+1)&"-"&TEXT(VALUE(RIGHT(dms_FRCP_y13,2)+1),"00"),VALUE(LEFT(dms_FRCP_y13,4)+1)) -> 2030 | G107: dms_FRCP_y14 | H107: =IF(dms_RPT="financial",VALUE(LEFT(dms_CRCP_yN,4)-1)&"-"&TEXT(VALUE(MID(dms_CRCP_yN,3,2)),"00"),VALUE(LEFT(dms_CRCP_yN,4)-1)) -> 2003 | I107: dms_CRCP_yM | J107: 14 | M107: =VALUE(LEFT(dms_CRYf_y13,4)+1)&"-"&TEXT(MID(dms_CRYf_y13,3,2)+2,"00") -> 2030-31 | N107: dms_CRYf_y14 | O107: =VALUE(LEFT(dms_CRYc_y13,4)+1) -> 2031 | P107: dms_CRYc_y14
B108: 15 | C108: dms_FRCP_y15 | D108: 15 | E108: CRCP_y15 | F108: =IF(dms_RPT="financial",VALUE(LEFT(dms_FRCP_y14,4)+1)&"-"&TEXT(VALUE(RIGHT(dms_FRCP_y14,2)+1),"00"),VALUE(LEFT(dms_FRCP_y14,4)+1)) -> 2031 | G108: dms_FRCP_y15 | H108: =IF(dms_RPT="financial",VALUE(LEFT(dms_CRCP_yM,4)-1)&"-"&TEXT(VALUE(MID(dms_CRCP_yM,3,2)),"00"),VALUE(LEFT(dms_CRCP_yM,4)-1)) -> 2002 | I108: dms_CRCP_yL | J108: 15 | M108: =VALUE(LEFT(dms_CRYf_y14,4)+1)&"-"&TEXT(MID(dms_CRYf_y14,3,2)+2,"00") -> 2031-32 | N108: dms_CRYf_y15 | O108: =VALUE(LEFT(dms_CRYc_y14,4)+1) -> 2032 | P108: dms_CRYc_y15
M109: =VALUE(LEFT(dms_CRYf_y15,4)+1)&"-"&TEXT(MID(dms_CRYf_y15,3,2)+2,"00") -> 2032-33 | N109: dms_CRYf_y16 | O109: =VALUE(LEFT(dms_CRYc_y15,4)+1) -> 2033 | P109: dms_CRYc_y16
B110: These are drop down lists for businesses to select the correct FRCP_y1 on the business and other details worksheet. This also populates the column headings in the worksheets | M110: =VALUE(LEFT(dms_CRYf_y16,4)+1)&"-"&TEXT(MID(dms_CRYf_y16,3,2)+2,"00") -> 2033-34 | N110: dms_CRYf_y17 | O110: =VALUE(LEFT(dms_CRYc_y16,4)+1) -> 2034 | P110: dms_CRYc_y17
B111: dms_RCP_fyear_list | C111: dms_CRY_ListF | D111: dms_CRY_ListC | E111: dms_RCP_cyear_list | F111: dms_FRCP_fyear_list | G111: dms_FRCP_ListF | H111: dms_FRCP_ListC | I111: dms_FRCP_cyear_list | M111: =VALUE(LEFT(dms_CRYf_y17,4)+1)&"-"&TEXT(MID(dms_CRYf_y17,3,2)+2,"00") -> 2034-35 | N111: dms_CRYf_y18 | O111: =VALUE(LEFT(dms_CRYc_y17,4)+1) -> 2035 | P111: dms_CRYc_y18
B112: dms_fy1 | C112: 2005-06 | D112: 2006 | E112: dms_cy1 | F112: dms_frcp_fy1 | G112: 2015-16 | H112: 2016 | I112: dms_crcp_cy1 | M112: =VALUE(LEFT(dms_CRYf_y18,4)+1)&"-"&TEXT(MID(dms_CRYf_y18,3,2)+2,"00") -> 2035-36 | N112: dms_CRYf_y19 | O112: =VALUE(LEFT(dms_CRYc_y18,4)+1) -> 2036 | P112: dms_CRYc_y19
B113: dms_fy2 | C113: 2006-07 | D113: 2007 | E113: dms_cy2 | F113: dms_frcp_fy2 | G113: 2016-17 | H113: 2017 | I113: dms_crcp_cy2 | M113: =VALUE(LEFT(dms_CRYf_y19,4)+1)&"-"&TEXT(MID(dms_CRYf_y19,3,2)+2,"00") -> 2036-37 | N113: dms_CRYf_y20 | O113: =VALUE(LEFT(dms_CRYc_y19,4)+1) -> 2037 | P113: dms_CRYc_y20
B114: dms_fy3 | C114: 2007-08 | D114: 2008 | E114: dms_cy3 | F114: dms_frcp_fy3 | G114: 2017-18 | H114: 2018 | I114: dms_crcp_cy3
B115: dms_fy4 | C115: 2008-09 | D115: 2009 | E115: dms_cy4 | F115: dms_frcp_fy4 | G115: 2018-19 | H115: 2019 | I115: dms_crcp_cy4
B116: dms_fy5 | C116: 2009-10 | D116: 2010 | E116: dms_cy5 | F116: dms_frcp_fy5 | G116: 2019-20 | H116: 2020 | I116: dms_crcp_cy5
B117: dms_fy6 | C117: 2010-11 | D117: 2011 | E117: dms_cy6 | F117: dms_frcp_fy6 | G117: 2020-21 | H117: 2021 | I117: dms_crcp_cy6
B118: dms_fy7 | C118: 2011-12 | D118: 2012 | E118: dms_cy7 | F118: dms_frcp_fy7 | G118: 2021-22 | H118: 2022 | I118: dms_crcp_cy7
B119: dms_fy8 | C119: 2012-13 | D119: 2013 | E119: dms_cy8 | F119: dms_frcp_fy8 | G119: 2022-23 | H119: 2023 | I119: dms_crcp_cy8 | L119: 2005-06 | M119: 2006
B120: dms_fy9 | C120: 2013-14 | D120: 2014 | E120: dms_cy9 | F120: dms_frcp_fy9 | G120: 2023-24 | H120: 2024 | I120: dms_crcp_cy9 | L120: 2006-07 | M120: 2007
B121: dms_fy10 | C121: 2014-15 | D121: 2015 | E121: dms_cy10 | F121: dms_frcp_fy10 | G121: 2024-25 | H121: 2025 | I121: dms_crcp_cy10 | L121: 2007-08 | M121: 2008
B122: dms_fy11 | C122: 2015-16 | D122: 2016 | E122: dms_cy11 | F122: dms_frcp_fy11 | G122: 2025-26 | H122: 2026 | I122: dms_crcp_cy11 | L122: 2008-09 | M122: 2009
B123: dms_fy12 | C123: 2016-17 | D123: 2017 | E123: dms_cy12 | F123: dms_frcp_fy12 | G123: 2026-27 | H123: 2027 | I123: dms_crcp_cy12 | L123: 2009-10 | M123: 2010
B124: dms_fy13 | C124: 2017-18 | D124: 2018 | E124: dms_cy13 | F124: dms_frcp_fy13 | G124: 2027-28 | H124: 2028 | I124: dms_crcp_cy13 | L124: 2010-11 | M124: 2011
B125: dms_fy14 | C125: 2018-19 | D125: 2019 | E125: dms_cy14 | F125: dms_frcp_fy14 | G125: 2028-29 | H125: 2029 | I125: dms_crcp_cy14 | L125: 2011-12 | M125: 2012
B126: dms_fy15 | C126: 2019-20 | D126: 2020 | E126: dms_cy15 | F126: dms_frcp_fy15 | G126: 2029-30 | H126: 2030 | I126: dms_crcp_cy15 | L126: 2012-13 | M126: 2013
B127: dms_fy16 | C127: 2020-21 | D127: 2021 | E127: dms_cy16 | L127: 2013-14 | M127: 2014
B128: dms_fy17 | C128: 2021-22 | D128: 2022 | E128: dms_cy17 | L128: 2014-15 | M128: 2015
B129: dms_fy18 | C129: 2022-23 | D129: 2023 | E129: dms_cy18 | L129: 2015-16 | M129: 2016
B130: dms_fy19 | C130: 2023-24 | D130: 2024 | E130: dms_cy19 | L130: 2016-17 | M130: 2017
B131: dms_fy20 | C131: 2024-25 | D131: 2025 | E131: dms_cy20 | L131: 2017-18 | M131: 2018
L132: 2018-19 | M132: 2019
L133: 2019-20 | M133: 2020
L134: 2020-21 | M134: 2021
L135: 2021-22 | M135: 2022
L136: 2022-23 | M136: 2023
L137: 2023-24 | M137: 2024
L138: 2024-25 | M138: 2025
L139: 2025-26 | M139: 2026
L140: 2026-27 | M140: 2027
L141: 2027-28 | M141: 2028
L142: 2028-29 | M142: 2029
L143: 2029-30 | M143: 2030
L144: 2030-31 | M144: 2031
L145: 2031-32 | M145: 2032
L146: 2032-33 | M146: 2033
L147: 2033-34 | M147: 2034
L148: 2034-35 | M148: 2035
L149: 2035-36 | M149: 2036

Sheet Instructions
B2: =CONCATENATE(dms_Segment," Network Service Provider") -> Distribution Network Service Provider
B3: =IF(dms_Model="Reset","Regulatory Proposal RIN Template","Annual Reporting RIN") -> Annual Reporting RIN
C4: =CONCATENATE("This template is to be used by ",dms_TradingName," to fulfil its reporting obligations to the AER.") -> This template is to be used by Powercor Australia to fulfil its reporting obligations to the AER.
C5: INSTRUCTIONS
C6: Complete the Business & other details worksheet before entering data or values in any other worksheets. The Business & other details worksheet is linked to other worksheets within the workbook and automatically generates certain column headings and conditional formatting.
C8: Identifying CONFIDENTIAL INFORMATION: Please use the macro at the top of each worksheet to identify confidential information.
C9: -Do this by selecting the cell or cells that contain confidential information and then run the Mark selected cells as CONFIDENTIAL macro. This will format the cells a specific colour that is identified by the AER's database which in turn marks that information as confidential. -To reverse this, select the cell or cells and run the Return cells to NON-CONFIDENTIAL macro.
C11: UNITS OF MEASURE All amounts are to be unrounded and reported on a one for one basis: that is 1000 is to be entered as '1000'. Applicable units of measure may be identified in the table column headings or row descriptors.
C13: COLOUR CODING OF INPUT / NON-INPUT CELLS:
D14: Yellow = Input cell (mandatory)
D15: Darker yellow = input cell (mandatory)
D16: Orange = input cell (if data available)
D17: Grey = Not applicable/No inputs required
D18: PLEASE DO NOT ENTER TEXT into cells that are to contain numeric data.
C21: WORKSHEET NAVIGATION Many tables in the worksheets have been "grouped" to allow for easy navigation. To ungroup or group data use the outline symbols in the left margin (for Row groupings) or above the columns (for column groupings).
C23: RETURNING COMPLETED RESPONSES Please return two (2) files to the AER: 1. A confidential version which must contain a complete set of all responses with confidential information marked using the Mark selection CONFIDENTIAL macro and which has been completed using the locked template file provided by the AER. 2. A public version with confidential information either removed completely or aggregated in some form together with writtten consent to disclose the public version of the response. Use the drop down box on the Business and other details worksheet to identify the file as either confidential ('consolidated') or public.
C25: SUBMITTING AMENDED DATA TO THE AER If an NSP wishes to correct data previously submitted to the AER it should resubmit that data using the original completed submission as the starting point. Please make any necessary changes to the data. Data that is not being amended should be left unchanged. NSPs must identify the reason for the amendments in the Amendment Reason box on the Business and other details worksheet. NSPs may provide further details regarding any amendments in the Amendments worksheet. .
C26: NSP may use Amended Data macro to highlight cells that contain amended data. NB: if data is also CONFIDENTIAL, re-apply the Confidentiality macro after applying the Amended macro
C27: Please resubmit two (2) files - a confidential version and a public version of the amended submission to the AER

Sheet Contents
B3: =CONCATENATE(dms_Segment," Network Service Provider") -> Distribution Network Service Provider
B4: Annual Reporting RIN Template
B5: Table of Contents
C8: Instructions
C9: Business & other details
B12: CATEGORY ANALYSIS | C12: STPIS | D12: STATUTORY ACCOUNTS
B14: 2.11 Labour | C14: 6.2 STPIS Reliability | D14: 8.1 Income
C15: 6.6 STPIS Customer Service | D15: 8.2 Capex
C16: 6.7 STPIS Daily Performance
C17: 6.8 STPIS Exclusions | D17: 8.4 Opex
C18: 6.9 STPIS GSL
B22: NETWORK PERFORMANCE | C22: OTHER INFORMATION | D22: PRICING PROPOSAL
D23: Victorian Businesses Only
B24: 3.6 Quality of services | C24: 7.8 Avoided Cost Payments
B25: 3.6.8 Network-feeders | C25: 7.10 Juris Scheme | D25: 9.5 TUoS
B26: 3.6.9 Network-reliability | C26: 7.11 DMIS-DMIA
C27: 7.12 Safety and Bushfire
C28: 7.13 TARC
B29: PUBLIC LIGHTING
B31: 4.1 Public lighting tariffs

Sheet Business & other details
B1: =(LOOKUP(dms_Model,dms_Model_List,dms_Worksheet_List)) -> ANNUAL REPORTING STATEMENT
B2: =dms_TradingName -> Powercor Australia
B3: =CONCATENATE("Annual Reporting RIN Response ",CRY) -> Annual Reporting RIN Response 2017
B4: BUSINESS & OTHER DETAILS
B7: Instructions
B8: Complete the following business details regulatory template before entering data or values in any other regulatory template. This regulatory template is linked to other cells within the spreadsheet and automatically generates column headings and conditional formatting to distinguish business specific input and non-input cells.
B10: SUBMISSION PARTICULARS INPUT SHEETS
B12: ENTITY DETAILS
B14: Short name | C14: Powercor Australia | F14: Select business name from drop down list first
B15: ACN / ABN | C15: =INDEX(dms_ABN_List,MATCH(dms_TradingName,dms_TradingName_List)) -> 89064651109
B18: Business address | C18: Address 1 | E18: =INDEX(dms_Addr1_List,MATCH(dms_TradingName,dms_TradingName_List)) -> 40 Market Street
D19: Address 2 | E19: =IF(ISBLANK(INDEX(dms_Addr2_List,MATCH(dms_TradingName,dms_TradingName_List))),"",INDEX(dms_Addr2_List,MATCH(dms_TradingName,dms_TradingName_List))) -> 
C20: Suburb | E20: =INDEX(dms_Suburb_List,MATCH(dms_TradingName,dms_TradingName_List)) -> MELBOURNE
D21: State | E21: =INDEX(dms_State_List,MATCH(dms_TradingName,dms_TradingName_List)) -> Vic | F21: p/code | G21: =INDEX(dms_PostCode_List,MATCH(dms_TradingName,dms_TradingName_List)) -> 3000
B23: Postal address | C23: Address 1 | E23: =INDEX(dms_PAddr1_List,MATCH(dms_TradingName,dms_TradingName_List)) -> Locked bag 14090
D24: Address 2 | E24: =IF(ISBLANK(INDEX(dms_PAddr2_List,MATCH(dms_TradingName,dms_TradingName_List))),"",INDEX(dms_PAddr2_List,MATCH(dms_TradingName,dms_TradingName_List))) -> 
C25: Suburb | E25: =INDEX(dms_PSuburb_List,MATCH(dms_TradingName,dms_TradingName_List)) -> MELBOURNE
D26: State | E26: =INDEX(dms_PState_List,MATCH(dms_TradingName,dms_TradingName_List)) -> VIC | F26: p/code | G26: =INDEX(dms_PPostCode_List,MATCH(dms_TradingName,dms_TradingName_List)) -> 8001
B29: Contact name/s | C29: Mark de Villiers
B30: Contact phone/s
B31: Contact email address/s
B33: REGULATORY CONTROL PERIODS
B35: Forthcoming regulatory control period | C35: 2017 | D35: =dms_FRCP_y2 -> 2018 | E35: =dms_FRCP_y3 -> 2019 | F35: =dms_FRCP_y4 -> 2020 | G35: =dms_FRCP_y5 -> 2021 | H35: =dms_FRCP_y6 -> 2022 | I35: =dms_FRCP_y7 -> 2023 | J35: =dms_FRCP_y8 -> 2024 | K35: =dms_FRCP_y9 -> 2025 | L35: =dms_FRCP_y10 -> 2026
B38: Current regulatory control period | C38: =dms_CRCP_FirstYear_Result -> 2012 | D38: =IF(dms_RPT="financial",VALUE(LEFT(CRCP_y1,4)+1)&"-"&TEXT(MID(CRCP_y1,3,2)+2,"00"),VALUE(LEFT(CRCP_y1,4)+1)) -> 2013 | E38: =IF(dms_RPT="financial",VALUE(LEFT(CRCP_y2,4)+1)&"-"&TEXT(VALUE(MID(CRCP_y2,3,2)+2),"00"),VALUE(LEFT(CRCP_y2,4)+1)) -> 2014 | F38: =IF(dms_RPT="financial",VALUE(LEFT(CRCP_y3,4)+1)&"-"&TEXT(VALUE(MID(CRCP_y3,3,2)+2),"00"),VALUE(LEFT(CRCP_y3,4)+1)) -> 2015 | G38: =IF(dms_RPT="financial",VALUE(LEFT(CRCP_y4,4)+1)&"-"&TEXT(VALUE(MID(CRCP_y4,3,2)+2),"00"),VALUE(LEFT(CRCP_y4,4)+1)) -> 2016 | H38: =IF(dms_RPT="financial",VALUE(LEFT(CRCP_y5,4)+1)&"-"&TEXT(VALUE(MID(CRCP_y5,3,2)+2),"00"),VALUE(LEFT(CRCP_y5,4)+1)) -> 2017 | I38: =IF(dms_RPT="financial",VALUE(LEFT(CRCP_y6,4)+1)&"-"&TEXT(VALUE(MID(CRCP_y6,3,2)+2),"00"),VALUE(LEFT(CRCP_y6,4)+1)) -> 2018 | J38: =IF(dms_RPT="financial",VALUE(LEFT(CRCP_y7,4)+1)&"-"&TEXT(VALUE(MID(CRCP_y7,3,2)+2),"00"),VALUE(LEFT(CRCP_y7,4)+1)) -> 2019 | K38: =IF(dms_RPT="financial",VALUE(LEFT(CRCP_y8,4)+1)&"-"&TEXT(VALUE(MID(CRCP_y8,3,2)+2),"00"),VALUE(LEFT(CRCP_y8,4)+1)) -> 2020 | L38: =IF(dms_RPT="financial",VALUE(LEFT(CRCP_y9,4)+1)&"-"&TEXT(VALUE(MID(CRCP_y9,3,2)+2),"00"),VALUE(LEFT(CRCP_y9,4)+1)) -> 2021
B41: Previous regulatory control period | C41: =IF(dms_RPT="financial",VALUE(LEFT(PRCP_y2,4)-1)&"-"&TEXT(VALUE(MID(PRCP_y2,3,2)),"00"),VALUE(LEFT(PRCP_y2,4)-1)) -> 2007 | D41: =IF(dms_RPT="financial",VALUE(LEFT(PRCP_y3,4)-1)&"-"&TEXT(VALUE(MID(PRCP_y3,3,2)),"00"),VALUE(LEFT(PRCP_y3,4)-1)) -> 2008 | E41: =IF(dms_RPT="financial",VALUE(LEFT(PRCP_y4,4)-1)&"-"&TEXT(VALUE(MID(PRCP_y4,3,2)),"00"),VALUE(LEFT(PRCP_y4,4)-1)) -> 2009 | F41: =IF(dms_RPT="financial",VALUE(LEFT(PRCP_y5,4)-1)&"-"&TEXT(VALUE(RIGHT(PRCP_y5,2)-1),"00"),VALUE(LEFT(PRCP_y5,4)-1)) -> 2010 | G41: =IF(dms_RPT="financial",VALUE(LEFT(CRCP_y1,4)-1)&"-"&TEXT(VALUE(RIGHT(CRCP_y1,2)-1),"00"),VALUE(LEFT(CRCP_y1,4)-1)) -> 2011
B44: Commencing regulatory year | C44: 2017 | D44: CRY
B46: Last completed regulatory year | C46: 2017 | D46: dms_FinalYear
B50: Source | C50: Reporting
B51: Data quality (actual, estimate, public, consolidated) | C51: Consolidated | E51: Use Consolidated for the Consolidated Confidential version Use Public for the Consolidated Public version
B52: Amended RIN submission - amendment reason | C52: Updated on 7 December 2018 - see D19/5923 (AB) THEN public version sent on 22 January 2019 - see D19/32572 & D19/33063
B53: Submission Date | C53: 30/04/2018 | D53: dms_SubmissionDate | E53: Please enter date this file submitted to AER (dd/mm/yyyy)
B54: EBSS - First application of scheme in forthcoming period? | C54: No
B55: Sector | C55: =INDEX(dms_Sector_List,MATCH(dms_TradingName,dms_TradingName_List)) -> Electricity | D55: dms_Sector | E55: =INDEX(dms_Sector_List,MATCH(dms_TradingName,dms_TradingName_List))
B56: Segment | C56: =INDEX(dms_Segment_List,MATCH(dms_TradingName,dms_TradingName_List)) -> Distribution | D56: dms_Segment | E56: =INDEX(dms_Segment_List,MATCH(dms_TradingName,dms_TradingName_List))
B57: Regulatory Year Ending | C57: =IF(dms_MultiYear_Flag=1,LEFT(dms_Specified_FinalYear,2)&RIGHT(dms_Specified_FinalYear,2),INDEX(dms_RYE_Formula_Result,MATCH(dms_Model,dms_Model_List))) -> 2017 | D57: dms_RYE | E57: =IF(dms_MultiYear_Flag=1,LEFT(dms_Specified_FinalYear,2)&RIGHT(dms_Specified_FinalYear,2),INDEX(dms_RYE_Formula_Result,MATCH(dms_Model,dms_Model_List)))
B58: Reporting Period Type | C58: =INDEX(dms_RPT_List,MATCH(dms_TradingName,dms_TradingName_List)) -> Calendar | D58: dms_RPT | E58: =INDEX(dms_RPT_List,MATCH(dms_TradingName,dms_TradingName_List))
B59: Model or RIN Type | C59: ARR | D59: dms_Model | E59: Drop down selection
B60: Security Classification | C60: Public | D60: dms_Classification | E60: Always Public
B61: Template - version no. | C61: 5 | D61: dms_TemplateNumber
B62: Dollar $ real month | C62: =INDEX(dms_RPTMonth_List,MATCH(dms_TradingName,dms_TradingName_List)) -> December | D62: dms_RPTMonth | E62: =INDEX(dms_RPTMonth_List,MATCH(dms_TradingName,dms_TradingName_List))
B63: Dollar $ real (the last month before the FRCP_y1) | C63: =CONCATENATE(dms_RPTMonth)&" "&VALUE((LEFT(dms_CRCP_FinalYear_Result,2)&RIGHT(dms_CRCP_FinalYear_Result,2))) -> December 2017 | D63: dms_DollarReal | E63: =IF(SUM(dms_SingleYear_Model)>0,CONCATENATE(dms_RPTMonth)&" "&VALUE((LEFT(CRY,2))&RIGHT(CRY,2)),CONCATENATE(dms_RPTMonth)&" "&VALUE((LEFT(dms_CRCP_FinalYear_Result,2)&RIGHT(dms_CRCP_FinalYear_Result,2))))
B64: Dollar $ real previous year (PRCP_y5) | C64: June 2014 | D64: dms_DollarReal_Prev | E64: =IF(SUM(dms_SingleYear_Model)>0,CONCATENATE(dms_RPTMonth)&" "&VALUE(((LEFT(CRY,2))&RIGHT(CRY,2))-1),CONCATENATE(dms_RPTMonth)&" "&VALUE(((LEFT(dms_CRCP_FirstYear_Result,2)&RIGHT(dms_CRCP_FirstYear_Result,2))))-1)
B65: Form of control | C65: =INDEX(dms_FormControl_List,MATCH(dms_TradingName,dms_TradingName_List)) -> Revenue cap | D65: dms_FormControl | E65: =INDEX(dms_FormControl_List,MATCH(dms_TradingName,dms_TradingName_List))
B66: Calendar Year for table 3.6 data | C66: =IF(dms_RPT="Calendar",dms_RYE,VALUE(dms_RYE)-1) -> 2017 | D66: dms_0306_Year | E66: =IF(dms_RPT="Calendar",dms_RYE,VALUE(dms_RYE)-1)
B67: RIN response - version no. | C67: 1 | D67: dms_RINversion
B68: Jurisdiction | C68: =INDEX(dms_JurisdictionList,MATCH(dms_TradingName,dms_TradingName_List)) -> Vic | D68: dms_Jurisdiction | E68: =INDEX(dms_JurisdictionList,MATCH(dms_TradingName,dms_TradingName_List))
B69: Backcast Multiyear EB, CA or ARR? | C69: 0 | D69: dms_MultiYear_Flag | E69: 1=y, 0-n
C70: 2013 | D70: dms_Specified_FinalYear | E70: The result here is returned to dms_CRCP_FinalYear_Result if dms_MultiYear_Flag is set to 1
B71: Single Year Model T/F | C71: =IF(dms_Model="EB",1,0) -> 0 | D71: dms_EB
C72: =IF(dms_Model="CA",1,0) -> 0 | D72: dms_CA | E72: =dms_SingleYear_Model
C73: =IF(dms_Model="ARR",1,0) -> 1 | D73: dms_ARR
B74: Single Year Final Year Reference | C74: CRY | D74: dms_SingleYear_FinalYear_Ref | E74: This is the reference for EB, CA & ARR RINs
B75: Single Year Final Year Result | C75: =INDIRECT(dms_SingleYear_FinalYear_Ref) -> 2017 | D75: dms_SingleYear_FinalYear_Result | E75: =INDIRECT(dms_SingleYear_FinalYear_Ref) | I75: Formula errors OK
B76: FRCP length in years | C76: =INDEX(dms_FRCPlength_List,MATCH(dms_TradingName,dms_TradingName_List)) -> 5 | D76: dms_FRCPlength_Num | E76: =INDEX(dms_FRCPlength_List,MATCH(dms_TradingName,dms_TradingName_List))
B77: Multi Year Final Year Reference | C77: =INDEX(dms_FinalYear_List,MATCH(dms_FRCPlength_Num,dms_FRCPlength_Num_List)) -> dms_FRCP_y5 | D77: dms_MultiYear_FinalYear_Ref | E77: =INDEX(dms_FinalYear_List,MATCH(dms_FRCPlength_Num,dms_FRCPlength_Num_List))
B78: Multi Year Final Year Result | C78: =IF(dms_MultiYear_Flag=0,INDIRECT(dms_MultiYear_FinalYear_Ref),dms_Specified_FinalYear) -> 2021 | D78: dms_MultiYear_FinalYear_Result | E78: =IF(dms_MultiYear_Flag=0,INDIRECT(dms_MultiYear_FinalYear_Ref),dms_Specified_FinalYear) | I78: Formula errors OK
B79: CRCP length in years | C79: =INDEX(dms_CRCPlength_List,MATCH(dms_TradingName,dms_TradingName_List)) -> 5 | D79: dms_CRCPlength_Num | E79: =INDEX(dms_CRCPlength_List,MATCH(dms_TradingName,dms_TradingName_List))
B80: CRCP Final Year Reference | C80: =INDEX(dms_CFinalYear_List,MATCH(dms_CRCPlength_Num,dms_CRCPlength_Num_List)) -> CRCP_y5 | D80: dms_CRCP_FinalYear_Ref | E80: =INDEX(dms_CFinalYear_List,MATCH(dms_CRCPlength_Num,dms_CRCPlength_Num_List))
B81: CRCP First Year Result | C81: =INDEX(dms_CRCP_years,MATCH(dms_CRCPlength_Num,dms_CRCP_index)) -> 2012 | D81: dms_CRCP_FirstYear_Result | E81: =INDEX(dms_CRCP_years,MATCH(dms_CRCPlength_Num,dms_CRCP_index))
B82: CRCP Final Year Result | C82: =IF(dms_MultiYear_Flag=0,(IF(SUM(dms_SingleYear_Model)>0,CRY,dms_CRCP_yZ)),dms_Specified_FinalYear) -> 2017 | D82: dms_CRCP_FinalYear_Result | E82: =IF(dms_MultiYear_Flag=0,(IF(SUM(dms_SingleYear_Model)>0,CRY,dms_CRCP_yZ)),dms_Specified_FinalYear)
B83: Table 6.6.3 - Public lighting repair - no. business days | C83: =INDEX(dms_663_List,MATCH(dms_TradingName,dms_TradingName_List)) -> 2 | D83: dms_663
B84: Distribution Determination Reference | C84: =INDEX(dms_DeterminationRef_List,MATCH(dms_TradingName,dms_TradingName_List)) -> 2016-20 Distribution Determination | D84: dms_DeterminationRef
B85: Backcast templates only - unit of measure | C85: $0s | D85: dms_Backcast_UOM | E85: If the cover sheet is for Backcast data ensure to apply dms_Backcast_UOM named range to this field. Otherwise, do not apply this named range.
B86: EB/CA Unit of Measure for Monetary Values | C86: $0s | D86: dms_dollar_nom_UOM | E86: If the cover sheet is attached to an EB files make sure this field is set
B87: Is this Submission File a Subset File | C87: NO | D87: dms_Partial
B88: discard this record? | C88: NO | D88: dms_DISCARD | E88: If record is to be discarded from DB set this flag to YES
B89: CBD Feeder for this business | C89: =INDEX(dms_CBD_flag,MATCH(dms_TradingName,dms_TradingName_List)) -> 0 | D89: dms_CBD_flag_NSP
B90: Urban Feeder for this business | C90: =INDEX(dms_Urban_flag,MATCH(dms_TradingName,dms_TradingName_List)) -> 0 | D90: dms_Urban_flag_NSP
B91: Short rural Feeder for this business | C91: =INDEX(dms_ShortRural_flag,MATCH(dms_TradingName,dms_TradingName_List)) -> YES | D91: dms_ShortRural_flag_NSP
B92: Long rural Feeder for this business | C92: =INDEX(dms_LongRural_flag,MATCH(dms_TradingName,dms_TradingName_List)) -> YES | D92: dms_LongRural_flag_NSP
B93: USES NAMED RANGES FLAG | C93: yes | D93: dms_Defined_Names_Used
B96: REGULATORY YEARS FOR MULTI RYE SUBMISSIONS
B97: Multiple RYE flag | C97: NO | D97: dms_Multi_RYE_flag
C98: Manually specify RYE | D98: Named ranges to apply
C99: 2013 | D99: dms_RYE_01
C100: 2014 | D100: dms_RYE_02
C101: 2015 | D101: dms_RYE_03
C102: 2016 | D102: dms_RYE_04
C103: 2017 | D103: dms_RYE_05

Sheet 2.11 Labour
B1: =(LOOKUP(dms_Model,dms_Model_List,dms_Worksheet_List)) -> ANNUAL REPORTING STATEMENT
B2: =dms_TradingName -> Powercor Australia
B3: =CONCATENATE("Annual Reporting RIN Response ",CRY) -> Annual Reporting RIN Response 2017
B4: 2.11 LABOUR
B6: Tables 2.11.1 and 2.11.2 deliberately omitted.
B8: 2.11.3 - LABOUR / NON-LABOUR EXPENDITURE SPLIT
B9: 2.11.3.1 - Opex
C10: =CRY -> 2017
C11: $0's, nominal
C12: Opex
B13: In-house labour expenditure
B14: Labour expenditure outsourced to related parties
B15: Labour expenditure outsourced to unrelated parties
B16: Controllable non-labour expenditure
B17: Uncontrollable non-labour expenditure
B18: Total | C18: =SUM(C13:C17) -> 0
B20: Reconciliation with Opex worksheets - SCS | C20: Opex
B21: Total including margins | C21: =dms_Total_Actual_Opex -> 214079760.1 | D21: =IF(ROUND(C18,0)=ROUND(dms_Total_Actual_Opex,0),"OK","Error") -> Error
B24: 2.11.3.2 - Capex
C25: =CRY -> 2017
C26: $0's, nominal
C27: Capex
B28: In-house labour expenditure
B29: Labour expenditure outsourced to related parties
B30: Labour expenditure outsourced to unrelated parties
B31: Controllable non-labour expenditure
B32: Uncontrollable non-labour expenditure
B33: Total | C33: =SUM(C28:C32) -> 0
B35: Reconciliation with Capex & Opex worksheets - SCS | C35: Capex
B36: Total including margins | C36: =dms_Total_Actual_Capex -> 424257599 | D36: =IF(ROUND(C33,0)=ROUND(dms_Total_Actual_Capex,0),"OK","Error") -> Error

Sheet 3.6 Quality of services
B1: =(LOOKUP(dms_Model,dms_Model_List,dms_Worksheet_List)) -> ANNUAL REPORTING STATEMENT
B2: =dms_TradingName -> Powercor Australia
B3: =CONCATENATE("Annual Reporting RIN Response ",CRY) -> Annual Reporting RIN Response 2017
B4: 3.6 QUALITY OF SERVICES
B6: 3.6.5 - QUALITY OF SUPPLY METRICS
D7: Volume
C8: Units | D8: =CRY -> 2017
B9: Over voltage events - due to high voltage injection | C9: number | D9: 1
B10: Customers receiving over-voltage - due to high voltage injection | C10: number | D10: 82
B11: Over voltage events - due to lightning | C11: number | D11: 0
B12: Customers receiving over-voltage - due to lightning | C12: number | D12: 70
B13: Over voltage events - due to voltage regulation or other cause | C13: number | D13: 11
B14: Customers receiving over-voltage - due to voltage regulation or other cause | C14: number | D14: 304
B15: Voltage variations - steady state (zone sub) | C15: number | D15: 2814
B16: Voltage variations - one minute (zone sub) | C16: number | D16: 28
B17: Voltage variations - 10 seconds (zone sub) Min<0.7 | C17: number | D17: 754
B18: Voltage variations - 10 seconds (zone sub) Min<0.8 | C18: number | D18: 298
B19: Voltage variations - 10 seconds (zone sub) Min<0.9 | C19: number | D19: 837
B20: Voltage variations - steady state (feeder) | C20: number | D20: 53290
B21: Voltage variations - % zone subs monitored | C21: (per cent) | D21: 1
B22: Voltage variations - % feeders monitored | C22: (per cent) | D22: 0.95
B24: 3.6.6 - COMPLAINTS - TECHNICAL QUALITY OF SUPPLY
D25: Volume
C26: Units | D26: =CRY -> 2017
B27: 3.6.6.1 - TECHNICAL QUALITY OF SUPPLY
B28: Number of complaints - technical quality of supply | C28: number | D28: 5
B29: 3.6.6.2 - PERCENTAGE OF COMPLAINTS BY CATEGORY
B30: Low voltage supply | C30: (per cent) | D30: 0.4
B31: Voltage dips | C31: (per cent) | D31: 0
B32: Voltage swell | C32: (per cent) | D32: 0.4
B33: Voltage spike (impulsive transient) | C33: (per cent) | D33: 0.2
B34: Waveform distortion | C34: (per cent) | D34: 0
B35: TV or radio interference | C35: (per cent) | D35: 0
B36: Solar related | C36: (per cent) | D36: 0
B37: Noise from appliances | C37: (per cent) | D37: 0
B38: Other | C38: (per cent) | D38: 0
B39: 3.6.6.3 - PERCENTAGE OF COMPLAINTS BY LIKELY CAUSE
B40: Network equipment faulty | C40: (per cent) | D40: 0
B41: Network interference by NSP equipment | C41: (per cent) | D41: 0
B42: Network interference by another customer | C42: (per cent) | D42: 0
B43: Network limitation | C43: (per cent) | D43: 0
B44: Customer internal problem | C44: (per cent) | D44: 0.2
B45: No problem identified | C45: (per cent) | D45: 0.2
B46: Environmental | C46: (per cent) | D46: 0
B47: Other | C47: (per cent) | D47: 0.6
B51: 3.6.7 - CUSTOMER SERVICE METRICS
D52: Volume
C53: Unit | D53: =CRY -> 2017
B54: 3.6.7.1 - TIMELY PROVISIONS OF SERVICES
B55: Number of connections made | C55: number | D55: 89298
B56: Number of connections not made on or before agreed date | C56: number | D56: 2826
B57: 3.6.7.2 - TIMELY REPAIR OF FAULTY STREET LIGHTS
B58: Street lights - average monthly number "out" | C58: number | D58: 575
B59: Street lights - not repaired by "fix by" date | C59: number | D59: 6
B60: Street lights - average number of days to repair | C60: number | D60: 2.91
B61: Total number of street lights | C61: number | D61: 170676
B62: 3.6.7.3 - CALL CENTRE PERFORMANCE
B63: Calls to call centre fault line | C63: number | D63: 226194
B64: Calls to fault line answered within 30 seconds | C64: number | D64: 62417
B65: Calls to fault line - average waiting time before call answered | C65: number | D65: 16
B66: Call centre - number of overload events | C66: number | D66: 0
B67: Percentage of calls abandoned | C67: (per cent) | D67: 0.0071
B68: 3.6.7.4 - NUMBER OF CUSTOMER COMPLAINTS
B69: Complaint - reliability of supply | C69: number | D69: 58
B70: Complaint - technical quality of supply | C70: number | D70: 5
B71: Complaint - administrative process or customer service | C71: number | D71: 24
B72: Complaint - connection or augmentation | C72: number | D72: 153
B73: Complaint - other | C73: number | D73: 38
B74: Total number of complaints | C74: number | D74: 278

Sheet 3.6.8 Network-feeders
B1: =(LOOKUP(dms_Model,dms_Model_List,dms_Worksheet_List)) -> ANNUAL REPORTING STATEMENT
B2: =dms_TradingName -> Powercor Australia
B3: =CONCATENATE("Annual Reporting RIN Response ",CRY) -> Annual Reporting RIN Response 2017
B4: 3.6 QUALITY OF SERVICES
B6: Did the MAIFI parameter of the STPIS apply during the period? | F6: Yes | G6: ** IMPORTANT Please ensure this question is answered correctly. Your response will affect other tables throughout this workbook and will determine which cells are grey and which are input cells.
B10: 3.6.8 - NETWORK FEEDER RELIABILITY
B11: Feeder ID / name | C11: Description of the service area for the feeder | D11: Feeder classification (drop down) | E11: Number of distribution customers | F11: Length of high voltage distribution lines | H11: Maximum demand (MVA) | I11: Energy not supplied (MWh) | K11: Unplanned Outages | P11: Planned Outages | U11: Momentary feeder outages
F12: Overhead | G12: Underground | I12: Unplanned | J12: Planned | K12: Total number of unplanned outages | L12: Unplanned customer minutes off-supply (SAIDI) | N12: Unplanned interruptions (SAIFI) | P12: Total number of planned outages | Q12: Planned customer minutes off-supply (SAIDI) | S12: Planned interruptions (SAIFI) | U12: Total number of momentary feeder outages | V12: Momentary interruptions due to feeder outages (MAIFI)
L13: Including excluded events and MEDs | M13: After removing excluded events and MED | N13: Including excluded events and MEDs | O13: After removing excluded events and MED | Q13: Including MEDs | R13: After removing MED | S13: Including MEDs | T13: After removing MED | V13: Including excluded events and MEDs | W13: After removing excluded events and MED
B14: AC024 | C14: Sunshine CSC | D14: Rural Short | E14: 2 | F14: 1.65943 | G14: 0.071734 | H14: 0.137 | I14: 0 | J14: 0 | K14: 0 | L14: 0 | M14: 0 | N14: 0 | O14: 0 | P14: 0 | Q14: 0 | R14: 0 | S14: 0 | T14: 0 | U14: 0 | V14: 0 | W14: 0
B15: AC025 | C15: Sunshine CSC | D15: Rural Short | E15: 4 | F15: 0.78387 | G15: 1.206274 | H15: 0.137 | I15: 0 | J15: 0.372 | K15: 0 | L15: 0 | M15: 0 | N15: 0 | O15: 0 | P15: 1 | Q15: 228.75 | R15: 228.75 | S15: 1 | T15: 1 | U15: 0 | V15: 0 | W15: 0
B16: AC026 | C16: Sunshine CSC | D16: Rural Short | E16: - | F16: 0.32194 | G16: 0.14679 | H16: 0 | I16: 0 | J16: 0 | K16: 0 | L16: 0 | M16: 0 | N16: 0 | O16: 0 | P16: 0 | Q16: 0 | R16: 0 | S16: 0 | T16: 0 | U16: 0 | V16: 0 | W16: 0
B17: AC031 | C17: Sunshine CSC | D17: Urban | E17: 11 | F17: 3.57008 | G17: 1.168428 | H17: 1.82 | I17: 0.329 | J17: 3.947 | K17: 1 | L17: 20.81818182 | M17: 20.81818182 | N17: 0.09090909091 | O17: 0.09090909091 | P17: 3 | Q17: 250.0909091 | R17: 250.0909091 | S17: 0.2727272727 | T17: 0.2727272727 | U17: 0 | V17: 0 | W17: 0
B18: AC032 | C18: Sunshine CSC | D18: Rural Short | E18: - | F18: 0.35203 | G18: 0.251336 | H18: 0 | I18: 0 | J18: 0 | K18: 0 | L18: 0 | M18: 0 | N18: 0 | O18: 0 | P18: 0 | Q18: 0 | R18: 0 | S18: 0 | T18: 0 | U18: 0 | V18: 0 | W18: 0
B19: AC033 | C19: Sunshine CSC | D19: Urban | E19: - | F19: 0 | G19: 0 | H19: 0 | I19: 0 | J19: 0 | K19: 0 | L19: 0 | M19: 0 | N19: 0 | O19: 0 | P19: 0 | Q19: 0 | R19: 0 | S19: 0 | T19: 0 | U19: 0 | V19: 0 | W19: 0
B20: AL002 | C20: Sunshine CSC | D20: Urban | E20: 288 | F20: 6.5724 | G20: 1.71087 | H20: 3.645 | I20: 0.026 | J20: 0.013 | K20: 0 | L20: 1.090277778 | M20: 1.090277778 | N20: 0.01041666667 | O20: 0.01041666667 | P20: 1 | Q20: 0.5451388889 | R20: 0.5451388889 | S20: 0.003472222222 | T20: 0.003472222222 | U20: 1 | V20: 0.9930555556 | W20: 0.9930555556
B21: AL004 | C21: Sunshine CSC | D21: Urban | E21: - | F21: 0 | G21: 0 | H21: 0 | I21: 0 | J21: 0 | K21: 0 | L21: 0 | M21: 0 | N21: 0 | O21: 0 | P21: 0 | Q21: 0 | R21: 0 | S21: 0 | T21: 0 | U21: 0 | V21: 0 | W21: 0
B22: AL005 | C22: Sunshine CSC | D22: Urban | E22: - | F22: 0 | G22: 0.80469 | H22: 0 | I22: 0 | J22: 0 | K22: 0 | L22: 0 | M22: 0 | N22: 0 | O22: 0 | P22: 0 | Q22: 0 | R22: 0 | S22: 0 | T22: 0 | U22: 0 | V22: 0 | W22: 0
B23: AL006 | C23: Sunshine CSC | D23: Urban | E23: 1964 | F23: 9.76831 | G23: 0.29793 | H23: 4.123 | I23: 0.374 | J23: 0.255 | K23: 2 | L23: 15.85641548 | M23: 15.85641548 | N23: 0.0784114053 | O23: 0.0784114053 | P23: 1 | Q23: 10.81466395 | R23: 10.81466395 | S23: 0.0300407332 | T23: 0.0300407332 | U23: 0 | V23: 0 | W23: 0
B24: AL007 | C24: Sunshine CSC | D24: Urban | E24: 947 | F24: 4.44061 | G24: 1.35722 | H24: 2.47 | I24: 2.248 | J24: 0.073 | K24: 4 | L24: 161.907075 | M24: 161.907075 | N24: 1.145723337 | O24: 1.145723337 | P24: 2 | Q24: 5.279831045 | R24: 5.279831045 | S24: 0.02006335797 | T24: 0.02006335797 | U24: 0 | V24: 0 | W24: 0
B25: AL011 | C25: Sunshine CSC | D25: Urban | E25: 126 | F25: 3.64889 | G25: 0.99923 | H25: 3.844 | I25: 0.505 | J25: 1.145 | K25: 1 | L25: 16.74603175 | M25: 16.74603175 | N25: 0.4206349206 | O25: 0.4206349206 | P25: 3 | Q25: 37.92857143 | R25: 37.92857143 | S25: 0.2063492063 | T25: 0.2063492063 | U25: 0 | V25: 0 | W25: 0
B26: AL012 | C26: Sunshine CSC | D26: Urban | E26: 1358 | F26: 6.3167 | G26: 0.22571 | H26: 2.988 | I26: 4.496 | J26: 0.215 | K26: 6 | L26: 226.0463918 | M26: 226.0463918 | N26: 1.079528719 | O26: 1.079528719 | P26: 2 | Q26: 10.79528719 | R26: 10.79528719 | S26: 0.0412371134 | T26: 0.0412371134 | U26: 0 | V26: 0 | W26: 0
B27: AL013 | C27: Sunshine CSC | D27: Urban | E27: 2 | F27: 0 | G27: 0.84216 | H27: 1.813 | I27: 0 | J27: 0 | K27: 0 | L27: 0 | M27: 0 | N27: 0 | O27: 0 | P27: 0 | Q27: 0 | R27: 0 | S27: 0 | T27: 0 | U27: 0 | V27: 0 | W27: 0
B28: AL014 | C28: Sunshine CSC | D28: Urban | E28: 2233 | F28: 12.14648 | G28: 1.539797 | H28: 5.478 | I28: 0.769 | J28: 1.392 | K28: 6 | L28: 21.48231079 | M28: 21.48231079 | N28: 0.1021047918 | O28: 0.1021047918 | P28: 11 | Q28: 38.88938648 | R28: 38.88938648 | S28: 0.1410658307 | T28: 0.1410658307 | U28: 1 | V28: 1.005373936 | W28: 1.005373936
B29: ART023 | C29: Horsham CSC | D29: Rural Long | E29: 1008 | F29: 220.1217 | G29: 1.958393 | H29: 5.055 | I29: 4.299 | J29: 1.673 | K29: 9 | L29: 102.1577381 | M29: 102.1577381 | N29: 0.3898809524 | O29: 0.3898809524 | P29: 12 | Q29: 39.76388889 | R29: 39.76388889 | S29: 0.09821428571 | T29: 0.09821428571 | U29: 0 | V29: 0 | W29: 0
B30: ART031 | C30: Horsham CSC | D30: Rural Short | E30: 1464 | F30: 182.38322 | G30: 0.56511 | H30: 5.094 | I30: 0.552 | J30: 0.049 | K30: 18 | L30: 19.20286885 | M30: 19.20286885 | N30: 0.1147540984 | O30: 0.1147540984 | P30: 2 | Q30: 1.68989071 | R30: 1.68989071 | S30: 0.002732240437 | T30: 0.002732240437 | U30: 0 | V30: 0 | W30: 0
B31: ART033 | C31: Horsham CSC | D31: Rural Long | E31: 1916 | F31: 914.60496 | G31: 1.03123 | H31: 4.581 | I31: 5.32 | J31: 6.183 | K31: 67 | L31: 207.0010438 | M31: 207.0010438 | N31: 1.972860125 | O31: 1.972860125 | P31: 39 | Q31: 240.5866388 | R31: 240.5866388 | S31: 0.7259916493 | T31: 0.7259916493 | U31: 1 | V31: 1 | W31: 1
B32: ART034 | C32: Horsham CSC | D32: Rural Short | E32: 2333 | F32: 25.69059 | G32: 1.02332 | H32: 5.331 | I32: 0.059 | J32: 0.174 | K32: 2 | L32: 1.532361766 | M32: 1.532361766 | N32: 0.01243034719 | O32: 0.01243034719 | P32: 8 | Q32: 4.511787398 | R32: 4.511787398 | S32: 0.1273039006 | T32: 0.1273039006 | U32: 1 | V32: 0.9995713673 | W32: 0.9995713673
B33: BAN001 | C33: Ballarat CSC | D33: Urban | E33: 2677 | F33: 11.80217 | G33: 5.81089 | H33: 8.846 | I33: 2.134 | J33: 0.076 | K33: 4 | L33: 33.99327606 | M33: 33.99327606 | N33: 0.1217781098 | O33: 0.1217781098 | P33: 2 | Q33: 1.214045573 | R33: 1.214045573 | S33: 0.03100485618 | T33: 0.03100485618 | U33: 2 | V33: 1.998879343 | W33: 1.998879343
B34: BAN002 | C34: Ballarat CSC | D34: Urban | E34: 1062 | F34: 16.74848 | G34: 2.811817 | H34: 9.636 | I34: 13.427 | J34: 2.175 | K34: 3 | L34: 161.2749529 | M34: 161.2749529 | N34: 1.109227872 | O34: 1.109227872 | P34: 2 | Q34: 26.12335217 | R34: 26.12335217 | S34: 0.1713747646 | T34: 0.1713747646 | U34: 5 | V34: 5.080979284 | W34: 5.080979284
B35: BAN003 | C35: Ballarat CSC | D35: Urban | E35: 509 | F35: 7.75526 | G35: 1.693346 | H35: 11.452 | I35: 1.193 | J35: 0 | K35: 2 | L35: 9.628683694 | M35: 9.628683694 | N35: 0.0884086444 | O35: 0.0884086444 | P35: 0 | Q35: 0 | R35: 0 | S35: 0 | T35: 0 | U35: 1 | V35: 1 | W35: 1
B36: BAN004 | C36: Ballarat CSC | D36: Urban | E36: 1212 | F36: 11.2327 | G36: 5.61525 | H36: 8.767 | I36: 3.694 | J36: 0.021 | K36: 2 | L36: 53.87046205 | M36: 53.87046205 | N36: 0.99669967 | O36: 0.99669967 | P36: 1 | Q36: 0.3011551155 | R36: 0.3011551155 | S36: 0.0008250825083 | T36: 0.0008250825083 | U36: 2 | V36: 2.009075908 | W36: 2.009075908
B37: BAN005 | C37: Ballarat CSC | D37: Urban | E37: 1713 | F37: 7.85926 | G37: 1.20855 | H37: 8.372 | I37: 11.341 | J37: 4.966 | K37: 12 | L37: 194.6339755 | M37: 194.6339755 | N37: 1.907764156 | O37: 1.907764156 | P37: 9 | Q37: 85.21891419 | R37: 85.21891419 | S37: 0.3327495622 | T37: 0.3327495622 | U37: 2 | V37: 1.990659661 | W37: 1.990659661
B38: BAN006 | C38: Ballarat CSC | D38: Rural Long | E38: 5023 | F38: 412.4851 | G38: 5.75994 | H38: 8.767 | I38: 19.331 | J38: 0.37 | K38: 68 | L38: 281.7885726 | M38: 281.7885726 | N38: 1.785387219 | O38: 1.785387219 | P38: 20 | Q38: 5.394783994 | R38: 5.394783994 | S38: 0.07505474816 | T38: 0.07505474816 | U38: 3 | V38: 3.002389011 | W38: 3.002389011
B39: BAN007 | C39: Ballarat CSC | D39: Rural Short | E39: 4508 | F39: 32.75708 | G39: 3.32077 | H39: 8.846 | I39: 1.504 | J39: 0.242 | K39: 14 | L39: 23.48380657 | M39: 23.48380657 | N39: 0.2087400177 | O39: 0.2087400177 | P39: 2 | Q39: 3.776175688 | R39: 3.776175688 | S39: 0.01131322094 | T39: 0.01131322094 | U39: 0 | V39: 0 | W39: 0
B40: BAN008 | C40: Ballarat CSC | D40: Rural Long | E40: 3546 | F40: 245.71859 | G40: 5.574407 | H40: 9.32 | I40: 8.842 | J40: 10.468 | K40: 52 | L40: 145.1283136 | M40: 140.1486182 | N40: 2.01212634 | O40: 1.988155668 | P40: 44 | Q40: 171.8045685 | R40: 171.8045685 | S40: 0.7625493514 | T40: 0.7625493514 | U40: 0 | V40: 0 | W40: 0
B41: BAN009 | C41: Ballarat CSC | D41: Rural Long | E41: 3174 | F41: 358.7358 | G41: 5.522466 | H41: 9.122 | I41: 46.653 | J41: 4.514 | K41: 37 | L41: 655.9171393 | M41: 284.7145558 | N41: 3.194706994 | O41: 2.200693132 | P41: 19 | Q41: 63.46628859 | R41: 63.46628859 | S41: 0.2753623188 | T41: 0.2753623188 | U41: 4 | V41: 3.994643982 | W41: 2.008506616
B42: BAN011 | C42: Ballarat CSC | D42: Rural Long | E42: 3815 | F42: 570.94545 | G42: 26.855437 | H42: 10.347 | I42: 36.944 | J42: 3.165 | K42: 125 | L42: 753.6450852 | M42: 685.5095675 | N42: 5.414416776 | O42: 5.196592398 | P42: 77 | Q42: 64.55648755 | R42: 64.55648755 | S42: 0.5119266055 | T42: 0.5119266055 | U42: 5 | V42: 5.001310616 | W42: 5.001310616
B43: BAN013 | C43: Ballarat CSC | D43: Urban | E43: 544 | F43: 4.95542 | G43: 1.670043 | H43: 7.543 | I43: 0.654 | J43: 0 | K43: 1 | L43: 11.29779412 | M43: 11.29779412 | N43: 0.1084558824 | O43: 0.1084558824 | P43: 0 | Q43: 0 | R43: 0 | S43: 0 | T43: 0 | U43: 0 | V43: 0 | W43: 0
B44: BAN015 | C44: Ballarat CSC | D44: Rural Short | E44: 5025 | F44: 48.24036 | G44: 6.279962 | H44: 7.424 | I44: 5.181 | J44: 0.415 | K44: 16 | L44: 98.60855721 | M44: 98.21552239 | N44: 1.250149254 | O44: 1.249353234 | P44: 6 | Q44: 7.893731343 | R44: 7.893731343 | S44: 0.05592039801 | T44: 0.05592039801 | U44: 2 | V44: 2.007363184 | W44: 2.007363184
B45: BAS011 | C45: Ballarat CSC | D45: Rural Long | E45: 3604 | F45: 992.89574 | G45: 11.4555 | H45: 10.899 | I45: 14.567 | J45: 4.541 | K45: 75 | L45: 311.4808546 | M45: 311.4808546 | N45: 1.62791343 | O45: 1.62791343 | P45: 69 | Q45: 97.09628191 | R45: 97.09628191 | S45: 1.632075472 | T45: 1.632075472 | U45: 2 | V45: 1.985571587 | W45: 1.985571587
B46: BAS012 | C46: Ballarat CSC | D46: Urban | E46: 2298 | F46: 8.02561 | G46: 3.22436 | H46: 8.175 | I46: 6.19 | J46: 0.063 | K46: 7 | L46: 113.810705 | M46: 5.749347258 | N46: 1.082245431 | O46: 0.0818102698 | P46: 3 | Q46: 1.16362054 | R46: 1.16362054 | S46: 0.007832898172 | T46: 0.007832898172 | U46: 1 | V46: 0.999564839 | W46: 0.999564839
B47: BAS013 | C47: Ballarat CSC | D47: Rural Short | E47: 4368 | F47: 41.4149 | G47: 9.722584 | H47: 10.939 | I47: 19.511 | J47: 4.769 | K47: 21 | L47: 231.3624084 | M47: 25.39697802 | N47: 1.148122711 | O47: 0.1350732601 | P47: 12 | Q47: 56.54716117 | R47: 56.54716117 | S47: 0.1822344322 | T47: 0.1822344322 | U47: 4 | V47: 3.995650183 | W47: 2.983287546
B48: BAS014 | C48: Ballarat CSC | D48: Urban | E48: 2638 | F48: 12.13162 | G48: 2.18233 | H48: 8.451 | I48: 5.363 | J48: 0.007 | K48: 11 | L48: 85.71645186 | M48: 85.71645186 | N48: 1.23388931 | O48: 1.23388931 | P48: 1 | Q48: 0.1194086429 | R48: 0.1194086429 | S48: 0.02388172858 | T48: 0.02388172858 | U48: 0 | V48: 0 | W48: 0
B49: BAS021 | C49: Ballarat CSC | D49: Rural Long | E49: 5670 | F49: 550.91818 | G49: 14.240716 | H49: 10.544 | I49: 5.444 | J49: 8.473 | K49: 64 | L49: 80.1978836 | M49: 68.51534392 | N49: 1.082539683 | O49: 1.050088183 | P49: 110 | Q49: 124.8171076 | R49: 124.8171076 | S49: 0.5342151675 | T49: 0.5342151675 | U49: 0 | V49: 0 | W49: 0
B50: BAS022 | C50: Ballarat CSC | D50: Rural Long | E50: 6613 | F50: 541.65288 | G50: 12.255593 | H50: 11.215 | I50: 12.799 | J50: 7.1 | K50: 82 | L50: 173.5445335 | M50: 67.79812491 | N50: 1.495992742 | O50: 0.9032209285 | P50: 85 | Q50: 96.26765462 | R50: 96.26765462 | S50: 0.6450929986 | T50: 0.6450929986 | U50: 1 | V50: 0.9922879177 | W50: 0.9922879177
B51: BAS023 | C51: Ballarat CSC | D51: Rural Short | E51: 4253 | F51: 113.01955 | G51: 3.50509 | H51: 9.122 | I51: 10.825 | J51: 1.376 | K51: 26 | L51: 171.1175641 | M51: 170.9849518 | N51: 1.334822478 | O51: 1.334352222 | P51: 8 | Q51: 21.74653186 | R51: 21.74653186 | S51: 0.06677639313 | T51: 0.06677639313 | U51: 1 | V51: 0.9941217964 | W51: 0.9941217964
B52: BAS024 | C52: Ballarat CSC | D52: Rural Short | E52: 4529 | F52: 17.66686 | G52: 18.082641 | H52: 10.189 | I52: 1.231 | J52: 0.991 | K52: 17 | L52: 14.71428571 | M52: 14.71428571 | N52: 0.1689114595 | O52: 0.1689114595 | P52: 4 | Q52: 11.8425701 | R52: 11.8425701 | S52: 0.05961580923 | T52: 0.05961580923 | U52: 1 | V52: 1.024729521 | W52: 1.024729521
B53: BAS034 | C53: Ballarat CSC | D53: Urban | E53: 3449 | F53: 19.47158 | G53: 1.45737 | H53: 6.871 | I53: 0.615 | J53: 1.527 | K53: 9 | L53: 11.65352276 | M53: 10.02696434 | N53: 0.1032183242 | O53: 0.08727167295 | P53: 6 | Q53: 28.92983473 | R53: 28.92983473 | S53: 0.100318933 | T53: 0.100318933 | U53: 0 | V53: 0 | W53: 0
B54: BBD013 | C54: Mildura CSC | D54: Rural Short | E54: 99 | F54: 82.95043 | G54: 0.428363 | H54: 11.097 | I54: 37.792 | J54: 4.465 | K54: 11 | L54: 806.8484848 | M54: 806.8484848 | N54: 3.04040404 | O54: 3.04040404 | P54: 5 | Q54: 95.32323232 | R54: 95.32323232 | S54: 0.404040404 | T54: 0.404040404 | U54: 11 | V54: 15.67676768 | W54: 12.82828283
B55: BBD014 | C55: Mildura CSC | D55: Rural Long | E55: 95 | F55: 210.28444 | G55: 1.1547 | H55: 9.162 | I55: 10.392 | J55: 0 | K55: 13 | L55: 213.3894737 | M55: 213.3894737 | N55: 0.4842105263 | O55: 0.4842105263 | P55: 0 | Q55: 0 | R55: 0 | S55: 0 | T55: 0 | U55: 8 | V55: 9.136842105 | W55: 9.136842105
B56: BBD021 | C56: Mildura CSC | D56: Rural Short | E56: 210 | F56: 81.78114 | G56: 0.482403 | H56: 6.003 | I56: 3.662 | J56: 0 | K56: 3 | L56: 100.9380952 | M56: 100.9380952 | N56: 0.8571428571 | O56: 0.8571428571 | P56: 0 | Q56: 0 | R56: 0 | S56: 0 | T56: 0 | U56: 7 | V56: 6.966666667 | W56: 6.966666667
B57: BBD022 | C57: Mildura CSC | D57: Urban | E57: 5 | F57: 4.26702 | G57: 0.356749 | H57: 5.252 | I57: 0.524 | J57: 0 | K57: 1 | L57: 21.4 | M57: 21.4 | N57: 0.2 | O57: 0.2 | P57: 0 | Q57: 0 | R57: 0 | S57: 0 | T57: 0 | U57: 7 | V57: 7 | W57: 7
B58: BET001 | C58: Bendigo CSC | D58: Rural Long | E58: 5036 | F58: 415.05508 | G58: 11.0634 | H58: 13.585 | I58: 26.132 | J58: 6.013 | K58: 31 | L58: 393.2992454 | M58: 60.81274821 | N58: 1.619340747 | O58: 0.2627084988 | P58: 68 | Q58: 90.50297855 | R58: 90.50297855 | S58: 0.3862192216 | T58: 0.3862192216 | U58: 0 | V58: 0 | W58: 0
B59: BET002 | C59: Bendigo CSC | D59: Urban | E59: 3862 | F59: 17.48657 | G59: 0.61165 | H59: 12.23 | I59: 9.976 | J59: 5.656 | K59: 17 | L59: 149.2260487 | M59: 149.1965303 | N59: 1.484722941 | O59: 1.484464008 | P59: 25 | Q59: 84.60124288 | R59: 84.60124288 | S59: 0.3257379596 | T59: 0.3257379596 | U59: 5 | V59: 5.98058001 | W59: 5.98058001
B60: BET003 | C60: Bendigo CSC | D60: Urban | E60: 301 | F60: 10.99884 | G60: 1.04232 | H60: 3.665 | I60: 0 | J60: 0.01 | K60: 0 | L60: 0 | M60: 0 | N60: 0 | O60: 0 | P60: 1 | Q60: 0.4418604651 | R60: 0.4418604651 | S60: 0.003322259136 | T60: 0.003322259136 | U60: 0 | V60: 0 | W60: 0
B61: BET004 | C61: Bendigo CSC | D61: Rural Short | E61: 3155 | F61: 192.69565 | G61: 5.0221 | H61: 9.959 | I61: 8.723 | J61: 0.096 | K61: 34 | L61: 155.1438986 | M61: 137.2561014 | N61: 1.317591125 | O61: 1.301426307 | P61: 11 | Q61: 1.713787639 | R61: 1.713787639 | S61: 0.04912836767 | T61: 0.04912836767 | U61: 2 | V61: 2.001267829 | W61: 2.001267829
B62: BET005 | C62: Bendigo CSC | D62: Rural Long | E62: 3362 | F62: 329.02656 | G62: 6.92097 | H62: 10.836 | I62: 2.594 | J62: 4.344 | K62: 46 | L62: 41.48483046 | M62: 23.78316478 | N62: 0.5675193337 | O62: 0.5514574658 | P62: 13 | Q62: 69.46044021 | R62: 69.46044021 | S62: 0.2676977989 | T62: 0.2676977989 | U62: 3 | V62: 3.015466984 | W62: 2.004759072
B63: BET006 | C63: Bendigo CSC | D63: Rural Short | E63: 4518 | F63: 63.10464 | G63: 5.070813 | H63: 12.867 | I63: 1.021 | J63: 7.472 | K63: 14 | L63: 12.05090748 | M63: 5.120849934 | N63: 0.04869411244 | O63: 0.04316069057 | P63: 21 | Q63: 88.15670651 | R63: 88.15670651 | S63: 0.2992474546 | T63: 0.2992474546 | U63: 3 | V63: 2.996237273 | W63: 2.996237273
B64: BET007 | C64: Bendigo CSC | D64: Rural Short | E64: 3340 | F64: 136.51084 | G64: 3.27376 | H64: 7.211 | I64: 10.973 | J64: 2.667 | K64: 18 | L64: 261.2625749 | M64: 261.2625749 | N64: 1.960479042 | O64: 1.960479042 | P64: 40 | Q64: 63.5005988 | R64: 63.5005988 | S64: 0.274251497 | T64: 0.274251497 | U64: 1 | V64: 1.002994012 | W64: 1.002994012
B65: BET008 | C65: Bendigo CSC | D65: Urban | E65: 2350 | F65: 13.4585 | G65: 3.515603 | H65: 9.92 | I65: 0.187 | J65: 0.278 | K65: 2 | L65: 3.092340426 | M65: 3.092340426 | N65: 0.03276595745 | O65: 0.03276595745 | P65: 2 | Q65: 4.585106383 | R65: 4.585106383 | S65: 0.03063829787 | T65: 0.03063829787 | U65: 0 | V65: 0 | W65: 0
B66: BGO011 | C66: Bendigo CSC | D66: Urban | E66: 579 | F66: 0.98652 | G66: 3.996103 | H66: 4.621 | I66: 0.293 | J66: 0.329 | K66: 1 | L66: 10.94127807 | M66: 8.592400691 | N66: 0.9965457686 | O66: 0.9948186528 | P66: 3 | Q66: 12.30397237 | R66: 12.30397237 | S66: 0.06390328152 | T66: 0.06390328152 | U66: 0 | V66: 0 | W66: 0
B67: BGO012 | C67: Bendigo CSC | D67: Urban | E67: 2458 | F67: 11.33141 | G67: 1.585663 | H67: 7.25 | I67: 3.936 | J67: 1.021 | K67: 6 | L67: 87.226607 | M67: 87.226607 | N67: 2.034987795 | O67: 2.034987795 | P67: 5 | Q67: 22.61960944 | R67: 22.61960944 | S67: 0.1126932465 | T67: 0.1126932465 | U67: 3 | V67: 3.006916192 | W67: 3.006916192
B68: BGO013 | C68: Bendigo CSC | D68: Rural Short | E68: 3850 | F68: 175.74069 | G68: 14.06599 | H68: 10.358 | I68: 9.559 | J68: 1.636 | K68: 18 | L68: 174.2524675 | M68: 14.78909091 | N68: 2.045454545 | O68: 1.031948052 | P68: 18 | Q68: 29.81350649 | R68: 29.81350649 | S68: 0.1246753247 | T68: 0.1246753247 | U68: 1 | V68: 1.001818182 | W68: 1.001818182
B69: BGO021 | C69: Bendigo CSC | D69: Urban | E69: 259 | F69: 0.03822 | G69: 2.906863 | H69: 0 | I69: 0 | J69: 0 | K69: 0 | L69: 0 | M69: 0 | N69: 0 | O69: 0 | P69: 0 | Q69: 0 | R69: 0 | S69: 0 | T69: 0 | U69: 0 | V69: 0 | W69: 0
B70: BGO022 | C70: Bendigo CSC | D70: Urban | E70: 4429 | F70: 18.68662 | G70: 2.557243 | H70: 9.242 | I70: 0.674 | J70: 0.016 | K70: 8 | L70: 13.46353579 | M70: 13.46353579 | N70: 0.1029577783 | O70: 0.1029577783 | P70: 1 | Q70: 0.3273876722 | R70: 0.3273876722 | S70: 0.03273876722 | T70: 0.03273876722 | U70: 2 | V70: 2.004515692 | W70: 2.004515692
B71: BGO023 | C71: Bendigo CSC | D71: Rural Long | E71: 2776 | F71: 547.61918 | G71: 4.0704 | H71: 11.752 | I71: 4.317 | J71: 4.054 | K71: 51 | L71: 47.68731988 | M71: 47.67579251 | N71: 1.048270893 | O71: 1.036743516 | P71: 19 | Q71: 44.77845821 | R71: 44.77845821 | S71: 0.2835014409 | T71: 0.2835014409 | U71: 1 | V71: 0.9963976945 | W71: 0.9963976945
B72: BGO024 | C72: Bendigo CSC | D72: Urban | E72: 590 | F72: 0 | G72: 5.93377 | H72: 9.8 | I72: 0.338 | J72: 0.009 | K72: 3 | L72: 6.803389831 | M72: 6.803389831 | N72: 1.059322034 | O72: 1.059322034 | P72: 1 | Q72: 0.186440678 | R72: 0.186440678 | S72: 0.003389830508 | T72: 0.003389830508 | U72: 1 | V72: 0.9847457627 | W72: 0.9847457627
B73: BLT016 | C73: Sunshine CSC | D73: Urban | E73: 601 | F73: 10.18217 | G73: 7.17441 | H73: 11.61 | I73: 0.186 | J73: 1.022 | K73: 1 | L73: 2.306156406 | M73: 2.306156406 | N73: 0.01164725458 | O73: 0.01164725458 | P73: 2 | Q73: 12.68552413 | R73: 12.68552413 | S73: 0.04825291181 | T73: 0.04825291181 | U73: 0 | V73: 0 | W73: 0
B74: BLT017 | C74: Sunshine CSC | D74: Urban | E74: 982 | F74: 10.66364 | G74: 3.28861 | H74: 7.306 | I74: 5.024 | J74: 0.185 | K74: 8 | L74: 98.54684318 | M74: 98.54684318 | N74: 0.4714867617 | O74: 0.4714867617 | P74: 5 | Q74: 3.624236253 | R74: 3.624236253 | S74: 0.02240325866 | T74: 0.02240325866 | U74: 1 | V74: 0.9989816701 | W74: 0.9989816701
B75: BLT019 | C75: # | D75: Urban | E75: - | F75: 3.92467 | G75: 0.043243 | H75: 12.795 | I75: 0 | J75: 0 | K75: 0 | L75: 0 | M75: 0 | N75: 0 | O75: 0 | P75: 0 | Q75: 0 | R75: 0 | S75: 0 | T75: 0 | U75: 0 | V75: 0 | W75: 0
B76: BLT020 | C76: Sunshine CSC | D76: Urban | E76: 65 | F76: 7.37509 | G76: 0.850047 | H76: 6.753 | I76: 2.433 | J76: 0 | K76: 2 | L76: 48.86153846 | M76: 48.86153846 | N76: 0.3538461538 | O76: 0.3538461538 | P76: 0 | Q76: 0 | R76: 0 | S76: 0 | T76: 0 | U76: 0 | V76: 0 | W76: 0
B77: BLT021 | C77: Sunshine CSC | D77: Urban | E77: 1061 | F77: 10.15944 | G77: 1.07338 | H77: 5.213 | I77: 0.238 | J77: 0.49 | K77: 3 | L77: 6.49198869 | M77: 6.49198869 | N77: 0.01885014138 | O77: 0.01885014138 | P77: 4 | Q77: 13.34778511 | R77: 13.34778511 | S77: 0.04052780396 | T77: 0.04052780396 | U77: 2 | V77: 2 | W77: 2
B78: BLT022 | C78: Sunshine CSC | D78: Urban | E78: 1333 | F78: 12.4001 | G78: 4.89928 | H78: 5.252 | I78: 4.234 | J78: 2.042 | K78: 14 | L78: 99.39084771 | M78: 99.39084771 | N78: 2.411102776 | O78: 2.411102776 | P78: 6 | Q78: 47.92948237 | R78: 47.92948237 | S78: 0.09977494374 | T78: 0.09977494374 | U78: 0 | V78: 0 | W78: 0
B79: BLT023 | C79: # | D79: Urban | E79: - | F79: 3.50547 | G79: 1.010012 | H79: 13.901 | I79: 0 | J79: 0 | K79: 0 | L79: 0 | M79: 0 | N79: 0 | O79: 0 | P79: 0 | Q79: 0 | R79: 0 | S79: 0 | T79: 0 | U79: 0 | V79: 0 | W79: 0
B80: BLT030 | C80: Sunshine CSC | D80: Urban | E80: 2248 | F80: 10.2633 | G80: 0.14731 | H80: 5.331 | I80: 2.657 | J80: 0.171 | K80: 8 | L80: 79.43594306 | M80: 79.43594306 | N80: 1.171263345 | O80: 1.171263345 | P80: 2 | Q80: 5.102313167 | R80: 5.102313167 | S80: 0.02402135231 | T80: 0.02402135231 | U80: 0 | V80: 0 | W80: 0
B81: BLT031 | C81: Sunshine CSC | D81: Urban | E81: 1159 | F81: 3.06804 | G81: 1.5179 | H81: 3.515 | I81: 1.365 | J81: 0.103 | K81: 3 | L81: 63.16566005 | M81: 63.16566005 | N81: 1.064710958 | O81: 1.064710958 | P81: 1 | Q81: 4.788610871 | R81: 4.788610871 | S81: 0.03192407248 | T81: 0.03192407248 | U81: 0 | V81: 0 | W81: 0
B82: BLT19-BLT23 | C82: Sunshine CSC | D82: Urban | E82: 1 | H82: 26.696 | I82: 0 | J82: 0 | K82: 0 | L82: 0 | M82: 0 | N82: 0 | O82: 0 | P82: 0 | Q82: 0 | R82: 0 | S82: 0 | T82: 0 | U82: 0 | V82: 0 | W82: 0
B83: BMH003 | C83: Sunshine CSC | D83: Rural Long | E83: 2874 | F83: 319.97201 | G83: 3.6709 | H83: 5.344 | I83: 3.136 | J83: 14.113 | K83: 43 | L83: 65.85281837 | M83: 64.94258873 | N83: 1.231732777 | O83: 1.222338205 | P83: 40 | Q83: 296.3263744 | R83: 296.3263744 | S83: 1.181280445 | T83: 1.181280445 | U83: 1 | V83: 0.9888656924 | W83: 0.9888656924
B84: BMH004 | C84: Sunshine CSC | D84: Rural Short | E84: 3337 | F84: 23.80162 | G84: 8.28346 | H84: 6.349 | I84: 4.081 | J84: 1.156 | K84: 10 | L84: 108.4602937 | M84: 108.4602937 | N84: 1.084806713 | O84: 1.084806713 | P84: 5 | Q84: 30.73059634 | R84: 30.73059634 | S84: 0.1735091399 | T84: 0.1735091399 | U84: 3 | V84: 2.977225052 | W84: 2.977225052
B85: BMH005 | C85: Sunshine CSC | D85: Rural Short | E85: 4032 | F85: 62.94498 | G85: 9.63161 | H85: 10.207 | I85: 1.802 | J85: 2.379 | K85: 13 | L85: 25.8015873 | M85: 25.8015873 | N85: 1.078125 | O85: 1.078125 | P85: 14 | Q85: 34.06597222 | R85: 34.06597222 | S85: 0.1793154762 | T85: 0.1793154762 | U85: 1 | V85: 0.9833829365 | W85: 0.9833829365
B86: BMH006 | C86: Sunshine CSC | D86: Rural Long | E86: 1587 | F86: 228.21193 | G86: 19.07241 | H86: 8.278 | I86: 27.833 | J86: 6.296 | K86: 29 | L86: 438.2413359 | M86: 393.6572149 | N86: 4.130434783 | O86: 3.289224953 | P86: 16 | Q86: 99.12539382 | R86: 99.12539382 | S86: 0.3957151859 | T86: 0.3957151859 | U86: 2 | V86: 1.988657845 | W86: 1.988657845
B87: CDN001 | C87: Warrnambool CSC | D87: Rural Long | E87: 1764 | F87: 288.91696 | G87: 0.10176 | H87: 7.464 | I87: 27.006 | J87: 12.522 | K87: 46 | L87: 537.1938776 | M87: 76.91666667 | N87: 1.652494331 | O87: 1.301020408 | P87: 23 | Q87: 249.0867347 | R87: 249.0867347 | S87: 1.392857143 | T87: 1.392857143 | U87: 1 | V87: 1.000566893 | W87: 1.000566893
B88: CDN002 | C88: Warrnambool CSC | D88: Rural Long | E88: 513 | F88: 203.66585 | G88: 0.10248 | H88: 2.291 | I88: 7.412 | J88: 2.979 | K88: 25 | L88: 573.0682261 | M88: 42.21442495 | N88: 0.7699805068 | O88: 0.3489278752 | P88: 27 | Q88: 230.288499 | R88: 230.288499 | S88: 1.212475634 | T88: 1.212475634 | U88: 0 | V88: 0 | W88: 0
B89: CDN003 | C89: Warrnambool CSC | D89: Urban | E89: 1665 | F89: 15.98886 | G89: 0.08382 | H89: 5.055 | I89: 0.174 | J89: 3.184 | K89: 2 | L89: 5.67027027 | M89: 5.67027027 | N89: 0.04864864865 | O89: 0.04864864865 | P89: 2 | Q89: 104.0654655 | R89: 104.0654655 | S89: 1.00960961 | T89: 1.00960961 | U89: 0 | V89: 0 | W89: 0
B90: CDN004 | C90: Warrnambool CSC | D90: Rural Long | E90: 782 | F90: 383.394 | G90: 0.17777 | H90: 2.251 | I90: 1.121 | J90: 5.976 | K90: 41 | L90: 98.60869565 | M90: 98.60869565 | N90: 0.6432225064 | O90: 0.6432225064 | P90: 42 | Q90: 525.5012788 | R90: 525.5012788 | S90: 2.196930946 | T90: 2.196930946 | U90: 0 | V90: 0 | W90: 0
B91: CDN006 | C91: Warrnambool CSC | D91: Rural Long | E91: 994 | F91: 433.3291 | G91: 0.25638 | H91: 3.357 | I91: 5.015 | J91: 7.512 | K91: 32 | L91: 283.8259557 | M91: 283.8259557 | N91: 3.544265594 | O91: 3.544265594 | P91: 9 | Q91: 425.1348089 | R91: 425.1348089 | S91: 1.497987928 | T91: 1.497987928 | U91: 0 | V91: 0 | W91: 0
B92: CHA003 | C92: Bendigo CSC | D92: Rural Short | E92: 1149 | F92: 69.53103 | G92: 1.02005 | H92: 4.065 | I92: 1.021 | J92: 10.46 | K92: 22 | L92: 44.48563969 | M92: 44.41427328 | N92: 0.3385552654 | O92: 0.3376849434 | P92: 32 | Q92: 455.9199304 | R92: 455.9199304 | S92: 1.778067885 | T92: 1.778067885 | U92: 1 | V92: 0.9878154917 | W92: 0.9878154917
B93: CHA005 | C93: Bendigo CSC | D93: Rural Long | E93: 1333 | F93: 303.37563 | G93: 0.26232 | H93: 5.644 | I93: 3.217 | J93: 21.738 | K93: 69 | L93: 82.16579145 | M93: 80.28732183 | N93: 0.5648912228 | O93: 0.5633908477 | P93: 63 | Q93: 555.2393098 | R93: 555.2393098 | S93: 2.103525881 | T93: 2.103525881 | U93: 3 | V93: 3.007501875 | W93: 3.007501875
B94: CHA006 | C94: Bendigo CSC | D94: Rural Long | E94: 1859 | F94: 895.75968 | G94: 0.01245 | H94: 8.041 | I94: 5.267 | J94: 8.052 | K94: 61 | L94: 209.1011296 | M94: 112.4185046 | N94: 1.124260355 | O94: 0.9757934373 | P94: 149 | Q94: 319.6681011 | R94: 319.6681011 | S94: 1.372781065 | T94: 1.372781065 | U94: 3 | V94: 2.996234535 | W94: 1.998924153
B95: CHM011 | C95: Horsham CSC | D95: Rural Long | E95: 1533 | F95: 810.12547 | G95: 0.10737 | H95: 3.797 | I95: 4.745 | J95: 0.743 | K95: 48 | L95: 245.9967384 | M95: 245.9967384 | N95: 1.924983692 | O95: 1.924983692 | P95: 10 | Q95: 38.49902153 | R95: 38.49902153 | S95: 0.2100456621 | T95: 0.2100456621 | U95: 5 | V95: 5.005218526 | W95: 5.005218526
B96: CLC001 | C96: Ballarat CSC | D96: Urban | E96: 1676 | F96: 8.3909 | G96: 1.16797 | H96: 6.082 | I96: 0.097 | J96: 0.155 | K96: 1 | L96: 2.386038186 | M96: 1.725536993 | N96: 0.03937947494 | O96: 0.03878281623 | P96: 9 | Q96: 3.822195704 | R96: 3.822195704 | S96: 0.01909307876 | T96: 0.01909307876 | U96: 1 | V96: 1 | W96: 1
B97: CLC002 | C97: Ballarat CSC | D97: Urban | E97: 2916 | F97: 15.33839 | G97: 0.98716 | H97: 7.345 | I97: 0.472 | J97: 0.376 | K97: 4 | L97: 8.709533608 | M97: 8.610082305 | N97: 0.1052812071 | O97: 0.1049382716 | P97: 16 | Q97: 6.93175583 | R97: 6.93175583 | S97: 0.08813443073 | T97: 0.08813443073 | U97: 2 | V97: 2.003429355 | W97: 2.003429355
B98: CLC003 | C98: Ballarat CSC | D98: Rural Long | E98: 1550 | F98: 529.29147 | G98: 0.31992 | H98: 10.86 | I98: 18.763 | J98: 27.325 | K98: 47 | L98: 202.3916129 | M98: 198.9251613 | N98: 3.342580645 | O98: 3.338709677 | P98: 77 | Q98: 294.7529032 | R98: 294.7529032 | S98: 1.147096774 | T98: 1.147096774 | U98: 2 | V98: 1.997419355 | W98: 1.997419355
B99: CLC004 | C99: Ballarat CSC | D99: Rural Long | E99: 2216 | F99: 219.23739 | G99: 2.27745 | H99: 6.95 | I99: 1.73 | J99: 11.181 | K99: 42 | L99: 34.10785199 | M99: 33.14936823 | N99: 0.2355595668 | O99: 0.2328519856 | P99: 62 | Q99: 220.4593863 | R99: 220.4593863 | S99: 0.9607400722 | T99: 0.9607400722 | U99: 2 | V99: 2.012635379 | W99: 2.012635379
B100: CLC005 | C100: Ballarat CSC | D100: Rural Short | E100: 2189 | F100: 69.52904 | G100: 15.869867 | H100: 10.149 | I100: 37.534 | J100: 14.872 | K100: 18 | L100: 944.6582915 | M100: 565.3896757 | N100: 5.554134308 | O100: 4.556875286 | P100: 24 | Q100: 374.3156693 | R100: 374.3156693 | S100: 1.274554591 | T100: 1.274554591 | U100: 3 | V100: 2.997259022 | W100: 2.997259022
B101: CLC006 | C101: Ballarat CSC | D101: Rural Long | E101: 2719 | F101: 509.84777 | G101: 15.060287 | H101: 7.582 | I101: 31.942 | J101: 19.65 | K101: 68 | L101: 592.7561604 | M101: 295.9955866 | N101: 2.643251195 | O101: 1.635159985 | P101: 49 | Q101: 364.6568591 | R101: 364.6568591 | S101: 1.064361898 | T101: 1.064361898 | U101: 4 | V101: 4.000367782 | W101: 3.000735565
B102: CLC007 | C102: Ballarat CSC | D102: Rural Long | E102: 3408 | F102: 356.29507 | G102: 10.210813 | H102: 11.334 | I102: 15.723 | J102: 22.573 | K102: 58 | L102: 339.9606808 | M102: 175.5815728 | N102: 2.851819249 | O102: 2.077464789 | P102: 122 | Q102: 488.0610329 | R102: 488.0610329 | S102: 2.604166667 | T102: 2.604166667 | U102: 4 | V102: 4.014964789 | W102: 4.014964789
B103: CME014 | C103: Shepparton CSC | D103: Rural Short | E103: 3509 | F103: 91.78885 | G103: 8.53001 | H103: 9.833 | I103: 9.594 | J103: 1.696 | K103: 34 | L103: 318.4442861 | M103: 217.1194072 | N103: 4.077514962 | O103: 3.074380165 | P103: 34 | Q103: 56.28355657 | R103: 56.28355657 | S103: 0.2296950698 | T103: 0.2296950698 | U103: 1 | V103: 1.002564833 | W103: 1.002564833
B104: CME015 | C104: Shepparton CSC | D104: Rural Short | E104: 1158 | F104: 97.89037 | G104: 3.5395 | H104: 8.135 | I104: 14.105 | J104: 0.349 | K104: 32 | L104: 298.3307427 | M104: 186.7962003 | N104: 3.284974093 | O104: 2.267702936 | P104: 6 | Q104: 7.379965458 | R104: 7.379965458 | S104: 0.1476683938 | T104: 0.1476683938 | U104: 7 | V104: 7.025043178 | W104: 7.025043178
B105: CME016 | C105: Shepparton CSC | D105: Rural Long | E105: 2107 | F105: 285.70322 | G105: 9.699827 | H105: 6.634 | I105: 11.487 | J105: 1.071 | K105: 43 | L105: 318.9444708 | M105: 206.7123873 | N105: 4.237778832 | O105: 3.213099193 | P105: 11 | Q105: 29.74893213 | R105: 29.74893213 | S105: 0.1139060275 | T105: 0.1139060275 | U105: 7 | V105: 7.023730422 | W105: 7.023730422
B106: CME021 | C106: Shepparton CSC | D106: Rural Short | E106: 1772 | F106: 25.03813 | G106: 3.69879 | H106: 7.148 | I106: 23.839 | J106: 0.034 | K106: 11 | L106: 543.9198646 | M106: 443.0908578 | N106: 5.040632054 | O106: 4.042325056 | P106: 2 | Q106: 0.7844243792 | R106: 0.7844243792 | S106: 0.05643340858 | T106: 0.05643340858 | U106: 1 | V106: 0.9988713318 | W106: 0.9988713318
B107: CME022 | C107: Shepparton CSC | D107: Urban | E107: 666 | F107: 16.72638 | G107: 0.24559 | H107: 11.571 | I107: 45.265 | J107: 0.264 | K107: 5 | L107: 403.3468468 | M107: 302.0435435 | N107: 4.034534535 | O107: 3.031531532 | P107: 2 | Q107: 2.352852853 | R107: 2.352852853 | S107: 0.01951951952 | T107: 0.01951951952 | U107: 0 | V107: 0 | W107: 0
B108: CMN001 | C108: Bendigo CSC | D108: Rural Long | E108: 4617 | F108: 398.78234 | G108: 5.955313 | H108: 8.764 | I108: 30.776 | J108: 18.116 | K108: 55 | L108: 577.8139485 | M108: 74.67468053 | N108: 1.45094217 | O108: 0.4182369504 | P108: 188 | Q108: 340.1297379 | R108: 340.1297379 | S108: 1.642625081 | T108: 1.642625081 | U108: 3 | V108: 2.995451592 | W108: 2.995451592
B109: CMN002 | C109: Bendigo CSC | D109: Rural Long | E109: 1340 | F109: 262.31101 | G109: 5.610617 | H109: 2.51 | I109: 0.526 | J109: 7.925 | K109: 22 | L109: 24.70223881 | M109: 24.70223881 | N109: 0.15 | O109: 0.15 | P109: 58 | Q109: 371.9574627 | R109: 371.9574627 | S109: 2.007462687 | T109: 2.007462687 | U109: 1 | V109: 1.004477612 | W109: 1.004477612
B110: CMN003 | C110: Bendigo CSC | D110: Rural Long | E110: 2891 | F110: 234.58904 | G110: 25.472603 | H110: 6.693 | I110: 37.42 | J110: 3.067 | K110: 38 | L110: 837.3123487 | M110: 402.909028 | N110: 2.664821861 | O110: 2.270494639 | P110: 54 | Q110: 68.63438257 | R110: 68.63438257 | S110: 0.382566586 | T110: 0.382566586 | U110: 1 | V110: 0.6084399862 | W110: 0
B111: CMN004 | C111: Bendigo CSC | D111: Rural Long | E111: 1681 | F111: 220.18727 | G111: 21.65896 | H111: 4.502 | I111: 2.313 | J111: 4.552 | K111: 22 | L111: 74.44080904 | M111: 74.44080904 | N111: 1.252230815 | O111: 1.252230815 | P111: 47 | Q111: 146.4699584 | R111: 146.4699584 | S111: 1.580011898 | T111: 1.580011898 | U111: 4 | V111: 3.98810232 | W111: 2.992266508
B112: CMN005 | C112: Bendigo CSC | D112: Urban | E112: 1023 | F112: 18.86344 | G112: 0.92068 | H112: 7.689 | I112: 1.948 | J112: 1.836 | K112: 7 | L112: 45.68230694 | M112: 45.68230694 | N112: 0.4477028348 | O112: 0.4477028348 | P112: 18 | Q112: 43.06353861 | R112: 43.06353861 | S112: 0.7086999022 | T112: 0.7086999022 | U112: 1 | V112: 0.9970674487 | W112: 0.9970674487
B113: COB011 | C113: Warrnambool CSC | D113: Rural Long | E113: 721 | F113: 258.74531 | G113: 0 | H113: 4.936 | I113: 20.389 | J113: 12.451 | K113: 40 | L113: 679.3911234 | M113: 193.29681 | N113: 2.442441054 | O113: 1.446601942 | P113: 35 | Q113: 414.8654646 | R113: 414.8654646 | S113: 2.281553398 | T113: 2.281553398 | U113: 10 | V113: 10.00277393 | W113: 9.004160888
B114: COB012 | C114: Warrnambool CSC | D114: Urban | E114: 35 | F114: 11.57143 | G114: 0.660084 | H114: 6.437 | I114: 0 | J114: 13.425 | K114: 0 | L114: 0 | M114: 0 | N114: 0 | O114: 0 | P114: 1 | Q114: 213 | R114: 213 | S114: 1 | T114: 1 | U114: 0 | V114: 0 | W114: 0
B115: COB021 | C115: Warrnambool CSC | D115: Rural Short | E115: 14 | F115: 38.80136 | G115: 0.148987 | H115: 4.857 | I115: 0.304 | J115: 0 | K115: 1 | L115: 6.071428571 | M115: 6.071428571 | N115: 0.07142857143 | O115: 0.07142857143 | P115: 0 | Q115: 0 | R115: 0 | S115: 0 | T115: 0 | U115: 0 | V115: 0 | W115: 0
B116: CRO013 | C116: Geelong CSC | D116: Rural Long | E116: 4705 | F116: 213.52726 | G116: 2.69479 | H116: 9.32 | I116: 3.186 | J116: 7.297 | K116: 30 | L116: 55.69202976 | M116: 55.69202976 | N116: 1.129436769 | O116: 1.129436769 | P116: 86 | Q116: 127.549203 | R116: 127.549203 | S116: 0.7039319872 | T116: 0.7039319872 | U116: 1 | V116: 1.009351753 | W116: 1.009351753
B117: CRO014 | C117: Geelong CSC | D117: Urban | E117: 2 | F117: 1.03647 | G117: 0.00847 | H117: 3.001 | I117: 0 | J117: 5.689 | K117: 0 | L117: 0 | M117: 0 | N117: 0 | O117: 0 | P117: 2 | Q117: 450 | R117: 450 | S117: 2 | T117: 2 | U117: 0 | V117: 0 | W117: 0
B118: CRO021 | C118: Geelong CSC | D118: Urban | E118: 592 | F118: 4.39534 | G118: 0.46632 | H118: 1.896 | I118: 3.803 | J118: 0.005 | K118: 6 | L118: 252.2972973 | M118: 252.2972973 | N118: 2.285472973 | O118: 2.285472973 | P118: 1 | Q118: 0.3378378378 | R118: 0.3378378378 | S118: 0.003378378378 | T118: 0.003378378378 | U118: 0 | V118: 0 | W118: 0
B119: CRO022 | C119: Geelong CSC | D119: Urban | E119: 4103 | F119: 19.82072 | G119: 2.80131 | H119: 8.451 | I119: 1.948 | J119: 8.493 | K119: 13 | L119: 34.81671947 | M119: 34.72459176 | N119: 0.8830124299 | O119: 0.8827687058 | P119: 23 | Q119: 151.8218377 | R119: 151.8218377 | S119: 0.5049963441 | T119: 0.5049963441 | U119: 0 | V119: 0 | W119: 0
B120: CRO023 | C120: Geelong CSC | D120: Urban | E120: 298 | F120: 4.05226 | G120: 0.35039 | H120: 1.659 | I120: 0.652 | J120: 1.17 | K120: 2 | L120: 98.7852349 | M120: 98.7852349 | N120: 1.033557047 | O120: 1.033557047 | P120: 3 | Q120: 177.090604 | R120: 177.090604 | S120: 0.7583892617 | T120: 0.7583892617 | U120: 0 | V120: 0 | W120: 0
B121: CRO024 | C121: Geelong CSC | D121: Rural Short | E121: - | F121: 0.37454 | G121: 0.37606 | H121: 0.158 | I121: 0 | J121: 0 | K121: 0 | L121: 0 | M121: 0 | N121: 0 | O121: 0 | P121: 0 | Q121: 0 | R121: 0 | S121: 0 | T121: 0 | U121: 0 | V121: 0 | W121: 0
B122: CRO031 | C122: Geelong CSC | D122: Urban | E122: 1 | F122: 0.90487 | G122: 0 | H122: 6.2 | I122: 14.733 | J122: 0 | K122: 2 | L122: 265 | M122: 265 | N122: 2 | O122: 2 | P122: 0 | Q122: 0 | R122: 0 | S122: 0 | T122: 0 | U122: 1 | V122: 1 | W122: 1
B123: CRO032 | C123: Geelong CSC | D123: Rural Short | E123: 7 | F123: 2.02769 | G123: 0.17642 | H123: 0.158 | I123: 0.002 | J123: 0.062 | K123: 1 | L123: 5 | M123: 5 | N123: 1 | O123: 1 | P123: 1 | Q123: 190 | R123: 190 | S123: 1 | T123: 1 | U123: 0 | V123: 0 | W123: 0
B124: CRO033 | C124: Geelong CSC | D124: Urban | E124: 19 | F124: 1.97634 | G124: 0.2891 | H124: 2.409 | I124: 0.025 | J124: 9.944 | K124: 1 | L124: 1 | M124: 1 | N124: 1 | O124: 1 | P124: 2 | Q124: 395.4736842 | R124: 395.4736842 | S124: 1.789473684 | T124: 1.789473684 | U124: 0 | V124: 0 | W124: 0
B125: CRO034 | C125: Geelong CSC | D125: Urban | E125: 1129 | F125: 6.5589 | G125: 0.27599 | H125: 4.226 | I125: 0.37 | J125: 0.965 | K125: 3 | L125: 14.15323295 | M125: 14.15323295 | N125: 0.07971656333 | O125: 0.07971656333 | P125: 14 | Q125: 36.95482728 | R125: 36.95482728 | S125: 0.215234721 | T125: 0.215234721 | U125: 0 | V125: 0 | W125: 0
B126: CTN001 | C126: Bendigo CSC | D126: Rural Long | E126: 1643 | F126: 857.44046 | G126: 1.19992 | H126: 6.772 | I126: 14.621 | J126: 6.922 | K126: 20 | L126: 375.8247109 | M126: 182.4150943 | N126: 3.102251978 | O126: 2.105295192 | P126: 66 | Q126: 177.9379184 | R126: 177.9379184 | S126: 0.7979306147 | T126: 0.7979306147 | U126: 0 | V126: 0 | W126: 0
B127: CTN002 | C127: Bendigo CSC | D127: Rural Long | E127: 1135 | F127: 514.69991 | G127: 1.07675 | H127: 2.55 | I127: 3.579 | J127: 2.778 | K127: 12 | L127: 253.0044053 | M127: 58.17621145 | N127: 1.502202643 | O127: 0.5030837004 | P127: 41 | Q127: 196.4035242 | R127: 196.4035242 | S127: 0.6863436123 | T127: 0.6863436123 | U127: 0 | V127: 0 | W127: 0
B128: CTN003 | C128: Bendigo CSC | D128: Rural Long | E128: 1217 | F128: 775.37418 | G128: 1.17036 | H128: 2.868 | I128: 5.699 | J128: 1.698 | K128: 26 | L128: 319.3730485 | M128: 108.6187346 | N128: 1.736236647 | O128: 0.7280197206 | P128: 12 | Q128: 95.16269515 | R128: 95.16269515 | S128: 0.2843056697 | T128: 0.2843056697 | U128: 0 | V128: 0 | W128: 0
B129: CTN004 | C129: Bendigo CSC | D129: Rural Long | E129: 1223 | F129: 231.64545 | G129: 0.19778 | H129: 3.426 | I129: 8.827 | J129: 3.593 | K129: 8 | L129: 322.627964 | M129: 122.9771055 | N129: 1.166802944 | O129: 0.1635322976 | P129: 21 | Q129: 131.3049877 | R129: 131.3049877 | S129: 0.4668847097 | T129: 0.4668847097 | U129: 3 | V129: 3 | W129: 3
B130: CTN005 | C130: Bendigo CSC | D130: Rural Short | E130: 653 | F130: 8.03173 | G130: 0.50257 | H130: 1.673 | I130: 2.69 | J130: 0.007 | K130: 5 | L130: 273.9111792 | M130: 10.71975498 | N130: 1.153139357 | O130: 0.156202144 | P130: 1 | Q130: 0.6799387443 | R130: 0.6799387443 | S130: 0.009188361409 | T130: 0.009188361409 | U130: 0 | V130: 0 | W130: 0
B131: CTN006 | C131: Bendigo CSC | D131: Rural Long | E131: 1974 | F131: 989.9478 | G131: 0.75215 | H131: 5.737 | I131: 15.95 | J131: 3.435 | K131: 35 | L131: 383.8069909 | M131: 177.5410334 | N131: 1.800405268 | O131: 0.8039513678 | P131: 41 | Q131: 82.65754813 | R131: 82.65754813 | S131: 0.3546099291 | T131: 0.3546099291 | U131: 0 | V131: 0 | W131: 0
B132: DDL011 | C132: Geelong CSC | D132: Rural Short | E132: 4505 | F132: 36.09851 | G132: 7.531713 | H132: 9.478 | I132: 1.569 | J132: 0.159 | K132: 22 | L132: 33.06148724 | M132: 33.06148724 | N132: 0.2239733629 | O132: 0.2239733629 | P132: 3 | Q132: 3.354495006 | R132: 3.354495006 | S132: 0.0128745838 | T132: 0.0128745838 | U132: 2 | V132: 2.024417314 | W132: 2.024417314
B133: DDL012 | C133: Geelong CSC | D133: Rural Short | E133: 4093 | F133: 53.23526 | G133: 8.02561 | H133: 9.596 | I133: 8.032 | J133: 2.824 | K133: 33 | L133: 202.4270706 | M133: 202.0850232 | N133: 1.343268996 | O133: 1.343024676 | P133: 10 | Q133: 71.18714879 | R133: 71.18714879 | S133: 0.5951624725 | T133: 0.5951624725 | U133: 2 | V133: 1.999267041 | W133: 1.999267041
B134: DDL013 | C134: Geelong CSC | D134: Rural Short | E134: 4570 | F134: 67.99348 | G134: 5.83773 | H134: 9.004 | I134: 8.393 | J134: 0.064 | K134: 21 | L134: 188.5820569 | M134: 188.5820569 | N134: 2.46892779 | O134: 2.46892779 | P134: 6 | Q134: 1.447921225 | R134: 1.447921225 | S134: 0.01225382932 | T134: 0.01225382932 | U134: 4 | V134: 4.023194748 | W134: 4.023194748
B135: DDL014 | C135: Geelong CSC | D135: Rural Short | E135: 4109 | F135: 50.86365 | G135: 7.515073 | H135: 7.819 | I135: 3.379 | J135: 0.348 | K135: 19 | L135: 88.72402044 | M135: 88.72402044 | N135: 1.173764906 | O135: 1.173764906 | P135: 6 | Q135: 9.148211244 | R135: 9.148211244 | S135: 0.03966901923 | T135: 0.03966901923 | U135: 3 | V135: 2.997566318 | W135: 2.997566318
B136: DDL021 | C136: Geelong CSC | D136: Rural Short | E136: 3504 | F136: 66.18046 | G136: 3.728707 | H136: 7.661 | I136: 0.239 | J136: 0.035 | K136: 16 | L136: 5.771118721 | M136: 5.771118721 | N136: 0.03567351598 | O136: 0.03567351598 | P136: 6 | Q136: 0.8413242009 | R136: 0.8413242009 | S136: 0.0296803653 | T136: 0.0296803653 | U136: 2 | V136: 1.99543379 | W136: 1.99543379
B137: DDL022 | C137: Geelong CSC | D137: Urban | E137: 4448 | F137: 20.64428 | G137: 3.21432 | H137: 7.582 | I137: 1.201 | J137: 0.522 | K137: 9 | L137: 33.09375 | M137: 33.09375 | N137: 0.2142535971 | O137: 0.2142535971 | P137: 5 | Q137: 14.39141187 | R137: 14.39141187 | S137: 0.04226618705 | T137: 0.04226618705 | U137: 1 | V137: 0.9977517986 | W137: 0.9977517986
B138: DDL023 | C138: Geelong CSC | D138: Rural Short | E138: 1569 | F138: 37.98396 | G138: 1.282436 | H138: 7.898 | I138: 2.179 | J138: 0.075 | K138: 8 | L138: 121.8655194 | M138: 121.8655194 | N138: 0.9120458891 | O138: 0.9120458891 | P138: 2 | Q138: 4.184831103 | R138: 4.184831103 | S138: 0.01402166985 | T138: 0.01402166985 | U138: 6 | V138: 5.170809433 | W138: 5.170809433
B139: DDL024 | C139: Geelong CSC | D139: Rural Short | E139: 3134 | F139: 59.15608 | G139: 9.07238 | H139: 7.424 | I139: 1.909 | J139: 0.046 | K139: 18 | L139: 57.64805361 | M139: 57.60816847 | N139: 1.043395022 | O139: 1.043075941 | P139: 1 | Q139: 1.389597958 | R139: 1.389597958 | S139: 0.004148053606 | T139: 0.004148053606 | U139: 1 | V139: 1.007657945 | W139: 1.007657945
B140: DLF001 | C140: Citipower CSC | D140: Urban | E140: 1441 | F140: 0.01286 | G140: 5.228018 | H140: 3.823 | I140: 0.003 | J140: 0 | K140: 1 | L140: 0.09507286607 | M140: 0.09507286607 | N140: 0.001387925052 | O140: 0.001387925052 | P140: 0 | Q140: 0 | R140: 0 | S140: 0 | T140: 0 | U140: 0 | V140: 0 | W140: 0
B141: DLF004 | C141: Citipower CSC | D141: Urban | E141: - | F141: 0 | G141: 2.302407 | H141: 0 | I141: 0 | J141: 0 | K141: 0 | L141: 0 | M141: 0 | N141: 0 | O141: 0 | P141: 0 | Q141: 0 | R141: 0 | S141: 0 | T141: 0 | U141: 0 | V141: 0 | W141: 0
B142: ECA001 | C142: Shepparton CSC | D142: Rural Short | E142: 2203 | F142: 23.33334 | G142: 2.43712 | H142: 7.306 | I142: 0.299 | J142: 0.207 | K142: 9 | L142: 6.404902406 | M142: 6.404902406 | N142: 0.06173399909 | O142: 0.06173399909 | P142: 2 | Q142: 4.434861552 | R142: 4.434861552 | S142: 0.05129369042 | T142: 0.05129369042 | U142: 0 | V142: 0 | W142: 0
B143: ECA003 | C143: Shepparton CSC | D143: Rural Short | E143: 2463 | F143: 61.03572 | G143: 3.22556 | H143: 8.925 | I143: 2.264 | J143: 7.082 | K143: 20 | L143: 42.25375558 | M143: 42.25375558 | N143: 0.179861957 | O143: 0.179861957 | P143: 21 | Q143: 132.1766139 | R143: 132.1766139 | S143: 0.5931790499 | T143: 0.5931790499 | U143: 2 | V143: 2.005278116 | W143: 2.005278116
B144: ECA005 | C144: Shepparton CSC | D144: Rural Short | E144: 853 | F144: 150.64512 | G144: 2.90741 | H144: 7.306 | I144: 7.039 | J144: 5.924 | K144: 32 | L144: 118.8053927 | M144: 118.8053927 | N144: 1.169988277 | O144: 1.169988277 | P144: 10 | Q144: 99.985932 | R144: 99.985932 | S144: 0.4196951934 | T144: 0.4196951934 | U144: 2 | V144: 1.991793669 | W144: 1.991793669
B145: ECA007 | C145: Shepparton CSC | D145: Rural Short | E145: 1 | F145: 25.96067 | G145: 0.980813 | H145: 6.121 | I145: 0 | J145: 20.249 | K145: 0 | L145: 0 | M145: 0 | N145: 0 | O145: 0 | P145: 1 | Q145: 554 | R145: 554 | S145: 1 | T145: 1 | U145: 0 | V145: 0 | W145: 0
B146: ECA010 | C146: Shepparton CSC | D146: Rural Short | E146: 1783 | F146: 88.05454 | G146: 4.63594 | H146: 7.187 | I146: 5.025 | J146: 4.968 | K146: 34 | L146: 119.8065059 | M146: 107.2804262 | N146: 1.30117779 | O146: 1.224901851 | P146: 6 | Q146: 118.4436343 | R146: 118.4436343 | S146: 0.4279304543 | T146: 0.4279304543 | U146: 1 | V146: 1.000560852 | W146: 1.000560852
B147: ECA012 | C147: Shepparton CSC | D147: Rural Long | E147: 2001 | F147: 286.78763 | G147: 6.88493 | H147: 5.766 | I147: 1.087 | J147: 2.408 | K147: 37 | L147: 28.09395302 | M147: 28.09395302 | N147: 0.1549225387 | O147: 0.1549225387 | P147: 29 | Q147: 62.25387306 | R147: 62.25387306 | S147: 0.2968515742 | T147: 0.2968515742 | U147: 7 | V147: 7.001999 | W147: 7.001999
B148: EHK021 | C148: Bendigo CSC | D148: Urban | E148: 298 | F148: 10.13907 | G148: 4.57782 | H148: 9.202 | I148: 13.407 | J148: 0.234 | K148: 3 | L148: 306.9832215 | M148: 54.5 | N148: 2.023489933 | O148: 1.020134228 | P148: 3 | Q148: 5.359060403 | R148: 5.359060403 | S148: 0.01342281879 | T148: 0.01342281879 | U148: 0 | V148: 0 | W148: 0
B149: EHK022 | C149: Bendigo CSC | D149: Rural Short | E149: 3508 | F149: 47.31697 | G149: 10.92869 | H149: 11.712 | I149: 8.181 | J149: 1.383 | K149: 11 | L149: 99.24315849 | M149: 58.90935006 | N149: 1.23945268 | O149: 1.096921323 | P149: 6 | Q149: 16.77451539 | R149: 16.77451539 | S149: 0.09122006842 | T149: 0.09122006842 | U149: 0 | V149: 0 | W149: 0
B150: EHK023 | C150: Bendigo CSC | D150: Rural Long | E150: 2862 | F150: 280.4486 | G150: 6.51693 | H150: 8.286 | I150: 30.028 | J150: 6.804 | K150: 36 | L150: 532.4325646 | M150: 161.1544375 | N150: 3.169112509 | O150: 2.071977638 | P150: 35 | Q150: 120.6436059 | R150: 120.6436059 | S150: 0.5324947589 | T150: 0.5324947589 | U150: 5 | V150: 4.967854647 | W150: 4.967854647
B151: EHK024 | C151: Bendigo CSC | D151: Rural Long | E151: 2798 | F151: 849.87338 | G151: 4.09131 | H151: 10.437 | I151: 23.929 | J151: 3.74 | K151: 67 | L151: 347.6576126 | M151: 29.65260901 | N151: 0.4406719085 | O151: 0.1947819871 | P151: 286 | Q151: 54.34274482 | R151: 54.34274482 | S151: 0.7555396712 | T151: 0.7555396712 | U151: 1 | V151: 0.9960686204 | W151: 0.9960686204
B152: EHK031 | C152: Bendigo CSC | D152: Rural Short | E152: 3800 | F152: 29.36036 | G152: 6.39561 | H152: 8.207 | I152: 7.38 | J152: 0.175 | K152: 5 | L152: 166.3657895 | M152: 166.3657895 | N152: 1.028947368 | O152: 1.028947368 | P152: 3 | Q152: 3.936052632 | R152: 3.936052632 | S152: 0.03131578947 | T152: 0.03131578947 | U152: 1 | V152: 1.008421053 | W152: 1.008421053
B153: EHK032 | C153: Bendigo CSC | D153: Rural Short | E153: 131 | F153: 2.5965 | G153: 0.21644 | H153: 0.797 | I153: 0 | J153: 0.183 | K153: 0 | L153: 0 | M153: 0 | N153: 0 | O153: 0 | P153: 1 | Q153: 59.61832061 | R153: 59.61832061 | S153: 0.4198473282 | T153: 0.4198473282 | U153: 0 | V153: 0 | W153: 0
B154: EHK033 | C154: Bendigo CSC | D154: Urban | E154: 1231 | F154: 7.56246 | G154: 1.59008 | H154: 6.175 | I154: 1.73 | J154: 0.321 | K154: 5 | L154: 36.19740049 | M154: 36.19740049 | N154: 0.121039805 | O154: 0.121039805 | P154: 3 | Q154: 6.72623883 | R154: 6.72623883 | S154: 0.06823720552 | T154: 0.06823720552 | U154: 2 | V154: 2.000812348 | W154: 2.000812348
B155: EHK034 | C155: Bendigo CSC | D155: Urban | E155: 866 | F155: 3.46823 | G155: 2.65171 | H155: 7.29 | I155: 9.98 | J155: 0 | K155: 3 | L155: 194.6489607 | M155: 194.6489607 | N155: 2.012702079 | O155: 2.012702079 | P155: 0 | Q155: 0 | R155: 0 | S155: 0 | T155: 0 | U155: 0 | V155: 0 | W155: 0
B156: ETSA001 | C156: Warrnambool CSC | D156: Rural Long | E156: 310 | F156: 29.6421 | G156: 0 | H156: 0.75 | I156: 1.043 | J156: 0.003 | K156: 10 | L156: 697.8677419 | M156: 668.7741935 | N156: 7.029032258 | O156: 6.025806452 | P156: 1 | Q156: 1.95483871 | R156: 1.95483871 | S156: 0.9774193548 | T156: 0.9774193548 | U156: 0 | V156: 0 | W156: 0
B157: ETSA003 | C157: Mildura CSC | D157: Rural Short | E157: 46 | F157: 26.20918 | G157: 0 | H157: 0 | I157: 0 | J157: 0 | K157: 3 | L157: 517.9347826 | M157: 517.9347826 | N157: 2.956521739 | O157: 2.956521739 | P157: 0 | Q157: 0 | R157: 0 | S157: 0 | T157: 0 | U157: 0 | V157: 0 | W157: 0
B158: FNS011 | C158: Geelong CSC | D158: Rural Short | E158: 2059 | F158: 59.07463 | G158: 2.71041 | H158: 8.214 | I158: 0.785 | J158: 2.047 | K158: 18 | L158: 10.73045168 | M158: 10.73045168 | N158: 0.06702282661 | O158: 0.06702282661 | P158: 21 | Q158: 27.98008742 | R158: 27.98008742 | S158: 0.1743564837 | T158: 0.1743564837 | U158: 0 | V158: 0 | W158: 0
B159: FNS012 | C159: Geelong CSC | D159: Rural Short | E159: 4187 | F159: 30.51363 | G159: 7.81914 | H159: 10.939 | I159: 0.736 | J159: 0.554 | K159: 5 | L159: 68.07045617 | M159: 68.07045617 | N159: 0.8698352042 | O159: 0.8698352042 | P159: 17 | Q159: 51.20921901 | R159: 51.20921901 | S159: 0.2333412945 | T159: 0.2333412945 | U159: 0 | V159: 0 | W159: 0
B160: FNS013 | C160: Geelong CSC | D160: Urban | E160: 3 | F160: 0.07957 | G160: 0 | H160: 3.12 | I160: 0 | J160: 0.011 | K160: 0 | L160: 0 | M160: 0 | N160: 0 | O160: 0 | P160: 1 | Q160: 36 | R160: 36 | S160: 1 | T160: 1 | U160: 0 | V160: 0 | W160: 0
B161: FNS021 | C161: Geelong CSC | D161: Rural Short | E161: 2718 | F161: 71.48767 | G161: 7.74143 | H161: 7.78 | I161: 2.488 | J161: 0.423 | K161: 21 | L161: 37.05408389 | M161: 37.05408389 | N161: 0.3668138337 | O161: 0.3668138337 | P161: 7 | Q161: 6.298013245 | R161: 6.298013245 | S161: 0.04047093451 | T161: 0.04047093451 | U161: 0 | V161: 0 | W161: 0
B162: FNS022 | C162: Geelong CSC | D162: Rural Short | E162: 1652 | F162: 152.22989 | G162: 8.26551 | H162: 7.266 | I162: 7.232 | J162: 3.914 | K162: 32 | L162: 137.155569 | M162: 137.155569 | N162: 4.072639225 | O162: 4.072639225 | P162: 17 | Q162: 74.22154964 | R162: 74.22154964 | S162: 0.5024213075 | T162: 0.5024213075 | U162: 0 | V162: 0 | W162: 0
B163: FNS023 | C163: Geelong CSC | D163: Urban | E163: - | F163: 0.06658 | G163: 0 | H163: 12.614 | I163: 0 | J163: 0 | K163: 0 | L163: 0 | M163: 0 | N163: 0 | O163: 0 | P163: 0 | Q163: 0 | R163: 0 | S163: 0 | T163: 0 | U163: 0 | V163: 0 | W163: 0
B164: FNS032 | C164: Geelong CSC | D164: Rural Short | E164: 230 | F164: 41.35339 | G164: 2.59292 | H164: 4.147 | I164: 0.365 | J164: 0.136 | K164: 18 | L164: 239.1956522 | M164: 239.1956522 | N164: 3.095652174 | O164: 3.095652174 | P164: 16 | Q164: 89.40869565 | R164: 89.40869565 | S164: 0.4130434783 | T164: 0.4130434783 | U164: 1 | V164: 0.9956521739 | W164: 0.9956521739
B165: GB011 | C165: Geelong CSC | D165: Urban | E165: 5 | F165: 0.21474 | G165: 2.33926 | H165: 5.45 | I165: 1.577 | J165: 6.822 | K165: 1 | L165: 52.4 | M165: 52.4 | N165: 0.4 | O165: 0.4 | P165: 2 | Q165: 226.6 | R165: 226.6 | S165: 1 | T165: 1 | U165: 0 | V165: 0 | W165: 0
B166: GB012 | C166: Geelong CSC | D166: Rural Short | E166: 23 | F166: 4.06521 | G166: 0.72328 | H166: 1.106 | I166: 0.656 | J166: 0.756 | K166: 4 | L166: 59.47826087 | M166: 59.47826087 | N166: 0.6086956522 | O166: 0.6086956522 | P166: 5 | Q166: 68.60869565 | R166: 68.60869565 | S166: 1.173913043 | T166: 1.173913043 | U166: 0 | V166: 0 | W166: 0
B167: GB014 | C167: Geelong CSC | D167: Urban | E167: 476 | F167: 2.48313 | G167: 1.7843 | H167: 3.357 | I167: 0.041 | J167: 1.012 | K167: 1 | L167: 3.428571429 | M167: 3.428571429 | N167: 0.01260504202 | O167: 0.01260504202 | P167: 3 | Q167: 84.46008403 | R167: 84.46008403 | S167: 0.8592436975 | T167: 0.8592436975 | U167: 0 | V167: 0 | W167: 0
B168: GB031 | C168: Geelong CSC | D168: Urban | E168: 576 | F168: 10.09966 | G168: 0.96453 | H168: 7.78 | I168: 4.152 | J168: 0.054 | K168: 10 | L168: 139.8020833 | M168: 139.8020833 | N168: 1.784722222 | O168: 1.784722222 | P168: 2 | Q168: 1.831597222 | R168: 1.831597222 | S168: 0.005208333333 | T168: 0.005208333333 | U168: 2 | V168: 1.967013889 | W168: 1.967013889
B169: GB032 | C169: Geelong CSC | D169: Urban | E169: 3 | F169: 1.0027 | G169: 0.20544 | H169: 3.159 | I169: 1.913 | J169: 0 | K169: 1 | L169: 88.33333333 | M169: 88.33333333 | N169: 0.3333333333 | O169: 0.3333333333 | P169: 0 | Q169: 0 | R169: 0 | S169: 0 | T169: 0 | U169: 0 | V169: 0 | W169: 0
B170: GCY012 | C170: Geelong CSC | D170: Urban | E170: 701 | F170: 0.66978 | G170: 3.791359 | H170: 6.082 | I170: 3.641 | J170: 0 | K170: 1 | L170: 92.07845934 | M170: 92.07845934 | N170: 0.9928673324 | O170: 0.9928673324 | P170: 0 | Q170: 0 | R170: 0 | S170: 0 | T170: 0 | U170: 0 | V170: 0 | W170: 0
B171: GCY013 | C171: Geelong CSC | D171: Urban | E171: 456 | F171: 0.20132 | G171: 2.633871 | H171: 6.516 | I171: 0.163 | J171: 0 | K171: 1 | L171: 4.36622807 | M171: 4.36622807 | N171: 0.02412280702 | O171: 0.02412280702 | P171: 0 | Q171: 0 | R171: 0 | S171: 0 | T171: 0 | U171: 0 | V171: 0 | W171: 0
B172: GCY014 | C172: Geelong CSC | D172: Urban | E172: 3376 | F172: 17.23348 | G172: 2.55427 | H172: 10.663 | I172: 9.127 | J172: 0 | K172: 19 | L172: 142.151955 | M172: 142.151955 | N172: 2.26214455 | O172: 2.26214455 | P172: 1 | Q172: 0.004739336493 | R172: 0.004739336493 | S172: 0.0005924170616 | T172: 0.0005924170616 | U172: 1 | V172: 0.2816943128 | W172: 0.2816943128
B173: GCY021 | C173: Geelong CSC | D173: Urban | E173: 295 | F173: 0 | G173: 2.029372 | H173: 2.922 | I173: 0.03 | J173: 0 | K173: 0 | L173: 1.888135593 | M173: 1.888135593 | N173: 0.006779661017 | O173: 0.006779661017 | P173: 0 | Q173: 0 | R173: 0 | S173: 0 | T173: 0 | U173: 0 | V173: 0 | W173: 0
B174: GCY022 | C174: Geelong CSC | D174: Urban | E174: 640 | F174: 1.22364 | G174: 2.762316 | H174: 7.938 | I174: 0.22 | J174: 0.052 | K174: 2 | L174: 4.58125 | M174: 4.58125 | N174: 0.128125 | O174: 0.128125 | P174: 3 | Q174: 1.0796875 | R174: 1.0796875 | S174: 0.0890625 | T174: 0.0890625 | U174: 1 | V174: 0.9890625 | W174: 0.9890625
B175: GCY023 | C175: Geelong CSC | D175: Urban | E175: 3361 | F175: 12.94446 | G175: 2.331515 | H175: 9.912 | I175: 0.233 | J175: 0.644 | K175: 6 | L175: 3.279678667 | M175: 3.256471288 | N175: 0.01785182981 | O175: 0.01755429932 | P175: 2 | Q175: 9.051175245 | R175: 9.051175245 | S175: 0.03272835466 | T175: 0.03272835466 | U175: 3 | V175: 2.986908658 | W175: 2.986908658
B176: GCY024 | C176: Geelong CSC | D176: Urban | E176: 2265 | F176: 8.19623 | G176: 1.47782 | H176: 5.924 | I176: 0.627 | J176: 0.228 | K176: 8 | L176: 26.63002208 | M176: 26.63002208 | N176: 0.2097130243 | O176: 0.2097130243 | P176: 3 | Q176: 9.685209713 | R176: 9.685209713 | S176: 0.02869757174 | T176: 0.02869757174 | U176: 0 | V176: 0 | W176: 0
B177: GL011 | C177: Geelong CSC | D177: Urban | E177: 1128 | F177: 5.10803 | G177: 0.717877 | H177: 2.527 | I177: 0.049 | J177: 0.089 | K177: 2 | L177: 3.086879433 | M177: 3.086879433 | N177: 0.0195035461 | O177: 0.0195035461 | P177: 1 | Q177: 5.585106383 | R177: 5.585106383 | S177: 0.01861702128 | T177: 0.01861702128 | U177: 1 | V177: 0.9991134752 | W177: 0.9991134752
B178: GL012 | C178: Geelong CSC | D178: Rural Long | E178: 4084 | F178: 236.31799 | G178: 16.947051 | H178: 11.531 | I178: 21.503 | J178: 17.493 | K178: 60 | L178: 278.8680215 | M178: 278.8680215 | N178: 3.758080313 | O178: 3.758080313 | P178: 77 | Q178: 226.8667973 | R178: 226.8667973 | S178: 0.7152301665 | T178: 0.7152301665 | U178: 2 | V178: 2.035259549 | W178: 2.035259549
B179: GL013 | C179: Geelong CSC | D179: Urban | E179: 2118 | F179: 7.76247 | G179: 1.14364 | H179: 4.186 | I179: 0.278 | J179: 0.298 | K179: 2 | L179: 13.97214353 | M179: 13.97214353 | N179: 0.05760151086 | O179: 0.05760151086 | P179: 2 | Q179: 15.00708215 | R179: 15.00708215 | S179: 0.04390934844 | T179: 0.04390934844 | U179: 1 | V179: 1 | W179: 1
B180: GL014 | C180: Geelong CSC | D180: Urban | E180: 2303 | F180: 11.29928 | G180: 0.29962 | H180: 3.515 | I180: 0.058 | J180: 0.484 | K180: 5 | L180: 2.93182805 | M180: 2.815458098 | N180: 0.02561875814 | O180: 0.0251845419 | P180: 8 | Q180: 24.35649153 | R180: 24.35649153 | S180: 0.1493703865 | T180: 0.1493703865 | U180: 2 | V180: 2 | W180: 2
B181: GL015 | C181: Geelong CSC | D181: Rural Long | E181: 4245 | F181: 385.68432 | G181: 10.02185 | H181: 11.334 | I181: 11.265 | J181: 6.034 | K181: 61 | L181: 151.9429918 | M181: 151.9429918 | N181: 0.999057715 | O181: 0.999057715 | P181: 63 | Q181: 81.38091873 | R181: 81.38091873 | S181: 0.4306242638 | T181: 0.4306242638 | U181: 2 | V181: 2.009658422 | W181: 2.009658422
B182: GL021 | C182: Geelong CSC | D182: Urban | E182: 4349 | F182: 15.1797 | G182: 7.955 | H182: 9.438 | I182: 4.293 | J182: 0.762 | K182: 9 | L182: 88.49597609 | M182: 88.38606576 | N182: 1.675097724 | O182: 1.674867786 | P182: 6 | Q182: 15.71418717 | R182: 15.71418717 | S182: 0.05219590711 | T182: 0.05219590711 | U182: 0 | V182: 0 | W182: 0
B183: GL022 | C183: Geelong CSC | D183: Urban | E183: 3714 | F183: 11.10786 | G183: 0.75559 | H183: 7.503 | I183: 2.573 | J183: 2.226 | K183: 12 | L183: 60.37883683 | M183: 60.37883683 | N183: 0.8949919225 | O183: 0.8949919225 | P183: 8 | Q183: 52.24986537 | R183: 52.24986537 | S183: 0.1672051696 | T183: 0.1672051696 | U183: 0 | V183: 0 | W183: 0
B184: GL023 | C184: Geelong CSC | D184: Urban | E184: 2026 | F184: 7.96393 | G184: 1.68788 | H184: 5.292 | I184: 0.276 | J184: 0.323 | K184: 4 | L184: 7.27739388 | M184: 7.27739388 | N184: 0.05676209279 | O184: 0.05676209279 | P184: 2 | Q184: 8.525172754 | R184: 8.525172754 | S184: 0.02171767029 | T184: 0.02171767029 | U184: 1 | V184: 1.014313919 | W184: 1.014313919
B185: GL024 | C185: Geelong CSC | D185: Urban | E185: 1652 | F185: 5.97095 | G185: 1.886267 | H185: 5.884 | I185: 0.431 | J185: 0 | K185: 2 | L185: 11.06053269 | M185: 11.06053269 | N185: 0.1283292978 | O185: 0.1283292978 | P185: 0 | Q185: 0 | R185: 0 | S185: 0 | T185: 0 | U185: 0 | V185: 0 | W185: 0
B186: GLE011 | C186: Geelong CSC | D186: Urban | E186: 303 | F186: 6.75445 | G186: 1.7287 | H186: 4.263 | I186: 1.48 | J186: 0.352 | K186: 3 | L186: 71.19471947 | M186: 71.19471947 | N186: 1.069306931 | O186: 1.069306931 | P186: 2 | Q186: 16.92079208 | R186: 16.92079208 | S186: 1.085808581 | T186: 1.085808581 | U186: 0 | V186: 0 | W186: 0
B187: GLE012 | C187: Geelong CSC | D187: Urban | E187: 4557 | F187: 18.57885 | G187: 3.12032 | H187: 7.888 | I187: 1.32 | J187: 0.208 | K187: 11 | L187: 21.17665131 | M187: 21.17665131 | N187: 0.292955892 | O187: 0.292955892 | P187: 4 | Q187: 3.333991661 | R187: 3.333991661 | S187: 0.0961158657 | T187: 0.0961158657 | U187: 2 | V187: 2.004827738 | W187: 2.004827738
B188: GLE013 | C188: Geelong CSC | D188: Rural Short | E188: 4558 | F188: 34.82281 | G188: 6.3884 | H188: 5.298 | I188: 0.438 | J188: 0.89 | K188: 11 | L188: 14.0912681 | M188: 14.0912681 | N188: 0.08688021062 | O188: 0.08688021062 | P188: 11 | Q188: 28.61693725 | R188: 28.61693725 | S188: 0.09412022817 | T188: 0.09412022817 | U188: 1 | V188: 0.6524791575 | W188: 0.6524791575
B189: GLE021 | C189: Geelong CSC | D189: Urban | E189: 567 | F189: 3.93841 | G189: 0.84948 | H189: 6.573 | I189: 0.515 | J189: 0.034 | K189: 3 | L189: 16.73368607 | M189: 16.73368607 | N189: 0.1446208113 | O189: 0.1446208113 | P189: 1 | Q189: 1.114638448 | R189: 1.114638448 | S189: 0.003527336861 | T189: 0.003527336861 | U189: 1 | V189: 1.005291005 | W189: 1.005291005
B190: GLE023 | C190: Geelong CSC | D190: Urban | E190: 1 | F190: 2.41642 | G190: 0.4837 | H190: 2.589 | I190: 0 | J190: 0 | K190: 0 | L190: 0 | M190: 0 | N190: 0 | O190: 0 | P190: 0 | Q190: 0 | R190: 0 | S190: 0 | T190: 0 | U190: 0 | V190: 0 | W190: 0
B191: GLE024 | C191: Geelong CSC | D191: Rural Short | E191: 3163 | F191: 34.19931 | G191: 5.82869 | H191: 8.685 | I191: 2.464 | J191: 0.883 | K191: 4 | L191: 63.51881126 | M191: 63.51881126 | N191: 1.457793234 | O191: 1.457793234 | P191: 10 | Q191: 22.76130256 | R191: 22.76130256 | S191: 0.08346506481 | T191: 0.08346506481 | U191: 0 | V191: 0 | W191: 0
B192: GLE031 | C192: Geelong CSC | D192: Rural Short | E192: 3510 | F192: 30.52878 | G192: 5.72966 | H192: 8.565 | I192: 4.497 | J192: 0.397 | K192: 12 | L192: 59.62592593 | M192: 48.09088319 | N192: 0.5279202279 | O192: 0.515954416 | P192: 6 | Q192: 5.262393162 | R192: 5.262393162 | S192: 0.01737891738 | T192: 0.01737891738 | U192: 0 | V192: 0 | W192: 0
B193: GLE032 | C193: Geelong CSC | D193: Urban | E193: 2670 | F193: 12.17937 | G193: 0.93042 | H193: 5.498 | I193: 0.873 | J193: 0.066 | K193: 11 | L193: 22.43445693 | M193: 22.43445693 | N193: 0.1943820225 | O193: 0.1943820225 | P193: 2 | Q193: 1.685393258 | R193: 1.685393258 | S193: 0.02059925094 | T193: 0.02059925094 | U193: 1 | V193: 0.9985018727 | W193: 0.9985018727
B194: GLE033 | C194: Geelong CSC | D194: Urban | E194: 557 | F194: 6.76315 | G194: 0.9543 | H194: 3.944 | I194: 0.939 | J194: 0 | K194: 2 | L194: 42.74685817 | M194: 42.74685817 | N194: 0.4003590664 | O194: 0.4003590664 | P194: 0 | Q194: 0 | R194: 0 | S194: 0 | T194: 0 | U194: 1 | V194: 1 | W194: 1
B195: GSB011 | C195: Bendigo CSC | D195: Rural Short | E195: 2265 | F195: 84.07187 | G195: 9.19026 | H195: 6.507 | I195: 2.428 | J195: 0.866 | K195: 6 | L195: 49.32229581 | M195: 10.79249448 | N195: 1.041942605 | O195: 0.04591611479 | P195: 13 | Q195: 17.5986755 | R195: 17.5986755 | S195: 0.1434878587 | T195: 0.1434878587 | U195: 0 | V195: 0 | W195: 0
B196: GSB012 | C196: Bendigo CSC | D196: Rural Short | E196: 2005 | F196: 188.75851 | G196: 2.72994 | H196: 5.341 | I196: 7.869 | J196: 6.01 | K196: 26 | L196: 221.6448878 | M196: 221.6448878 | N196: 4.853366584 | O196: 4.853366584 | P196: 32 | Q196: 169.2718204 | R196: 169.2718204 | S196: 0.6628428928 | T196: 0.6628428928 | U196: 0 | V196: 0 | W196: 0
B197: GSB013 | C197: Bendigo CSC | D197: Rural Short | E197: 2345 | F197: 45.62482 | G197: 7.254927 | H197: 6.151 | I197: 0.822 | J197: 0.017 | K197: 12 | L197: 18.09722814 | M197: 18.09722814 | N197: 1.098507463 | O197: 1.098507463 | P197: 4 | Q197: 0.381663113 | R197: 0.381663113 | S197: 0.04776119403 | T197: 0.04776119403 | U197: 0 | V197: 0 | W197: 0
B198: GSB014 | C198: Bendigo CSC | D198: Rural Short | E198: 1985 | F198: 83.03867 | G198: 9.33082 | H198: 5.577 | I198: 5.925 | J198: 2.458 | K198: 13 | L198: 157.1536524 | M198: 155.4458438 | N198: 3.158186398 | O198: 3.153148615 | P198: 33 | Q198: 65.19848866 | R198: 65.19848866 | S198: 0.359697733 | T198: 0.359697733 | U198: 0 | V198: 0 | W198: 0
B199: HSM001 | C199: Horsham CSC | D199: Rural Long | E199: 1147 | F199: 495.48224 | G199: 1.21462 | H199: 2.908 | I199: 2.002 | J199: 4.786 | K199: 28 | L199: 109.9415867 | M199: 109.9415867 | N199: 2.127288579 | O199: 2.127288579 | P199: 9 | Q199: 262.8081953 | R199: 262.8081953 | S199: 0.641673932 | T199: 0.641673932 | U199: 4 | V199: 4.015693112 | W199: 4.015693112
B200: HSM002 | C200: Horsham CSC | D200: Rural Long | E200: 1389 | F200: 680.18324 | G200: 2.40375 | H200: 3.426 | I200: 1.565 | J200: 0.745 | K200: 36 | L200: 95.53563715 | M200: 95.53563715 | N200: 1.190784737 | O200: 1.190784737 | P200: 6 | Q200: 45.46508279 | R200: 45.46508279 | S200: 0.2872570194 | T200: 0.2872570194 | U200: 1 | V200: 0.9985601152 | W200: 0.9985601152
B201: HSM003 | C201: Horsham CSC | D201: Rural Long | E201: 1671 | F201: 1001.67132 | G201: 0.37597 | H201: 5.458 | I201: 2.893 | J201: 1.532 | K201: 31 | L201: 99.20885697 | M201: 99.20885697 | N201: 2.147217235 | O201: 2.147217235 | P201: 13 | Q201: 52.51286655 | R201: 52.51286655 | S201: 0.1915020946 | T201: 0.1915020946 | U201: 1 | V201: 1.00299222 | W201: 1.00299222
B202: HSM004 | C202: Horsham CSC | D202: Rural Long | E202: 2043 | F202: 1086.07404 | G202: 0.86937 | H202: 4.86 | I202: 5.257 | J202: 7.952 | K202: 51 | L202: 175.6005874 | M202: 175.6005874 | N202: 2.675966716 | O202: 2.675966716 | P202: 42 | Q202: 265.6113558 | R202: 265.6113558 | S202: 0.9128732256 | T202: 0.9128732256 | U202: 2 | V202: 2.002936858 | W202: 2.002936858
B203: HSM005 | C203: Horsham CSC | D203: Rural Long | E203: 1662 | F203: 417.4361 | G203: 0.55899 | H203: 5.617 | I203: 1.985 | J203: 5.687 | K203: 21 | L203: 66.36281588 | M203: 66.36281588 | N203: 1.185318893 | O203: 1.185318893 | P203: 19 | Q203: 190.1750903 | R203: 190.1750903 | S203: 0.5385078219 | T203: 0.5385078219 | U203: 1 | V203: 0.9987966306 | W203: 0.9987966306
B204: HSM006 | C204: Horsham CSC | D204: Rural Long | E204: 3040 | F204: 287.92281 | G204: 5.2366 | H204: 10.039 | I204: 5.447 | J204: 6.608 | K204: 26 | L204: 94.47598684 | M204: 94.47598684 | N204: 2.436184211 | O204: 2.436184211 | P204: 20 | Q204: 114.6233553 | R204: 114.6233553 | S204: 0.3884868421 | T204: 0.3884868421 | U204: 0 | V204: 0 | W204: 0
... 222 more rows

Sheet 3.6.9 Network-reliability
B1: =(LOOKUP(dms_Model,dms_Model_List,dms_Worksheet_List)) -> ANNUAL REPORTING STATEMENT
B2: =dms_TradingName -> Powercor Australia
B3: =CONCATENATE("Annual Reporting RIN Response ",CRY) -> Annual Reporting RIN Response 2017
B4: 3.6 QUALITY OF SERVICES
B7: 3.6.9 - NETWORK FEEDER RELIABILITY - PLANNED OUTAGES
C8: =CRY -> 2017
B9: 3.6.9.1 - PLANNED MINUTES OFF SUPPLY (SAIDI)
B10: =INDEX(dms_FeederName_1,MATCH(dms_TradingName,dms_TradingName_List)) -> CBD | C10: 0
B11: =INDEX(dms_FeederName_2,MATCH(dms_TradingName,dms_TradingName_List)) -> Urban | C11: 18.65489626
B12: =INDEX(dms_FeederName_3,MATCH(dms_TradingName,dms_TradingName_List)) -> Short rural | C12: 51.83232108
B13: =INDEX(dms_FeederName_4,MATCH(dms_TradingName,dms_TradingName_List)) -> Long rural | C13: 140.308486
B14: =IF((INDEX(dms_FeederName_5,MATCH(dms_TradingName,dms_TradingName_List))=0),"",(INDEX(dms_FeederName_5,MATCH(dms_TradingName,dms_TradingName_List)))) -> 
C16: =CRY -> 2017
B17: 3.6.9.2 - PLANNED INTERRUPTIONS TO SUPPLY (SAIFI)
B18: =INDEX(dms_FeederName_1,MATCH(dms_TradingName,dms_TradingName_List)) -> CBD | C18: 0
B19: =INDEX(dms_FeederName_2,MATCH(dms_TradingName,dms_TradingName_List)) -> Urban | C19: 0.0884356992
B20: =INDEX(dms_FeederName_3,MATCH(dms_TradingName,dms_TradingName_List)) -> Short rural | C20: 0.2228881362
B21: =INDEX(dms_FeederName_4,MATCH(dms_TradingName,dms_TradingName_List)) -> Long rural | C21: 0.6704262658
B22: =IF((INDEX(dms_FeederName_5,MATCH(dms_TradingName,dms_TradingName_List))=0),"",(INDEX(dms_FeederName_5,MATCH(dms_TradingName,dms_TradingName_List)))) -> 

Sheet 4.1 Public lighting
B1: =(LOOKUP(dms_Model,dms_Model_List,dms_Worksheet_List)) -> ANNUAL REPORTING STATEMENT
B2: =dms_TradingName -> Powercor Australia
B3: =CONCATENATE("Annual Reporting RIN Response ",CRY) -> Annual Reporting RIN Response 2017
B4: 4.1 PUBLIC LIGHTING
B6: Tables 4.1.1 - 4.1.3 deliberately omitted.
B8: 4.1.4 - PUBLIC LIGHTING METRICS BY TARIFF
C9: Number of Lights | D9: Public Lighting Revenue
B10: Tariff categories | C10: 0's | D10: $0's, nominal
B11: Category P LED High Output | C11: 50 | D11: 506
B12: Category P LED Standard Output | C12: 59480 | D12: 1326857
B13: Compact Fluoro 32W | C13: 5160 | D13: 184848
B14: Compact Fluoro 42W | C14: 5036 | D14: 185990
B15: Fluorescent T5 (2X14W) | C15: 12286 | D15: 466171
B16: Fluorescent T5 (2X24W) | C16: 1848 | D16: 68181
B17: Mercury vapour 125 watt | C17: 791 | D17: 53221
B18: Mercury vapour 250 watt | C18: 241 | D18: 17498
B19: Mercury vapour 400 watt | C19: 80 | D19: 6716
B20: Mercury vapour 50 watt | C20: 176 | D20: 12355
B21: Mercury vapour 80 watt | C21: 39231 | D21: 1981859
B22: Metal halide 150 watt | C22: 87 | D22: 10650
B23: Metal halide 250 watt | C23: 351 | D23: 43312
B24: Metal halide 70 watt | C24: 8 | D24: 795
B25: Sodium 150 watt | C25: 28923 | D25: 2653631
B26: Sodium 250 watt | C26: 13854 | D26: 1293222
B27: Sodium 400 watt | C27: 755 | D27: 94070
B51: To enter further tariff categories - please insert new lines above this line.
B52: Total | C52: =SUM(C11:C50) -> 168357 | D52: =SUM(D11:D50) -> 8399882

Sheet 6.2 STPIS Reliability
B1: =(LOOKUP(dms_Model,dms_Model_List,dms_Worksheet_List)) -> ANNUAL REPORTING STATEMENT
B2: =dms_TradingName -> Powercor Australia
B3: =CONCATENATE("Annual Reporting RIN Response ",CRY) -> Annual Reporting RIN Response 2017
B4: 6.2 RELIABILITY AND CUSTOMER SERVICE PERFORMANCE
B6: Did the MAIFI parameter of the STPIS apply during the period? NB:This flag is set from the response on worksheet 3.6.8 Network feeders | D6: =dms_MAIFI_Flag -> Yes
B9: 6.2.1 - UNPLANNED MINUTES OFF SUPPLY (SAIDI)
D10: =CRY -> 2017
B11: Total sustained minutes off supply | C11: =INDEX(dms_FeederName_1,MATCH(dms_TradingName,dms_TradingName_List)) -> CBD | D11: 0
C12: =INDEX(dms_FeederName_2,MATCH(dms_TradingName,dms_TradingName_List)) -> Urban | D12: 60.25655336
C13: =INDEX(dms_FeederName_3,MATCH(dms_TradingName,dms_TradingName_List)) -> Short rural | D13: 139.5022009
C14: =INDEX(dms_FeederName_4,MATCH(dms_TradingName,dms_TradingName_List)) -> Long rural | D14: 285.584916
C15: =IF((INDEX(dms_FeederName_5,MATCH(dms_TradingName,dms_TradingName_List))=0),"",(INDEX(dms_FeederName_5,MATCH(dms_TradingName,dms_TradingName_List)))) -> 
C16: Whole Network | D16: 146.0967384
B17: Total of excluded events* *see 3.3 of STPIS | C17: =INDEX(dms_FeederName_1,MATCH(dms_TradingName,dms_TradingName_List)) -> CBD | D17: 0
C18: =INDEX(dms_FeederName_2,MATCH(dms_TradingName,dms_TradingName_List)) -> Urban | D18: 4.113741268
C19: =INDEX(dms_FeederName_3,MATCH(dms_TradingName,dms_TradingName_List)) -> Short rural | D19: 40.10733057
C20: =INDEX(dms_FeederName_4,MATCH(dms_TradingName,dms_TradingName_List)) -> Long rural | D20: 117.6239479
C21: =IF((INDEX(dms_FeederName_5,MATCH(dms_TradingName,dms_TradingName_List))=0),"",(INDEX(dms_FeederName_5,MATCH(dms_TradingName,dms_TradingName_List)))) -> 
C22: Whole Network | D22: 46.00123294
B23: Total sustained minutes off supply after removing excluded events | C23: =INDEX(dms_FeederName_1,MATCH(dms_TradingName,dms_TradingName_List)) -> CBD | D23: 0
C24: =INDEX(dms_FeederName_2,MATCH(dms_TradingName,dms_TradingName_List)) -> Urban | D24: 56.14281209
C25: =INDEX(dms_FeederName_3,MATCH(dms_TradingName,dms_TradingName_List)) -> Short rural | D25: 99.39487035
C26: =INDEX(dms_FeederName_4,MATCH(dms_TradingName,dms_TradingName_List)) -> Long rural | D26: 167.9609681
C27: =IF((INDEX(dms_FeederName_5,MATCH(dms_TradingName,dms_TradingName_List))=0),"",(INDEX(dms_FeederName_5,MATCH(dms_TradingName,dms_TradingName_List)))) -> 
C28: Whole Network | D28: 100.0955055
B31: 6.2.2 - UNPLANNED INTERRUPTIONS TO SUPPLY (SAIFI)
D32: =CRY -> 2017
B33: Total sustained interruptions | C33: =INDEX(dms_FeederName_1,MATCH(dms_TradingName,dms_TradingName_List)) -> CBD | D33: 0
C34: =INDEX(dms_FeederName_2,MATCH(dms_TradingName,dms_TradingName_List)) -> Urban | D34: 0.7476483087
C35: =INDEX(dms_FeederName_3,MATCH(dms_TradingName,dms_TradingName_List)) -> Short rural | D35: 1.316520425
C36: =INDEX(dms_FeederName_4,MATCH(dms_TradingName,dms_TradingName_List)) -> Long rural | D36: 1.995066436
C37: =IF((INDEX(dms_FeederName_5,MATCH(dms_TradingName,dms_TradingName_List))=0),"",(INDEX(dms_FeederName_5,MATCH(dms_TradingName,dms_TradingName_List)))) -> 
C38: Whole Network | D38: 1.267773079
B39: Total of excluded events* *see 3.3 of STPIS | C39: =INDEX(dms_FeederName_1,MATCH(dms_TradingName,dms_TradingName_List)) -> CBD | D39: 0
C40: =INDEX(dms_FeederName_2,MATCH(dms_TradingName,dms_TradingName_List)) -> Urban | D40: 0.03516785963
C41: =INDEX(dms_FeederName_3,MATCH(dms_TradingName,dms_TradingName_List)) -> Short rural | D41: 0.1609228546
C42: =INDEX(dms_FeederName_4,MATCH(dms_TradingName,dms_TradingName_List)) -> Long rural | D42: 0.3290110071
C43: =IF((INDEX(dms_FeederName_5,MATCH(dms_TradingName,dms_TradingName_List))=0),"",(INDEX(dms_FeederName_5,MATCH(dms_TradingName,dms_TradingName_List)))) -> 
C44: Whole Network | D44: 0.1548427153
B45: Total sustained interruptions after removing excluded events | C45: =INDEX(dms_FeederName_1,MATCH(dms_TradingName,dms_TradingName_List)) -> CBD | D45: 0
C46: =INDEX(dms_FeederName_2,MATCH(dms_TradingName,dms_TradingName_List)) -> Urban | D46: 0.712480449
C47: =INDEX(dms_FeederName_3,MATCH(dms_TradingName,dms_TradingName_List)) -> Short rural | D47: 1.155597571
C48: =INDEX(dms_FeederName_4,MATCH(dms_TradingName,dms_TradingName_List)) -> Long rural | D48: 1.666055429
C49: =IF((INDEX(dms_FeederName_5,MATCH(dms_TradingName,dms_TradingName_List))=0),"",(INDEX(dms_FeederName_5,MATCH(dms_TradingName,dms_TradingName_List)))) -> 
C50: Whole Network | D50: 1.112930364
B53: 6.2.3 - UNPLANNED MOMENTARY INTERRUPTIONS TO SUPPLY (MAIFI)
D54: =CRY -> 2017
B55: Total momentary interruptions | C55: =INDEX(dms_FeederName_1,MATCH(dms_TradingName,dms_TradingName_List)) -> CBD | D55: 0
C56: =INDEX(dms_FeederName_2,MATCH(dms_TradingName,dms_TradingName_List)) -> Urban | D56: 1.193939278
C57: =INDEX(dms_FeederName_3,MATCH(dms_TradingName,dms_TradingName_List)) -> Short rural | D57: 2.306501299
C58: =INDEX(dms_FeederName_4,MATCH(dms_TradingName,dms_TradingName_List)) -> Long rural | D58: 4.728731584
C59: =IF((INDEX(dms_FeederName_5,MATCH(dms_TradingName,dms_TradingName_List))=0),"",(INDEX(dms_FeederName_5,MATCH(dms_TradingName,dms_TradingName_List)))) -> 
C60: Whole Network | D60: 2.495481325
B61: Total of excluded events* *see 3.3 of STPIS | C61: =INDEX(dms_FeederName_1,MATCH(dms_TradingName,dms_TradingName_List)) -> CBD | D61: 0
C62: =INDEX(dms_FeederName_2,MATCH(dms_TradingName,dms_TradingName_List)) -> Urban | D62: 0.008333253696
C63: =INDEX(dms_FeederName_3,MATCH(dms_TradingName,dms_TradingName_List)) -> Short rural | D63: 0.1443155605
C64: =INDEX(dms_FeederName_4,MATCH(dms_TradingName,dms_TradingName_List)) -> Long rural | D64: 0.3477604917
C65: =IF((INDEX(dms_FeederName_5,MATCH(dms_TradingName,dms_TradingName_List))=0),"",(INDEX(dms_FeederName_5,MATCH(dms_TradingName,dms_TradingName_List)))) -> 
C66: Whole Network | D66: 0.1433709722
B67: Total momentary interruptions after removing excluded events | C67: =INDEX(dms_FeederName_1,MATCH(dms_TradingName,dms_TradingName_List)) -> CBD | D67: 0
C68: =INDEX(dms_FeederName_2,MATCH(dms_TradingName,dms_TradingName_List)) -> Urban | D68: 1.185606024
C69: =INDEX(dms_FeederName_3,MATCH(dms_TradingName,dms_TradingName_List)) -> Short rural | D69: 2.162185739
C70: =INDEX(dms_FeederName_4,MATCH(dms_TradingName,dms_TradingName_List)) -> Long rural | D70: 4.380971092
C71: =IF((INDEX(dms_FeederName_5,MATCH(dms_TradingName,dms_TradingName_List))=0),"",(INDEX(dms_FeederName_5,MATCH(dms_TradingName,dms_TradingName_List)))) -> 
C72: Whole Network | D72: 2.352110352
B75: 6.2.4 - DISTRIBUTION CUSTOMER NUMBERS
D76: =CRY -> 2017
B77: Customer numbers at the start of the period | C77: =INDEX(dms_FeederName_1,MATCH(dms_TradingName,dms_TradingName_List)) -> CBD | D77: 0
C78: =INDEX(dms_FeederName_2,MATCH(dms_TradingName,dms_TradingName_List)) -> Urban | D78: 312209
C79: =INDEX(dms_FeederName_3,MATCH(dms_TradingName,dms_TradingName_List)) -> Short rural | D79: 268096
C80: =INDEX(dms_FeederName_4,MATCH(dms_TradingName,dms_TradingName_List)) -> Long rural | D80: 204832
C81: =IF((INDEX(dms_FeederName_5,MATCH(dms_TradingName,dms_TradingName_List))=0),"",(INDEX(dms_FeederName_5,MATCH(dms_TradingName,dms_TradingName_List)))) -> 
C82: Whole Network | D82: 785137
B83: Customer numbers at the end of the period | C83: =INDEX(dms_FeederName_1,MATCH(dms_TradingName,dms_TradingName_List)) -> CBD | D83: 0
C84: =INDEX(dms_FeederName_2,MATCH(dms_TradingName,dms_TradingName_List)) -> Urban | D84: 315551
C85: =INDEX(dms_FeederName_3,MATCH(dms_TradingName,dms_TradingName_List)) -> Short rural | D85: 279794
C86: =INDEX(dms_FeederName_4,MATCH(dms_TradingName,dms_TradingName_List)) -> Long rural | D86: 207401
C87: =IF((INDEX(dms_FeederName_5,MATCH(dms_TradingName,dms_TradingName_List))=0),"",(INDEX(dms_FeederName_5,MATCH(dms_TradingName,dms_TradingName_List)))) -> 
C88: Whole Network | D88: 802746
B89: Average customer numbers | C89: =INDEX(dms_FeederName_1,MATCH(dms_TradingName,dms_TradingName_List)) -> CBD | D89: 0
C90: =INDEX(dms_FeederName_2,MATCH(dms_TradingName,dms_TradingName_List)) -> Urban | D90: 313880
C91: =INDEX(dms_FeederName_3,MATCH(dms_TradingName,dms_TradingName_List)) -> Short rural | D91: 273945
C92: =INDEX(dms_FeederName_4,MATCH(dms_TradingName,dms_TradingName_List)) -> Long rural | D92: 206117
C93: =IF((INDEX(dms_FeederName_5,MATCH(dms_TradingName,dms_TradingName_List))=0),"",(INDEX(dms_FeederName_5,MATCH(dms_TradingName,dms_TradingName_List)))) ->  | D93: =ROUND(SUM(D81+D87)/2,0) -> 0
C94: Whole Network | D94: 793942

Sheet 6.6 STPIS Customer Service
B1: =(LOOKUP(dms_Model,dms_Model_List,dms_Worksheet_List)) -> ANNUAL REPORTING STATEMENT
B2: =dms_TradingName -> Powercor Australia
B3: =CONCATENATE("Annual Reporting RIN Response ",CRY) -> Annual Reporting RIN Response 2017
B4: 6.6 STPIS CUSTOMER SERVICE
B7: 6.6.1 - TELEPHONE ANSWERING
C8: Number of calls after removing excluded events | D8: Total number of calls
C9: =CRY -> 2017 | D9: =CRY -> 2017
B10: Number of calls received | C10: 72608 | D10: 75599
B11: Number of calls answered within 30 seconds | C11: 60808
B12: Percentage of calls answered within 30 seconds | C12: 0.8375

Sheet 6.7 STPIS Daily Performance
B1: =(LOOKUP(dms_Model,dms_Model_List,dms_Worksheet_List)) -> ANNUAL REPORTING STATEMENT | I1: =CONCATENATE(IF(LEN(CRY)=4,"1-Jan-","1-Jul-"),LEFT(CRY,4)) -> 1-Jan-2017
B2: =dms_TradingName -> Powercor Australia
B3: =CONCATENATE("Annual Reporting RIN Response ",CRY) -> Annual Reporting RIN Response 2017
B4: 6.7 STPIS DAILY PERFORMANCE
B7: Did the MAIFI parameter of the STPIS apply during the period? This flag is set from the response on worksheet 3.6.8 Network feeders | G7: =dms_MAIFI_Flag -> Yes
B9: The excluded events to be removed from the data refer only to events listed in clause 3.3(a) of the STPIS, with respect to reliability data, and in clause 5.4 of the STPIS with respect to customer service parameters. *Customer service information must be reported as per the definitions in the STPIS, that is excluding: • calls to payment lines and automated interactive services • calls abandoned by the customer within 30 seconds of the call being queued for response by a human operator (where the time in which a telephone call is abandoned is not measured, then an estimate of the number of calls abandoned within 30 seconds will be determined by taking 20 per cent of all calls abandoned).
B11: 6.7.1 - DAILY PERFORMANCE DATA - UNPLANNED
B12: Date | C12: Customer service* | E12: MAIFI
C13: Number of calls received (after removing excluded events) | D13: Number of calls answered in 30 seconds (after removing excluded events) | E13: =INDEX(dms_FeederName_1,MATCH(dms_TradingName,dms_TradingName_List)) -> CBD | G13: =INDEX(dms_FeederName_2,MATCH(dms_TradingName,dms_TradingName_List)) -> Urban | I13: =INDEX(dms_FeederName_3,MATCH(dms_TradingName,dms_TradingName_List)) -> Short rural | K13: =INDEX(dms_FeederName_4,MATCH(dms_TradingName,dms_TradingName_List)) -> Long rural | M13: =IF((INDEX(dms_FeederName_5,MATCH(dms_TradingName,dms_TradingName_List))=0),"Network",(INDEX(dms_FeederName_5,MATCH(dms_TradingName,dms_TradingName_List)))) -> Network
E14: All events | F14: After removing excluded events | G14: All events | H14: After removing excluded events | I14: All events | J14: After removing excluded events | K14: All events | L14: After removing excluded events | M14: All events | N14: After removing excluded events
B15: =CONCATENATE(IF(LEN(CRY)=4,"1-Jan-","1-Jul-"),LEFT(CRY,4)) -> 1-Jan-2017 | C15: 69 | D15: 60 | E15: 0 | F15: 0 | G15: 0.01207620977 | H15: 0.01207620977 | I15: 0.006431220253 | J15: 0.006431220253 | K15: 0.01703704782 | L15: 0.01703704782 | M15: 0.0114163302 | N15: 0.0114163302
B16: =B15+1 -> 2017-01-02 | C16: 131 | D16: 123 | E16: 0 | F16: 0 | G16: 0 | H16: 0 | I16: 0.003792302975 | J16: 0.003792302975 | K16: 0.0002231503985 | L16: 0.0002231503985 | M16: 0.001366433344 | N16: 0.001366433344
B17: 2017-01-03 | C17: 144 | D17: 142 | E17: 0 | F17: 0 | G17: 0.004115658935 | H17: 0.004115658935 | I17: 0.001719128683 | J17: 0.001719128683 | K17: 0.01274867929 | L17: 0.01274867929 | M17: 0.005529962042 | N17: 0.005529962042
B18: 2017-01-04 | C18: 250 | D18: 212 | E18: 0 | F18: 0 | G18: 0 | H18: 0 | I18: 0.01308143779 | J18: 0.01308143779 | K18: 0.007470687255 | L18: 0.007470687255 | M18: 0.006453091666 | N18: 0.006453091666
B19: 2017-01-05 | C19: 445 | D19: 373 | E19: 0 | F19: 0 | G19: 0.009980154369 | H19: 0.009980154369 | I19: 0.002073174293 | J19: 0.002073174293 | K19: 0.1373393681 | L19: 0.1373393681 | M19: 0.0403154509 | N19: 0.0403154509
B20: 2017-01-06 | C20: 211 | D20: 202 | E20: 0 | F20: 0 | G20: 0 | H20: 0 | I20: 0 | J20: 0 | K20: 0.02913568029 | L20: 0.02913568029 | M20: 0.007563869739 | N20: 0.007563869739
B21: 2017-01-07 | C21: 255 | D21: 240 | E21: 0 | F21: 0 | G21: 0 | H21: 0 | I21: 0 | J21: 0 | K21: 0.0003298745022 | L21: 0.0003298745022 | M21: 8.563821883e-05 | N21: 8.563821883e-05
B22: 2017-01-08 | C22: 111 | D22: 105 | E22: 0 | F22: 0 | G22: 0 | H22: 0 | I22: 0.01040237101 | J22: 0.01040237101 | K22: 0.01223931425 | L22: 0.01223931425 | M22: 0.006766678673 | N22: 0.006766678673
B23: 2017-01-09 | C23: 180 | D23: 177 | E23: 0 | F23: 0 | G23: 0.009120070845 | H23: 0.009120070845 | I23: 0.02060034456 | J23: 0.02060034456 | K23: 0.01789084065 | L23: 0.01789084065 | M23: 0.01535820704 | N23: 0.01535820704
B24: 2017-01-10 | C24: 152 | D24: 148 | E24: 0 | F24: 0 | G24: 0.01466601683 | H24: 0.01466601683 | I24: 0.02988947937 | J24: 0.02988947937 | K24: 0.02264006326 | L24: 0.02264006326 | M24: 0.02198887207 | N24: 0.02198887207
B25: 2017-01-11 | C25: 271 | D25: 262 | E25: 0 | F25: 0 | G25: 0 | H25: 0 | I25: 0 | J25: 0 | K25: 0.006403446218 | L25: 0.006403446218 | M25: 0.001662388954 | N25: 0.001662388954
B26: 2017-01-12 | C26: 174 | D26: 173 | E26: 0 | F26: 0 | G26: 0 | H26: 0 | I26: 0 | J26: 0 | K26: 0 | L26: 0 | M26: 0 | N26: 0
B27: 2017-01-13 | C27: 298 | D27: 289 | E27: 0 | F27: 0 | G27: 0.01315927791 | H27: 0.01315927791 | I27: 0.01839212194 | J27: 0.01839212194 | K27: 0.008513672813 | L27: 0.008513672813 | M27: 0.01375878736 | N27: 0.01375878736
B28: 2017-01-14 | C28: 105 | D28: 103 | E28: 0 | F28: 0 | G28: 0.01011075964 | H28: 0.01011075964 | I28: 0.007026162876 | J28: 0.007026162876 | K28: 0.002706911356 | L28: 0.002706911356 | M28: 0.007124344175 | N28: 0.007124344175
B29: 2017-01-15 | C29: 88 | D29: 87 | E29: 0 | F29: 0 | G29: 0.0240632257 | H29: 0.0240632257 | I29: 0 | J29: 0 | K29: 0.02229078437 | L29: 0.02229078437 | M29: 0.0153002753 | N29: 0.0153002753
B30: 2017-01-16 | C30: 216 | D30: 205 | E30: 0 | F30: 0 | G30: 0 | H30: 0 | I30: 0.01891771542 | J30: 0.01891771542 | K30: 0.01556716584 | L30: 0.01556716584 | M30: 0.01056876371 | N30: 0.01056876371
B31: 2017-01-17 | C31: 249 | D31: 221 | E31: 0 | F31: 0 | G31: 0.005399413232 | H31: 0.005399413232 | I31: 0.003916401437 | J31: 0.003916401437 | K31: 0.01865246266 | L31: 0.01865246266 | M31: 0.008328316781 | N31: 0.008328316781
B32: 2017-01-18 | C32: 163 | D32: 157 | E32: 0 | F32: 0 | G32: 0 | H32: 0 | I32: 0.008281747306 | J32: 0.008281747306 | K32: 0.0001309795817 | L32: 0.0001309795817 | M32: 0.002891549271 | N32: 0.002891549271
B33: 2017-01-19 | C33: 193 | D33: 184 | E33: 0 | F33: 0 | G33: 0 | H33: 0 | I33: 0.008358396356 | J33: 0.008358396356 | K33: 0.0006209402394 | L33: 0.0006209402394 | M33: 0.003045194311 | N33: 0.003045194311
B34: 2017-01-20 | C34: 468 | D34: 384 | E34: 0 | F34: 0 | G34: 0.003596423327 | H34: 0.003596423327 | I34: 0.008905889567 | J34: 0.008905889567 | K34: 0.04022528488 | L34: 0.04022528488 | M34: 0.01493757226 | N34: 0.01493757226
B35: 2017-01-21 | C35: 108 | D35: 92 | E35: 0 | F35: 0 | G35: 0 | H35: 0 | I35: 0 | J35: 0 | K35: 0.008256564745 | L35: 0.008256564745 | M35: 0.002143474242 | N35: 0.002143474242
B36: 2017-01-22 | C36: 99 | D36: 93 | E36: 0 | F36: 0 | G36: 0 | H36: 0 | I36: 0.0003503956551 | J36: 0.0003503956551 | K36: 0.01476673507 | L36: 0.01476673507 | M36: 0.003954470693 | N36: 0.003954470693
B37: 2017-01-23 | C37: 223 | D37: 214 | E37: 0 | F37: 0 | G37: 0.007329822918 | H37: 0.007329822918 | I37: 0.0006241422606 | J37: 0.0006241422606 | K37: 0.006713916338 | L37: 0.006713916338 | M37: 0.004856190762 | N37: 0.004856190762
B38: 2017-01-24 | C38: 223 | D38: 209 | E38: 0 | F38: 0 | G38: 0.03292208599 | H38: 0.03292208599 | I38: 0.02056384501 | J38: 0.02056384501 | K38: 0.02187359015 | L38: 0.02187359015 | M38: 0.02578969772 | N38: 0.02578969772
B39: 2017-01-25 | C39: 159 | D39: 146 | E39: 0 | F39: 0 | G39: 0 | H39: 0 | I39: 0.01205215055 | J39: 0.01205215055 | K39: 0.002532271914 | L39: 0.002532271914 | M39: 0.004815890423 | N39: 0.004815890423
B40: 2017-01-26 | C40: 68 | D40: 67 | E40: 0 | F40: 0 | G40: 0.01922127401 | H40: 0.01922127401 | I40: 0.002354220808 | J40: 0.002354220808 | K40: 6.306424306e-05 | L40: 6.306424306e-05 | M40: 0.008427808241 | N40: 0.008427808241
B41: 2017-01-27 | C41: 232 | D41: 219 | E41: 0 | F41: 0 | G41: 0.02826489298 | H41: 0.02826489298 | I41: 0.01476041697 | J41: 0.01476041697 | K41: 0.002420696714 | L41: 0.002420696714 | M41: 0.01689591682 | N41: 0.01689591682
B42: 2017-01-28 | C42: 114 | D42: 105 | E42: 0 | F42: 0 | G42: 0.004647636522 | H42: 0.004647636522 | I42: 0.0005219435279 | J42: 0.0005219435279 | K42: 0.0002716613547 | L42: 0.0002716613547 | M42: 0.002088061277 | N42: 0.002088061277
B43: 2017-01-29 | C43: 121 | D43: 113 | E43: 0 | F43: 0 | G43: 0 | H43: 0 | I43: 0.02135588519 | J43: 0.02135588519 | K43: 0.03021747462 | L43: 0.03021747462 | M43: 0.0152133777 | N43: 0.0152133777
B44: 2017-01-30 | C44: 204 | D44: 198 | E44: 0 | F44: 0 | G44: 0 | H44: 0 | I44: 0.002065874383 | J44: 0.002065874383 | K44: 0.03747956476 | L44: 0.03747956476 | M44: 0.01044282515 | N44: 0.01044282515
B45: 2017-01-31 | C45: 169 | D45: 165 | E45: 0 | F45: 0 | G45: 0 | H45: 0 | I45: 0.008800040879 | J45: 0.008800040879 | K45: 0.006325828688 | L45: 0.006325828688 | M45: 0.004678617396 | N45: 0.004678617396
B46: 2017-02-01 | C46: 156 | D46: 151 | E46: 0 | F46: 0 | G46: 0.003344769259 | H46: 0.003344769259 | I46: 0.010241773 | J46: 0.010241773 | K46: 0.01834199254 | L46: 0.01834199254 | M46: 0.009617927605 | N46: 0.009617927605
B47: 2017-02-02 | C47: 149 | D47: 145 | E47: 0 | F47: 0 | G47: 0 | H47: 0 | I47: 0 | J47: 0 | K47: 0.0003056190241 | L47: 0.0003056190241 | M47: 7.934129097e-05 | N47: 7.934129097e-05
B48: 2017-02-03 | C48: 165 | D48: 161 | E48: 0 | F48: 0 | G48: 0 | H48: 0 | I48: 0.0188228166 | J48: 0.0188228166 | K48: 0 | L48: 0 | M48: 0.006494651389 | N48: 0.006494651389
B49: 2017-02-04 | C49: 133 | D49: 129 | E49: 0 | F49: 0 | G49: 0.01780372894 | H49: 0.01780372894 | I49: 0.008613893188 | J49: 0.008613893188 | K49: 0.003230829683 | L49: 0.003230829683 | M49: 0.01084960669 | N49: 0.01084960669
B50: 2017-02-05 | C50: 212 | D50: 178 | E50: 0 | F50: 0 | G50: 0 | H50: 0 | I50: 0.01457061932 | J50: 0.01457061932 | K50: 0.08076103988 | L50: 0.08076103988 | M50: 0.02599371818 | N50: 0.02599371818
B51: 2017-02-06 | C51: 275 | D51: 262 | E51: 0 | F51: 0 | G51: 0 | H51: 0 | I51: 0 | J51: 0 | K51: 0.01958872411 | L51: 0.01958872411 | M51: 0.005085398936 | N51: 0.005085398936
B52: 2017-02-07 | C52: 236 | D52: 224 | E52: 0 | F52: 0 | G52: 0 | H52: 0 | I52: 0 | J52: 0 | K52: 0.01021640738 | L52: 0.01021640738 | M52: 0.002652266012 | N52: 0.002652266012
B53: 2017-02-08 | C53: 421 | D53: 342 | E53: 0 | F53: 0 | G53: 0.008686843589 | H53: 0.008686843589 | I53: 0 | J53: 0 | K53: 0.01885620867 | L53: 0.01885620867 | M53: 0.008329576166 | N53: 0.008329576166
B54: 2017-02-09 | C54: 392 | D54: 325 | E54: 0 | F54: 0 | G54: 0.009139183813 | H54: 0.009139183813 | I54: 0 | J54: 0 | K54: 0.03509282571 | L54: 0.03509282571 | M54: 0.01272357242 | N54: 0.01272357242
B55: 2017-02-10 | C55: 266 | D55: 226 | E55: 0 | F55: 0 | G55: 0 | H55: 0 | I55: 0 | J55: 0 | K55: 0 | L55: 0 | M55: 0 | N55: 0
B56: 2017-02-11 | C56: 124 | D56: 112 | E56: 0 | F56: 0 | G56: 0.008269543805 | H56: 0.008269543805 | I56: 0 | J56: 0 | K56: 0.02641906675 | L56: 0.02641906675 | M56: 0.01012797876 | N56: 0.01012797876
B57: 2017-02-12 | C57: 127 | D57: 122 | E57: 0 | F57: 0 | G57: 0 | H57: 0 | I57: 0 | J57: 0 | K57: 0.0114097769 | L57: 0.0114097769 | M57: 0.002962074863 | N57: 0.002962074863
B58: 2017-02-13 | C58: 183 | D58: 165 | E58: 0 | F58: 0 | G58: 0 | H58: 0 | I58: 0 | J58: 0 | K58: 0.01438349851 | L58: 0.01438349851 | M58: 0.003734078218 | N58: 0.003734078218
B59: 2017-02-14 | C59: 163 | D59: 158 | E59: 0 | F59: 0 | G59: 0 | H59: 0 | I59: 0.01810377551 | J59: 0.01810377551 | K59: 0.002784528886 | L59: 0.002784528886 | M59: 0.00696943975 | N59: 0.00696943975
B60: 2017-02-15 | C60: 168 | D60: 159 | E60: 0 | F60: 0 | G60: 0 | H60: 0 | I60: 0 | J60: 0 | K60: 0.01142433018 | L60: 0.01142433018 | M60: 0.00296585302 | N60: 0.00296585302
B61: 2017-02-16 | C61: 250 | D61: 231 | E61: 0 | F61: 0 | G61: 0 | H61: 0 | I61: 0.002383420446 | J61: 0.002383420446 | K61: 0.01481039493 | L61: 0.01481039493 | M61: 0.004667282926 | N61: 0.004667282926
B62: 2017-02-17 | C62: 164 | D62: 152 | E62: 0 | F62: 0 | G62: 0 | H62: 0 | I62: 0 | J62: 0 | K62: 0.01323378885 | L62: 0.01323378885 | M62: 0.003435603838 | N62: 0.003435603838
B63: 2017-02-18 | C63: 98 | D63: 95 | E63: 0 | F63: 0 | G63: 0 | H63: 0 | I63: 0 | J63: 0 | K63: 0.02354721814 | L63: 0.02354721814 | M63: 0.006113057561 | N63: 0.006113057561
B64: 2017-02-19 | C64: 123 | D64: 103 | E64: 0 | F64: 0 | G64: 0 | H64: 0 | I64: 0.00801530061 | J64: 0.00801530061 | K64: 0.02017085559 | L64: 0.02017085559 | M64: 0.008002135918 | N64: 0.008002135918
B65: 2017-02-20 | C65: 168 | D65: 164 | E65: 0 | F65: 0 | G65: 0 | H65: 0 | I65: 0.00864674278 | J65: 0.00864674278 | K65: 0.0003395766934 | L65: 0.0003395766934 | M65: 0.003071641408 | N65: 0.003071641408
B66: 2017-02-21 | C66: 183 | D66: 172 | E66: 0 | F66: 0 | G66: 0 | H66: 0 | I66: 0 | J66: 0 | K66: 0.0002134482073 | L66: 0.0002134482073 | M66: 5.541296512e-05 | N66: 5.541296512e-05
B67: 2017-02-22 | C67: 210 | D67: 192 | E67: 0 | F67: 0 | G67: 0.008142124024 | H67: 0.008142124024 | I67: 0 | J67: 0 | K67: 0 | L67: 0 | M67: 0.003218989519 | N67: 0.003218989519
B68: 2017-02-23 | C68: 160 | D68: 154 | E68: 0 | F68: 0 | G68: 0 | H68: 0 | I68: 0 | J68: 0 | K68: 0.03445248109 | L68: 0.03445248109 | M68: 0.008944156325 | N68: 0.008944156325
B69: 2017-02-24 | C69: 110 | D69: 109 | E69: 0 | F69: 0 | G69: 0.01252217901 | H69: 0.01252217901 | I69: 0 | J69: 0 | K69: 0.007485240542 | L69: 0.007485240542 | M69: 0.006893876615 | N69: 0.006893876615
B70: 2017-02-25 | C70: 83 | D70: 83 | E70: 0 | F70: 0 | G70: 0.01116515834 | H70: 0.01116515834 | I70: 0.01469836774 | J70: 0.01469836774 | K70: 0.002124779882 | L70: 0.002124779882 | M70: 0.010037303 | N70: 0.010037303
B71: 2017-02-26 | C71: 131 | D71: 108 | E71: 0 | F71: 0 | G71: 0.008065672155 | H71: 0.008065672155 | I71: 0.005522381522 | J71: 0.005522381522 | K71: 0.0006646000999 | L71: 0.0006646000999 | M71: 0.005266750458 | N71: 0.005266750458
B72: 2017-02-27 | C72: 551 | D72: 301 | E72: 0 | F72: 0 | G72: 0.008275914794 | H72: 0.008275914794 | I72: 0.01431512249 | J72: 0.01431512249 | K72: 0.03581078787 | L72: 0.03581078787 | M72: 0.01750797821 | N72: 0.01750797821
B73: 2017-02-28 | C73: 226 | D73: 199 | E73: 0 | F73: 0 | G73: 0.002032345511 | H73: 0.002032345511 | I73: 0 | J73: 0 | K73: 0.03032904982 | L73: 0.03032904982 | M73: 0.008677166584 | N73: 0.008677166584
B74: 2017-03-01 | C74: 201 | D74: 192 | E74: 0 | F74: 0 | G74: 0 | H74: 0 | I74: 0 | J74: 0 | K74: 0.0004705562751 | L74: 0.0004705562751 | M74: 0.0001221604004 | N74: 0.0001221604004
B75: 2017-03-02 | C75: 190 | D75: 186 | E75: 0 | F75: 0 | G75: 0.00572114818 | H75: 0.00572114818 | I75: 0.02477589278 | J75: 0.02477589278 | K75: 0.004826840142 | L75: 0.004826840142 | M75: 0.01206365438 | N75: 0.01206365438
B76: 2017-03-03 | C76: 197 | D76: 182 | E76: 0 | F76: 0 | G76: 0.005727519169 | H76: 0.005727519169 | I76: 0.01009212486 | J76: 0.01009212486 | K76: 0.002944615041 | L76: 0.002944615041 | M76: 0.006511023402 | N76: 0.006511023402
B77: 2017-03-04 | C77: 166 | D77: 132 | E77: 0 | F77: 0 | G77: 0.009206079198 | H77: 0.009206079198 | I77: 0.001379682892 | J77: 0.001379682892 | K77: 0.0474000553 | L77: 0.0474000553 | M77: 0.01642112846 | N77: 0.01642112846
B78: 2017-03-05 | C78: 78 | D78: 72 | E78: 0 | F78: 0 | G78: 0 | H78: 0 | I78: 0 | J78: 0 | K78: 0 | L78: 0 | M78: 0 | N78: 0
B79: 2017-03-06 | C79: 185 | D79: 174 | E79: 0 | F79: 0 | G79: 0 | H79: 0 | I79: 0 | J79: 0 | K79: 0.005093650401 | L79: 0.005093650401 | M79: 0.00132235485 | N79: 0.00132235485
B80: =B79+1 -> 2017-03-07 | C80: 221 | D80: 213 | E80: 0 | F80: 0 | G80: 0 | H80: 0 | I80: 0.002379770491 | J80: 0.002379770491 | K80: 0.01751730628 | L80: 0.01751730628 | M80: 0.005368760689 | N80: 0.005368760689
B81: 2017-03-08 | C81: 181 | D81: 177 | E81: 0 | F81: 0 | G81: 0.01411174078 | H81: 0.01411174078 | I81: 0 | J81: 0 | K81: 0.006568383469 | L81: 0.006568383469 | M81: 0.007284286142 | N81: 0.007284286142
B82: 2017-03-09 | C82: 191 | D82: 175 | E82: 0 | F82: 0 | G82: 0.008674101611 | H82: 0.008674101611 | I82: 0.0329919409 | J82: 0.0329919409 | K82: 0.006485914844 | L82: 0.006485914844 | M82: 0.01649669159 | N82: 0.01649669159
B83: 2017-03-10 | C83: 379 | D83: 284 | E83: 0 | F83: 0 | G83: 0 | H83: 0 | I83: 0.001295733933 | J83: 0.001295733933 | K83: 0.0309014791 | L83: 0.0309014791 | M83: 0.008469367965 | N83: 0.008469367965
B84: 2017-03-11 | C84: 116 | D84: 109 | E84: 0 | F84: 0 | G84: 0 | H84: 0 | I84: 0 | J84: 0 | K84: 0.01013393875 | L84: 0.01013393875 | M84: 0.002630856458 | N84: 0.002630856458
B85: 2017-03-12 | C85: 314 | D85: 186 | E85: 0 | F85: 0 | G85: 0.003523156952 | H85: 0.003523156952 | I85: 0 | J85: 0 | K85: 0.07142268081 | L85: 0.07142268081 | M85: 0.0199348142 | N85: 0.0199348142
B86: 2017-03-13 | C86: 95 | D86: 92 | E86: 0 | F86: 0 | G86: 0 | H86: 0 | I86: 0.001522031127 | J86: 0.001522031127 | K86: 0.005103352592 | L86: 0.005103352592 | M86: 0.001850037404 | N86: 0.001850037404
B87: 2017-03-14 | C87: 193 | D87: 186 | E87: 0 | F87: 0 | G87: 0 | H87: 0 | I87: 0.004233947499 | J87: 0.004233947499 | K87: 0.02914538248 | L87: 0.02914538248 | M87: 0.009027275773 | N87: 0.009027275773
B88: 2017-03-15 | C88: 198 | D88: 190 | E88: 0 | F88: 0 | G88: 0 | H88: 0 | I88: 0.002335971034 | J88: 0.002335971034 | K88: 0.03007194175 | L88: 0.03007194175 | M88: 0.00861293792 | N88: 0.00861293792
B89: 2017-03-16 | C89: 259 | D89: 227 | E89: 0 | F89: 0 | G89: 0.001468512979 | H89: 0.001468512979 | I89: 0 | J89: 0 | K89: 0.03235195669 | L89: 0.03235195669 | M89: 0.008979419121 | N89: 0.008979419121
B90: 2017-03-17 | C90: 174 | D90: 162 | E90: 0 | F90: 0 | G90: 0 | H90: 0 | I90: 0 | J90: 0 | K90: 0.00406521813 | L90: 0.00406521813 | M90: 0.001055365108 | N90: 0.001055365108
B91: 2017-03-18 | C91: 137 | D91: 116 | E91: 0 | F91: 0 | G91: 0 | H91: 0 | I91: 0.004230297544 | J91: 0.004230297544 | K91: 0.0052052256 | L91: 0.0052052256 | M91: 0.002810948594 | N91: 0.002810948594
B92: 2017-03-19 | C92: 127 | D92: 121 | E92: 0 | F92: 0 | G92: 0 | H92: 0 | I92: 0.0052741846 | J92: 0.0052741846 | K92: 0.0007616220123 | L92: 0.0007616220123 | M92: 0.002017535685 | N92: 0.002017535685
B93: 2017-03-20 | C93: 285 | D93: 256 | E93: 0 | F93: 0 | G93: 0 | H93: 0 | I93: 0.003044062254 | J93: 0.003044062254 | K93: 0.02472118328 | L93: 0.02472118328 | M93: 0.007468156436 | N93: 0.007468156436
B94: 2017-03-21 | C94: 413 | D94: 354 | E94: 0 | F94: 0 | G94: 0 | H94: 0 | I94: 0.004230297544 | J94: 0.004230297544 | K94: 0.03063466884 | L94: 0.03063466884 | M94: 0.009412647757 | N94: 0.009412647757
B95: 2017-03-22 | C95: 276 | D95: 260 | E95: 0 | F95: 0 | G95: 0 | H95: 0 | I95: 0.007902152013 | J95: 0.007902152013 | K95: 0.01072092132 | L95: 0.01072092132 | M95: 0.005509811873 | N95: 0.005509811873
B96: 2017-03-23 | C96: 208 | D96: 192 | E96: 0 | F96: 0 | G96: 0 | H96: 0 | I96: 0 | J96: 0 | K96: 0.02932972412 | L96: 0.02932972412 | M96: 0.007614245162 | N96: 0.007614245162
B97: 2017-03-24 | C97: 209 | D97: 189 | E97: 0 | F97: 0 | G97: 0.004259006189 | H97: 0.004259006189 | I97: 0.01084036558 | J97: 0.01084036558 | K97: 0.008513672813 | L97: 0.008513672813 | M97: 0.007634395331 | N97: 0.007634395331
B98: 2017-03-25 | C98: 102 | D98: 96 | E98: 0 | F98: 0 | G98: 0 | H98: 0 | I98: 0.004033199988 | J98: 0.004033199988 | K98: 0.01990889642 | L98: 0.01990889642 | M98: 0.006560139439 | N98: 0.006560139439
B99: 2017-03-26 | C99: 109 | D99: 104 | E99: 0 | F99: 0 | G99: 0.003124970136 | H99: 0.003124970136 | I99: 0.003055012118 | J99: 0.003055012118 | K99: 0.008339033371 | L99: 0.008339033371 | M99: 0.004454446765 | N99: 0.004454446765
B100: 2017-03-27 | C100: 454 | D100: 426 | E100: 0 | F100: 0 | G100: 0 | H100: 0 | I100: 0.02185592899 | J100: 0.02185592899 | K100: 0.04636677194 | L100: 0.04636677194 | M100: 0.01957840809 | N100: 0.01957840809
B101: 2017-03-28 | C101: 184 | D101: 165 | E101: 0 | F101: 0 | G101: 0.01028596184 | H101: 0.01028596184 | I101: 0.01674599235 | J101: 0.01674599235 | K101: 0 | L101: 0 | M101: 0.009844617008 | N101: 0.009844617008
B102: 2017-03-29 | C102: 180 | D102: 167 | E102: 0 | F102: 0 | G102: 0.004564813665 | H102: 0.004564813665 | I102: 0 | J102: 0 | K102: 0.003885727592 | L102: 0.003885727592 | M102: 0.002813467366 | N102: 0.002813467366
B103: 2017-03-30 | C103: 191 | D103: 184 | E103: 0 | F103: 0 | G103: 0.01914482214 | H103: 0.01914482214 | I103: 0.005453032382 | J103: 0.005453032382 | K103: 0.03408864892 | L103: 0.03408864892 | M103: 0.01830013173 | N103: 0.01830013173
B104: 2017-03-31 | C104: 190 | D104: 163 | E104: 0 | F104: 0 | G104: 0.01379637682 | H104: 0.01379637682 | I104: 0.0009270885041 | J104: 0.0009270885041 | K104: 0.002260610559 | L104: 0.002260610559 | M104: 0.006361156519 | N104: 0.006361156519
B105: 2017-04-01 | C105: 152 | D105: 123 | E105: 0 | F105: 0 | G105: 0 | H105: 0 | I105: 0.002065874383 | J105: 0.002065874383 | K105: 0.01350059911 | L105: 0.01350059911 | M105: 0.004217682277 | N105: 0.004217682277
B106: 2017-04-02 | C106: 153 | D106: 144 | E106: 0 | F106: 0 | G106: 0.006746877419 | H106: 0.006746877419 | I106: 0.005431132654 | J106: 0.005431132654 | K106: 0.03418081974 | L106: 0.03418081974 | M106: 0.0134149751 | N106: 0.0134149751
B107: 2017-04-03 | C107: 173 | D107: 158 | E107: 0 | F107: 0 | G107: 0.01076378602 | H107: 0.01076378602 | I107: 0.00393465121 | J107: 0.00393465121 | K107: 0.00293491285 | L107: 0.00293491285 | M107: 0.00637500976 | N107: 0.00637500976
B108: 2017-04-04 | C108: 160 | D108: 154 | E108: 0 | F108: 0 | G108: 0 | H108: 0 | I108: 0 | J108: 0 | K108: 0.0001261284861 | L108: 0.0001261284861 | M108: 3.274402485e-05 | N108: 3.274402485e-05
B109: 2017-04-05 | C109: 236 | D109: 208 | E109: 0 | F109: 0 | G109: 0 | H109: 0 | I109: 0.03025082489 | J109: 0.03025082489 | K109: 0.01399055977 | L109: 0.01399055977 | M109: 0.0140698556 | N109: 0.0140698556
B110: 2017-04-06 | C110: 290 | D110: 250 | E110: 0 | F110: 0 | G110: 0 | H110: 0 | I110: 0.0009781878705 | J110: 0.0009781878705 | K110: 0.001275838148 | L110: 0.001275838148 | M110: 0.0006687337382 | N110: 0.0006687337382
B111: 2017-04-07 | C111: 162 | D111: 135 | E111: 0 | F111: 0 | G111: 0.008100712595 | H111: 0.008100712595 | I111: 0 | J111: 0 | K111: 0.02006898258 | L111: 0.02006898258 | M111: 0.008412695614 | N111: 0.008412695614
B112: 2017-04-08 | C112: 193 | D112: 171 | E112: 0 | F112: 0 | G112: 0 | H112: 0 | I112: 0.01398297661 | J112: 0.01398297661 | K112: 0.02404688099 | L112: 0.02404688099 | M112: 0.0110674804 | N112: 0.0110674804
B113: 2017-04-09 | C113: 0 | D113: 0 | E113: 0 | F113: 0 | G113: 0 | H113: 0 | I113: 0.04329576313 | J113: 0.04329576313 | K113: 0.1756096614 | L113: 0.1756096614 | M113: 0.06052858931 | N113: 0.06052858931
B114: 2017-04-10 | C114: 958 | D114: 783 | E114: 0 | F114: 0 | G114: 0 | H114: 0 | I114: 0.01165065553 | J114: 0.01165065553 | K114: 0.03308447213 | L114: 0.03308447213 | M114: 0.01260896834 | N114: 0.01260896834
B115: 2017-04-11 | C115: 284 | D115: 246 | E115: 0 | F115: 0 | G115: 0 | H115: 0 | I115: 0.002503868952 | J115: 0.002503868952 | K115: 0 | L115: 0 | M115: 0.0008639385017 | N115: 0.0008639385017
B116: 2017-04-12 | C116: 257 | D116: 244 | E116: 0 | F116: 0 | G116: 0 | H116: 0 | I116: 0.01630069787 | J116: 0.01630069787 | K116: 0.0007470687255 | L116: 0.0007470687255 | M116: 0.005818361338 | N116: 0.005818361338
B117: 2017-04-13 | C117: 226 | D117: 205 | E117: 0 | F117: 0 | G117: 0 | H117: 0 | I117: 0.001759278185 | J117: 0.001759278185 | K117: 0.005476886955 | L117: 0.005476886955 | M117: 0.002028870155 | N117: 0.002028870155
B118: 2017-04-14 | C118: 128 | D118: 116 | E118: 0 | F118: 0 | G118: 0 | H118: 0 | I118: 0.001087686513 | J118: 0.001087686513 | K118: 0.0169497281 | L118: 0.0169497281 | M118: 0.004775590085 | N118: 0.004775590085
B119: 2017-04-15 | C119: 91 | D119: 91 | E119: 0 | F119: 0 | G119: 0.009575596563 | H119: 0.009575596563 | I119: 0.01398662657 | J119: 0.01398662657 | K119: 0.002488612053 | L119: 0.002488612053 | M119: 0.009257743332 | N119: 0.009257743332
B120: 2017-04-16 | C120: 61 | D120: 59 | E120: 0 | F120: 0 | G120: 0 | H120: 0 | I120: 0.001018337373 | J120: 0.001018337373 | K120: 0.009333507973 | L120: 0.009333507973 | M120: 0.002774426413 | N120: 0.002774426413
B121: 2017-04-17 | C121: 89 | D121: 85 | E121: 0 | F121: 0 | G121: 0.0109517302 | H121: 0.0109517302 | I121: 0.001529331036 | J121: 0.001529331036 | K121: 0.0008101329685 | L121: 0.0008101329685 | M121: 0.005067767538 | N121: 0.005067767538
B122: 2017-04-18 | C122: 318 | D122: 240 | E122: 0 | F122: 0 | G122: 0 | H122: 0 | I122: 0 | J122: 0 | K122: 0.003934238548 | L122: 0.003934238548 | M122: 0.001021361698 | N122: 0.001021361698
B123: 2017-04-19 | C123: 188 | D123: 175 | E123: 0 | F123: 0 | G123: 0 | H123: 0 | I123: 0 | J123: 0 | K123: 0.0001891927292 | L123: 0.0001891927292 | M123: 4.911603727e-05 | N123: 4.911603727e-05
B124: 2017-04-20 | C124: 294 | D124: 225 | E124: 0 | F124: 0 | G124: 0.005781672576 | H124: 0.005781672576 | I124: 0.005996875639 | J124: 0.005996875639 | K124: 0.007063195223 | L124: 0.007063195223 | M124: 0.006188620696 | N124: 0.006188620696
B125: 2017-04-21 | C125: 301 | D125: 250 | E125: 0 | F125: 0 | G125: 0 | H125: 0 | I125: 0.01261424358 | J125: 0.01261424358 | K125: 0.01746879533 | L125: 0.01746879533 | M125: 0.008887483974 | N125: 0.008887483974
B126: 2017-04-22 | C126: 245 | D126: 139 | E126: 0 | F126: 0 | G126: 0 | H126: 0 | I126: 0.007942301515 | J126: 0.007942301515 | K126: 0.02329981226 | L126: 0.02329981226 | M126: 0.0087892519 | N126: 0.0087892519
B127: 2017-04-23 | C127: 96 | D127: 92 | E127: 0 | F127: 0 | G127: 0.002016418039 | H127: 0.002016418039 | I127: 0 | J127: 0 | K127: 0.0003686832671 | L127: 0.0003686832671 | M127: 0.0008929043698 | N127: 0.0008929043698
B128: 2017-04-24 | C128: 245 | D128: 220 | E128: 0 | F128: 0 | G128: 0.009228377659 | H128: 0.009228377659 | I128: 0.002029374836 | J128: 0.002029374836 | K128: 0.0234744517 | L128: 0.0234744517 | M128: 0.01044282515 | N128: 0.01044282515
B129: 2017-04-25 | C129: 172 | D129: 169 | E129: 0 | F129: 0 | G129: 0.003911787285 | H129: 0.003911787285 | I129: 0 | J129: 0 | K129: 0.007058344127 | L129: 0.007058344127 | M129: 0.003378931487 | N129: 0.003378931487
B130: 2017-04-26 | C130: 350 | D130: 305 | E130: 0 | F130: 0 | G130: 0 | H130: 0 | I130: 0.01222734838 | J130: 0.01222734838 | K130: 0.02332891884 | L130: 0.02332891884 | M130: 0.01027532687 | N130: 0.01027532687
B131: 2017-04-27 | C131: 220 | D131: 201 | E131: 0 | F131: 0 | G131: 0.008282285783 | H131: 0.008282285783 | I131: 0.009113936987 | J131: 0.009113936987 | K131: 0.005045139445 | L131: 0.005045139445 | M131: 0.007728849249 | N131: 0.007728849249
B132: 2017-04-28 | C132: 190 | D132: 173 | E132: 0 | F132: 0 | G132: 0 | H132: 0 | I132: 0 | J132: 0 | K132: 0.002653549304 | L132: 0.002653549304 | M132: 0.0006888839073 | N132: 0.0006888839073
B133: 2017-04-29 | C133: 118 | D133: 112 | E133: 0 | F133: 0 | G133: 0 | H133: 0 | I133: 0 | J133: 0 | K133: 0.01329685309 | L133: 0.01329685309 | M133: 0.00345197585 | N133: 0.00345197585
B134: 2017-04-30 | C134: 110 | D134: 108 | E134: 0 | F134: 0 | G134: 0 | H134: 0 | I134: 0.00795325138 | J134: 0.00795325138 | K134: 0.02305725748 | L134: 0.02305725748 | M134: 0.008730060778 | N134: 0.008730060778
B135: 2017-05-01 | C135: 229 | D135: 208 | E135: 0 | F135: 0 | G135: 0 | H135: 0 | I135: 0 | J135: 0 | K135: 0.02208218726 | L135: 0.02208218726 | M135: 0.005732723119 | N135: 0.005732723119
B136: 2017-05-02 | C136: 185 | D136: 178 | E136: 0 | F136: 0 | G136: 0 | H136: 0 | I136: 0.01725698601 | J136: 0.01725698601 | K136: 0.0001794905379 | L136: 0.0001794905379 | M136: 0.006000972246 | N136: 0.006000972246
B137: 2017-05-03 | C137: 184 | D137: 162 | E137: 0 | F137: 0 | G137: 0 | H137: 0 | I137: 0 | J137: 0 | K137: 0.006029911856 | L137: 0.006029911856 | M137: 0.001565416265 | N137: 0.001565416265
B138: 2017-05-04 | C138: 355 | D138: 265 | E138: 0 | F138: 0 | G138: 0 | H138: 0 | I138: 0 | J138: 0 | K138: 0.01159896963 | L138: 0.01159896963 | M138: 0.0030111909 | N138: 0.0030111909
B139: 2017-05-05 | C139: 138 | D139: 122 | E139: 0 | F139: 0 | G139: 0 | H139: 0 | I139: 0 | J139: 0 | K139: 0.003434575699 | L139: 0.003434575699 | M139: 0.0008916449843 | N139: 0.0008916449843
B140: 2017-05-06 | C140: 165 | D140: 128 | E140: 0 | F140: 0 | G140: 0.004673120479 | H140: 0.004673120479 | I140: 0 | J140: 0 | K140: 0.007451282872 | L140: 0.007451282872 | M140: 0.00378193487 | N140: 0.00378193487
B141: 2017-05-07 | C141: 108 | D141: 103 | E141: 0 | F141: 0 | G141: 0 | H141: 0 | I141: 0.00232502117 | J141: 0.00232502117 | K141: 0 | L141: 0 | M141: 0.0008022286087 | N141: 0.0008022286087
B142: 2017-05-08 | C142: 204 | D142: 184 | E142: 0 | F142: 0 | G142: 0 | H142: 0 | I142: 0 | J142: 0 | K142: 0.003880876496 | L142: 0.003880876496 | M142: 0.001007508457 | N142: 0.001007508457
B143: 2017-05-09 | C143: 155 | D143: 144 | E143: 0 | F143: 0 | G143: 0 | H143: 0 | I143: 0 | J143: 0 | K143: 0.02116533019 | L143: 0.02116533019 | M143: 0.005494699246 | N143: 0.005494699246
B144: =B143+1 -> 2017-05-10 | C144: 180 | D144: 162 | E144: 0 | F144: 0 | G144: 0.006437884449 | H144: 0.006437884449 | I144: 0 | J144: 0 | K144: 0.01834199254 | L144: 0.01834199254 | M144: 0.007306955083 | N144: 0.007306955083
B145: 2017-05-11 | C145: 166 | D145: 149 | E145: 0 | F145: 0 | G145: 0 | H145: 0 | I145: 0.005584430753 | J145: 0.005584430753 | K145: 0 | L145: 0 | M145: 0.001926859924 | N145: 0.001926859924
B146: 2017-05-12 | C146: 179 | D146: 155 | E146: 0 | F146: 0 | G146: 0 | H146: 0 | I146: 0.008128449207 | J146: 0.008128449207 | K146: 0.006621745521 | L146: 0.006621745521 | M146: 0.004523712971 | N146: 0.004523712971
B147: 2017-05-13 | C147: 86 | D147: 81 | E147: 0 | F147: 0 | G147: 0 | H147: 0 | I147: 0 | J147: 0 | K147: 0.0001164262949 | L147: 0.0001164262949 | M147: 3.02252537e-05 | N147: 3.02252537e-05
B148: 2017-05-14 | C148: 111 | D148: 93 | E148: 0 | F148: 0 | G148: 0 | H148: 0 | I148: 0.002321371215 | J148: 0.002321371215 | K148: 0.01873493128 | L148: 0.01873493128 | M148: 0.005664716298 | N148: 0.005664716298
B149: 2017-05-15 | C149: 171 | D149: 153 | E149: 0 | F149: 0 | G149: 0 | H149: 0 | I149: 0 | J149: 0 | K149: 0.003376362551 | L149: 0.003376362551 | M149: 0.0008765323574 | N149: 0.0008765323574
B150: 2017-05-16 | C150: 163 | D150: 146 | E150: 0 | F150: 0 | G150: 0 | H150: 0 | I150: 0 | J150: 0 | K150: 0.004453305779 | L150: 0.004453305779 | M150: 0.001156115954 | N150: 0.001156115954
B151: 2017-05-17 | C151: 134 | D151: 122 | E151: 0 | F151: 0 | G151: 0 | H151: 0 | I151: 0 | J151: 0 | K151: 0.05306613499 | L151: 0.05306613499 | M151: 0.01377641876 | N151: 0.01377641876
B152: 2017-05-18 | C152: 184 | D152: 158 | E152: 0 | F152: 0 | G152: 0 | H152: 0 | I152: 0 | J152: 0 | K152: 0.00176094771 | L152: 0.00176094771 | M152: 0.0004571569623 | N152: 0.0004571569623
B153: 2017-05-19 | C153: 157 | D153: 144 | E153: 0 | F153: 0 | G153: 0 | H153: 0 | I153: 0 | J153: 0 | K153: 0.01016304532 | L153: 0.01016304532 | M153: 0.002638412771 | N153: 0.002638412771
B154: 2017-05-20 | C154: 88 | D154: 81 | E154: 0 | F154: 0 | G154: 0 | H154: 0 | I154: 0.0005949426227 | J154: 0.0005949426227 | K154: 0.0002134482073 | L154: 0.0002134482073 | M154: 0.0002606928132 | N154: 0.0002606928132
B155: 2017-05-21 | C155: 77 | D155: 74 | E155: 0 | F155: 0 | G155: 0.01391105462 | H155: 0.01391105462 | I155: 0 | J155: 0 | K155: 0.01309310708 | L155: 0.01309310708 | M155: 0.008898818444 | N155: 0.008898818444
B156: 2017-05-22 | C156: 224 | D156: 196 | E156: 0 | F156: 0 | G156: 0 | H156: 0 | I156: 0.005453032382 | J156: 0.005453032382 | K156: 0.008887207176 | L156: 0.008887207176 | M156: 0.004188716409 | N156: 0.004188716409
B157: 2017-05-23 | C157: 143 | D157: 120 | E157: 0 | F157: 0 | G157: 0.005714777191 | H157: 0.005714777191 | I157: 0 | J157: 0 | K157: 0.007625922315 | L157: 0.007625922315 | M157: 0.004239091832 | N157: 0.004239091832
B158: 2017-05-24 | C158: 122 | D158: 107 | E158: 0 | F158: 0 | G158: 0 | H158: 0 | I158: 0 | J158: 0 | K158: 0.01666836455 | L158: 0.01666836455 | M158: 0.004327248822 | N158: 0.004327248822
B159: 2017-05-25 | C159: 165 | D159: 133 | E159: 0 | F159: 0 | G159: 0 | H159: 0 | I159: 0 | J159: 0 | K159: 0 | L159: 0 | M159: 0 | N159: 0
B160: 2017-05-26 | C160: 139 | D160: 120 | E160: 0 | F160: 0 | G160: 0 | H160: 0 | I160: 0 | J160: 0 | K160: 0 | L160: 0 | M160: 0 | N160: 0
B161: 2017-05-27 | C161: 131 | D161: 111 | E161: 0 | F161: 0 | G161: 0.0106586647 | H161: 0.0106586647 | I161: 0 | J161: 0 | K161: 0.003551001994 | L161: 0.003551001994 | M161: 0.005135774358 | N161: 0.005135774358
B162: 2017-05-28 | C162: 177 | D162: 163 | E162: 0 | F162: 0 | G162: 0.008492528423 | H162: 0.008492528423 | I162: 0 | J162: 0 | K162: 0.008688312255 | L162: 0.008688312255 | M162: 0.00561308149 | N162: 0.00561308149
B163: 2017-05-29 | C163: 195 | D163: 144 | E163: 0 | F163: 0 | G163: 0 | H163: 0 | I163: 0.0001094986422 | J163: 0.0001094986422 | K163: 0.001688181276 | L163: 0.001688181276 | M163: 0.0004760477458 | N163: 0.0004760477458
B164: 2017-05-30 | C164: 213 | D164: 174 | E164: 0 | F164: 0 | G164: 0 | H164: 0 | I164: 0.01082211581 | J164: 0.01082211581 | K164: 0.0008101329685 | L164: 0.0008101329685 | M164: 0.003944395608 | N164: 0.003944395608
B165: 2017-05-31 | C165: 199 | D165: 164 | E165: 0 | F165: 0 | G165: 0 | H165: 0 | I165: 0.004796040529 | J165: 0.004796040529 | K165: 0.0001261284861 | L165: 0.0001261284861 | M165: 0.001687576665 | N165: 0.001687576665
B166: 2017-06-01 | C166: 193 | D166: 152 | E166: 0 | F166: 0 | G166: 0.01455133902 | H166: 0.01455133902 | I166: 0 | J166: 0 | K166: 0.0038760254 | L166: 0.0038760254 | M166: 0.006759122359 | N166: 0.006759122359
B167: 2017-06-02 | C167: 167 | D167: 122 | E167: 0 | F167: 0 | G167: 0 | H167: 0 | I167: 0.0007299909481 | J167: 0.0007299909481 | K167: 0 | L167: 0 | M167: 0.0002518771142 | N167: 0.0002518771142
B168: 2017-06-03 | C168: 96 | D168: 84 | E168: 0 | F168: 0 | G168: 0 | H168: 0 | I168: 0 | J168: 0 | K168: 0.0001455328686 | L168: 0.0001455328686 | M168: 3.778156713e-05 | N168: 3.778156713e-05
B169: 2017-06-04 | C169: 94 | D169: 87 | E169: 0 | F169: 0 | G169: 0.009135998318 | H169: 0.009135998318 | I169: 0 | J169: 0 | K169: 9.70219124e-05 | L169: 9.70219124e-05 | M169: 0.003637105529 | N169: 0.003637105529
B170: 2017-06-05 | C170: 210 | D170: 185 | E170: 0 | F170: 0 | G170: 0 | H170: 0 | I170: 0.003047712208 | J170: 0.003047712208 | K170: 0.0008537928291 | L170: 0.0008537928291 | M170: 0.001273238812 | N170: 0.001273238812
B171: 2017-06-06 | C171: 197 | D171: 159 | E171: 0 | F171: 0 | G171: 0 | H171: 0 | I171: 0.001087686513 | J171: 0.001087686513 | K171: 0.003628619524 | L171: 0.003628619524 | M171: 0.001317317307 | N171: 0.001317317307
B172: 2017-06-07 | C172: 169 | D172: 136 | E172: 0 | F172: 0 | G172: 0 | H172: 0 | I172: 0 | J172: 0 | K172: 0.0008392395422 | L172: 0.0008392395422 | M172: 0.0002178737038 | N172: 0.0002178737038
B173: 2017-06-08 | C173: 185 | D173: 140 | E173: 0 | F173: 0 | G173: 0.01455133902 | H173: 0.01455133902 | I173: 0 | J173: 0 | K173: 0.0001794905379 | L173: 0.0001794905379 | M173: 0.005799470554 | N173: 0.005799470554
B174: 2017-06-09 | C174: 194 | D174: 148 | E174: 0 | F174: 0 | G174: 0 | H174: 0 | I174: 0 | J174: 0 | K174: 0.0003880876496 | L174: 0.0003880876496 | M174: 0.0001007508457 | N174: 0.0001007508457
B175: 2017-06-10 | C175: 257 | D175: 150 | E175: 0 | F175: 0 | G175: 0 | H175: 0 | I175: 0 | J175: 0 | K175: 0.0005724292832 | L175: 0.0005724292832 | M175: 0.0001486074974 | N175: 0.0001486074974
B176: 2017-06-11 | C176: 115 | D176: 102 | E176: 0 | F176: 0 | G176: 0 | H176: 0 | I176: 0.00422664759 | J176: 0.00422664759 | K176: 0.001523244025 | L176: 0.001523244025 | M176: 0.00185381556 | N176: 0.00185381556
B177: 2017-06-12 | C177: 66 | D177: 65 | E177: 0 | F177: 0 | G177: 0 | H177: 0 | I177: 0 | J177: 0 | K177: 0.003633470619 | L177: 0.003633470619 | M177: 0.0009432797926 | N177: 0.0009432797926
B178: 2017-06-13 | C178: 196 | D178: 145 | E178: 0 | F178: 0 | G178: 0 | H178: 0 | I178: 0.01516556195 | J178: 0.01516556195 | K178: 0.0002522569722 | L178: 0.0002522569722 | M178: 0.005298235097 | N178: 0.005298235097
B179: 2017-06-14 | C179: 147 | D179: 112 | E179: 0 | F179: 0 | G179: 0 | H179: 0 | I179: 0.0005949426227 | J179: 0.0005949426227 | K179: 0 | L179: 0 | M179: 0.0002052798481 | N179: 0.0002052798481
B180: 2017-06-15 | C180: 186 | D180: 159 | E180: 0 | F180: 0 | G180: 0 | H180: 0 | I180: 0 | J180: 0 | K180: 0.0001843416336 | L180: 0.0001843416336 | M180: 4.78566517e-05 | N180: 4.78566517e-05
B181: 2017-06-16 | C181: 228 | D181: 134 | E181: 0 | F181: 0 | G181: 0 | H181: 0 | I181: 0 | J181: 0 | K181: 0.0003007679284 | L181: 0.0003007679284 | M181: 7.80819054e-05 | N181: 7.80819054e-05
B182: 2017-06-17 | C182: 175 | D182: 137 | E182: 0 | F182: 0 | G182: 0 | H182: 0 | I182: 0.005463982247 | J182: 0.005463982247 | K182: 0.006471361557 | L182: 0.006471361557 | M182: 0.003565320551 | N182: 0.003565320551
B183: 2017-06-18 | C183: 95 | D183: 91 | E183: 0 | F183: 0 | G183: 0 | H183: 0 | I183: 0 | J183: 0 | K183: 0.01037164244 | L183: 0.01037164244 | M183: 0.002692566351 | N183: 0.002692566351
B184: 2017-06-19 | C184: 148 | D184: 126 | E184: 0 | F184: 0 | G184: 0 | H184: 0 | I184: 0.00394195112 | J184: 0.00394195112 | K184: 0.01928310509 | L184: 0.01928310509 | M184: 0.006366194061 | N184: 0.006366194061
B185: 2017-06-20 | C185: 175 | D185: 136 | E185: 0 | F185: 0 | G185: 0.009167853263 | H185: 0.009167853263 | I185: 0.01123456069 | J185: 0.01123456069 | K185: 0.009867128491 | L185: 0.009867128491 | M185: 0.01006249071 | N185: 0.01006249071
B186: 2017-06-21 | C186: 160 | D186: 136 | E186: 0 | F186: 0 | G186: 0 | H186: 0 | I186: 0.01995430257 | J186: 0.01995430257 | K186: 0 | L186: 0 | M186: 0.006885060916 | N186: 0.006885060916
B187: 2017-06-22 | C187: 161 | D187: 127 | E187: 0 | F187: 0 | G187: 0 | H187: 0 | I187: 0.001127836015 | J187: 0.001127836015 | K187: 0 | L187: 0 | M187: 0.0003891501414 | N187: 0.0003891501414
B188: 2017-06-23 | C188: 218 | D188: 173 | E188: 0 | F188: 0 | G188: 0 | H188: 0 | I188: 0 | J188: 0 | K188: 0.003221127492 | L188: 0.003221127492 | M188: 0.0008362320191 | N188: 0.0008362320191
B189: 2017-06-24 | C189: 101 | D189: 81 | E189: 0 | F189: 0 | G189: 0 | H189: 0 | I189: 0 | J189: 0 | K189: 0 | L189: 0 | M189: 0 | N189: 0
B190: 2017-06-25 | C190: 63 | D190: 58 | E190: 0 | F190: 0 | G190: 0.002048272984 | H190: 0.002048272984 | I190: 0 | J190: 0 | K190: 0.009891383969 | L190: 0.009891383969 | M190: 0.003377672101 | N190: 0.003377672101
B191: 2017-06-26 | C191: 225 | D191: 189 | E191: 0 | F191: 0 | G191: 0 | H191: 0 | I191: 0.01645764593 | J191: 0.01645764593 | K191: 0.0001261284861 | L191: 0.0001261284861 | M191: 0.005711313564 | N191: 0.005711313564
B192: 2017-06-27 | C192: 207 | D192: 144 | E192: 0 | F192: 0 | G192: 0 | H192: 0 | I192: 0 | J192: 0 | K192: 6.306424306e-05 | L192: 6.306424306e-05 | M192: 1.637201242e-05 | N192: 1.637201242e-05
B193: 2017-06-28 | C193: 169 | D193: 120 | E193: 0 | F193: 0 | G193: 0 | H193: 0 | I193: 0 | J193: 0 | K193: 0.007223281378 | L193: 0.007223281378 | M193: 0.001875225115 | N193: 0.001875225115
B194: 2017-06-29 | C194: 224 | D194: 167 | E194: 0 | F194: 0 | G194: 0 | H194: 0 | I194: 0.0001240984612 | J194: 0.0001240984612 | K194: 0.0001988949204 | L194: 0.0001988949204 | M194: 9.445391782e-05 | N194: 9.445391782e-05
B195: 2017-06-30 | C195: 149 | D195: 115 | E195: 0 | F195: 0 | G195: 0.006052439611 | H195: 0.006052439611 | I195: 0 | J195: 0 | K195: 0.005142161357 | L195: 0.005142161357 | M195: 0.00372778129 | N195: 0.00372778129
B196: 2017-07-01 | C196: 140 | D196: 116 | E196: 0 | F196: 0 | G196: 0 | H196: 0 | I196: 0.0006314421701 | J196: 0.0006314421701 | K196: 0 | L196: 0 | M196: 0.0002178737038 | N196: 0.0002178737038
B197: 2017-07-02 | C197: 126 | D197: 114 | E197: 0 | F197: 0 | G197: 0 | H197: 0 | I197: 0 | J197: 0 | K197: 0 | L197: 0 | M197: 0 | N197: 0
B198: 2017-07-03 | C198: 232 | D198: 179 | E198: 0 | F198: 0 | G198: 0 | H198: 0 | I198: 0 | J198: 0 | K198: 0.008620396917 | L198: 0.008620396917 | M198: 0.00223792816 | N198: 0.00223792816
B199: 2017-07-04 | C199: 202 | D199: 156 | E199: 0 | F199: 0 | G199: 0.00572114818 | H199: 0.00572114818 | I199: 0.002346920898 | J199: 0.002346920898 | K199: 0.0451879557 | L199: 0.0451879557 | M199: 0.014802818 | N199: 0.014802818
B200: 2017-07-05 | C200: 208 | D200: 174 | E200: 0 | F200: 0 | G200: 0.01871478038 | H200: 0.01871478038 | I200: 0.009544631647 | J200: 0.009544631647 | K200: 0.006874002493 | L200: 0.006874002493 | M200: 0.01247673285 | N200: 0.01247673285
B201: 2017-07-06 | C201: 168 | D201: 117 | E201: 0 | F201: 0 | G201: 0 | H201: 0 | I201: 0.003354308407 | J201: 0.003354308407 | K201: 0.01038619572 | L201: 0.01038619572 | M201: 0.003853719847 | N201: 0.003853719847
B202: 2017-07-07 | C202: 150 | D202: 124 | E202: 0 | F202: 0 | G202: 0.005810342027 | H202: 0.005810342027 | I202: 0 | J202: 0 | K202: 0.007684135462 | L202: 0.007684135462 | M202: 0.004291986026 | N202: 0.004291986026
B203: 2017-07-08 | C203: 119 | D203: 86 | E203: 0 | F203: 0 | G203: 0 | H203: 0 | I203: 0 | J203: 0 | K203: 0 | L203: 0 | M203: 0 | N203: 0
B204: 2017-07-09 | C204: 150 | D204: 122 | E204: 0 | F204: 0 | G204: 0 | H204: 0 | I204: 0.01097176395 | J204: 0.01097176395 | K204: 0.01044925997 | L204: 0.01044925997 | M204: 0.006498429546 | N204: 0.006498429546
... 176 more rows

Sheet 6.8 STPIS Exclusions
B1: =(LOOKUP(dms_Model,dms_Model_List,dms_Worksheet_List)) -> ANNUAL REPORTING STATEMENT
B2: =dms_TradingName -> Powercor Australia
B3: =CONCATENATE("Annual Reporting RIN Response ",CRY) -> Annual Reporting RIN Response 2017
B4: 6.8 STPIS EXCLUSIONS
B7: =CONCATENATE("This information is collected to inform the application of the STPIS to ",dms_TradingName," in future regulatory periods. The information is also collected to monitor network performance, and may be used in performance reports.") -> This information is collected to inform the application of the STPIS to Powercor Australia in future regulatory periods. The information is also collected to monitor network performance, and may be used in performance reports.
B9: 6.8.1 - STPIS EXCLUSIONS
B10: Date of event | C10: Outage ID | D10: Feeder ID / name | E10: Feeder classification (drop down) | F10: Cause of event (drop down) | G10: Unplanned | J10: Event category | K10: Effect on unplanned MAIFI | L10: Please provide separate explanation to confirm the outage was not due to inadequate transmission connection planning
B11: DD/MM/YYYY | G11: Number of interruptions | H11: Duration of interruption (mins) | I11: Total unplanned minutes off supply | J11: Use exclusion categories listed in section 3.3(a) of the STPIS (drop down) | K11: by feeder classification
B12: 8/02/2017 | C12: 955986-1 | D12: ETSA001 | E12: Rural Long | F12: Load shedding | G12: 311 | H12: 29 | I12: 9019 | J12: 3.3 a) (4) | K12: 0 | L12: Load shedding at the direction of the Australian Energy Mark
B13: 9/04/2017 | C13: 980241-1 | D13: CME014 | E13: Rural Short | F13: Other | G13: 1 | H13: 86 | I13: 86 | J13: 3.3 b) | K13: 0 | L13: Threshold exceeded due to storm activity on the network
B14: 9/04/2017 | C14: 980245-1 | D14: NKA004 | E14: Rural Short | F14: Equipment failure | G14: 12 | H14: 108 | I14: 1296 | J14: 3.3 b) | K14: 0 | L14: Threshold exceeded due to storm activity on the network
B15: 9/04/2017 | C15: 980304-1 | D15: BET004 | E15: Rural Short | F15: Other | G15: 37 | H15: 0 | I15: 0 | J15: 3.3 b) | K15: 0.0001350483254 | L15: Threshold exceeded due to storm activity on the network
B16: 9/04/2017 | C16: 980305-1 | D16: BET004 | E16: Rural Short | F16: Weather | G16: 1 | H16: 39 | I16: 39 | J16: 3.3 b) | K16: 0 | L16: Threshold exceeded due to storm activity on the network
B17: 9/04/2017 | C17: 980306-1 | D17: CLC003 | E17: Rural Long | F17: Other | G17: 46 | H17: 0 | I17: 0 | J17: 3.3 b) | K17: 0.0002231503985 | L17: Threshold exceeded due to storm activity on the network
B18: 9/04/2017 | C18: 980333-1 | D18: CLC003 | E18: Rural Long | F18: Other | G18: 16 | H18: 0 | I18: 0 | J18: 3.3 b) | K18: 7.761752992e-05 | L18: Threshold exceeded due to storm activity on the network
B19: 9/04/2017 | C19: 980343-1 | D19: WIN013 | E19: Rural Short | F19: Other | G19: 42 | H19: 0 | I19: 0 | J19: 3.3 b) | K19: 0.0001532980991 | L19: Threshold exceeded due to storm activity on the network
B20: 9/04/2017 | C20: 980345-1 | D20: WIN013 | E20: Rural Short | F20: Other | G20: 798 | H20: 0 | I20: 0 | J20: 3.3 b) | K20: 0.002912663883 | L20: Threshold exceeded due to storm activity on the network
B21: 9/04/2017 | C21: 980352-1 | D21: BAN015 | E21: Rural Short | F21: Equipment failure | G21: 3 | H21: 617 | I21: 1851 | J21: 3.3 b) | K21: 0 | L21: Threshold exceeded due to storm activity on the network
B22: 9/04/2017 | C22: 980353-1 | D22: CTN003 | E22: Rural Long | F22: Weather | G22: 14 | H22: 412 | I22: 5768 | J22: 3.3 b) | K22: 0 | L22: Threshold exceeded due to storm activity on the network
B23: 9/04/2017 | C23: 980354-1 | D23: EHK024 | E23: Rural Long | F23: Other | G23: 86 | H23: 0 | I23: 0 | J23: 3.3 b) | K23: 0.0004171942233 | L23: Threshold exceeded due to storm activity on the network
B24: 9/04/2017 | C24: 980357-1 | D24: BMH003 | E24: Rural Long | F24: Other | G24: 37 | H24: 0 | I24: 0 | J24: 3.3 b) | K24: 0.0001794905379 | L24: Threshold exceeded due to storm activity on the network
B25: 9/04/2017 | C25: 980358-1 | D25: BET001 | E25: Rural Long | F25: Other | G25: 570 | H25: 0 | I25: 0 | J25: 3.3 b) | K25: 0.002765124503 | L25: Threshold exceeded due to storm activity on the network
B26: 9/04/2017 | C26: 980377-1 | D26: STL005 | E26: Rural Long | F26: Other | G26: 654 | H26: 0 | I26: 0 | J26: 3.3 b) | K26: 0.003172616535 | L26: Threshold exceeded due to storm activity on the network
B27: 9/04/2017 | C27: 980393-1 | D27: CHA006 | E27: Rural Long | F27: Other | G27: 182 | H27: 0 | I27: 0 | J27: 3.3 b) | K27: 0.0008828994028 | L27: Threshold exceeded due to storm activity on the network
B28: 9/04/2017 | C28: 980396-1 | D28: CHA006 | E28: Rural Long | F28: Weather | G28: 1 | H28: 121 | I28: 121 | J28: 3.3 b) | K28: 0 | L28: Threshold exceeded due to storm activity on the network
B29: 9/04/2017 | C29: 980399-1 | D29: WND013 | E29: Rural Long | F29: Other | G29: 21 | H29: 0 | I29: 0 | J29: 3.3 b) | K29: 0.000101873008 | L29: Threshold exceeded due to storm activity on the network
B30: 9/04/2017 | C30: 980404-1 | D30: WBL002 | E30: Rural Short | F30: Equipment failure | G30: 15 | H30: 127 | I30: 1905 | J30: 3.3 b) | K30: 0 | L30: Threshold exceeded due to storm activity on the network
B31: 9/04/2017 | C31: 980407-1 | D31: WIN013 | E31: Rural Short | F31: Weather | G31: 1 | H31: 137 | I31: 137 | J31: 3.3 b) | K31: 0 | L31: Threshold exceeded due to storm activity on the network
B32: 9/04/2017 | C32: 980408-1 | D32: CLC007 | E32: Rural Long | F32: Other | G32: 55 | H32: 0 | I32: 0 | J32: 3.3 b) | K32: 0.0002668102591 | L32: Threshold exceeded due to storm activity on the network
B33: 9/04/2017 | C33: 980411-1 | D33: KYM001 | E33: Rural Long | F33: Weather | G33: 1 | H33: 107 | I33: 107 | J33: 3.3 b) | K33: 0 | L33: Threshold exceeded due to storm activity on the network
B34: 9/04/2017 | C34: 980412-1 | D34: TRG005 | E34: Rural Long | F34: Equipment failure | G34: 21 | H34: 103 | I34: 2163 | J34: 3.3 b) | K34: 0 | L34: Threshold exceeded due to storm activity on the network
B35: 9/04/2017 | C35: 980413-1 | D35: PLD001 | E35: Rural Long | F35: Other | G35: 1 | H35: 87 | I35: 87 | J35: 3.3 b) | K35: 0 | L35: Threshold exceeded due to storm activity on the network
B36: 9/04/2017 | C36: 980415-1 | D36: CLC003 | E36: Rural Long | F36: Other | G36: 16 | H36: 0 | I36: 0 | J36: 3.3 b) | K36: 7.761752992e-05 | L36: Threshold exceeded due to storm activity on the network
B37: 9/04/2017 | C37: 980423-1 | D37: WIN013 | E37: Rural Short | F37: Weather | G37: 1 | H37: 55 | I37: 55 | J37: 3.3 b) | K37: 0 | L37: Threshold exceeded due to storm activity on the network
B38: 9/04/2017 | C38: 980424-1 | D38: TRG005 | E38: Rural Long | F38: Weather | G38: 1 | H38: 22 | I38: 22 | J38: 3.3 b) | K38: 0 | L38: Threshold exceeded due to storm activity on the network
B39: 9/04/2017 | C39: 980427-1 | D39: TRG005 | E39: Rural Long | F39: Equipment failure | G39: 10 | H39: 1152 | I39: 11520 | J39: 3.3 b) | K39: 0 | L39: Threshold exceeded due to storm activity on the network
B40: 9/04/2017 | C40: 980431-1 | D40: CLC003 | E40: Rural Long | F40: Weather | G40: 1 | H40: 713 | I40: 713 | J40: 3.3 b) | K40: 0 | L40: Threshold exceeded due to storm activity on the network
B41: 9/04/2017 | C41: 980432-1 | D41: CLC003 | E41: Rural Long | F41: Weather | G41: 2 | H41: 647 | I41: 1294 | J41: 3.3 b) | K41: 0 | L41: Threshold exceeded due to storm activity on the network
B42: 9/04/2017 | C42: 980433-1 | D42: HTN004 | E42: Rural Long | F42: Weather | G42: 1 | H42: 61 | I42: 61 | J42: 3.3 b) | K42: 0 | L42: Threshold exceeded due to storm activity on the network
B43: 9/04/2017 | C43: 980436-1 | D43: WND013 | E43: Rural Long | F43: Weather | G43: 1 | H43: 85 | I43: 85 | J43: 3.3 b) | K43: 0 | L43: Threshold exceeded due to storm activity on the network
B44: 9/04/2017 | C44: 980438-1 | D44: BET005 | E44: Rural Long | F44: Weather | G44: 1 | H44: 47 | I44: 47 | J44: 3.3 b) | K44: 0 | L44: Threshold exceeded due to storm activity on the network
B45: 9/04/2017 | C45: 980451-1 | D45: SHL002 | E45: Rural Long | F45: Equipment failure | G45: 25 | H45: 103.6 | I45: 2590 | J45: 3.3 b) | K45: 0 | L45: Threshold exceeded due to storm activity on the network
B46: 9/04/2017 | C46: 980453-1 | D46: BMH003 | E46: Rural Long | F46: Weather | G46: 2 | H46: 308 | I46: 616 | J46: 3.3 b) | K46: 0 | L46: Threshold exceeded due to storm activity on the network
B47: 9/04/2017 | C47: 980458-1 | D47: BET002 | E47: Urban | F47: Equipment failure | G47: 1 | H47: 114 | I47: 114 | J47: 3.3 b) | K47: 0 | L47: Threshold exceeded due to storm activity on the network
B48: 9/04/2017 | C48: 980460-1 | D48: CHA003 | E48: Rural Short | F48: Equipment failure | G48: 1 | H48: 82 | I48: 82 | J48: 3.3 b) | K48: 0 | L48: Threshold exceeded due to storm activity on the network
B49: 9/04/2017 | C49: 980468-1 | D49: CLC006 | E49: Rural Long | F49: Weather | G49: 2 | H49: 978 | I49: 1956 | J49: 3.3 b) | K49: 0 | L49: Threshold exceeded due to storm activity on the network
B50: 9/04/2017 | C50: 980478-1 | D50: WBL012 | E50: Rural Long | F50: Equipment failure | G50: 2 | H50: 463 | I50: 926 | J50: 3.3 b) | K50: 0 | L50: Threshold exceeded due to storm activity on the network
B51: 9/04/2017 | C51: 980480-1 | D51: NKA002 | E51: Rural Long | F51: Weather | G51: 18 | H51: 74 | I51: 1332 | J51: 3.3 b) | K51: 0 | L51: Threshold exceeded due to storm activity on the network
B52: 9/04/2017 | C52: 980483-1 | D52: SHL007 | E52: Urban | F52: Equipment failure | G52: 5 | H52: 60 | I52: 300 | J52: 3.3 b) | K52: 0 | L52: Threshold exceeded due to storm activity on the network
B53: 9/04/2017 | C53: 980484-1 | D53: WBE023 | E53: Rural Short | F53: Equipment failure | G53: 1 | H53: 354 | I53: 354 | J53: 3.3 b) | K53: 0 | L53: Threshold exceeded due to storm activity on the network
B54: 9/04/2017 | C54: 980495-1 | D54: PLD006 | E54: Rural Short | F54: Weather | G54: 3 | H54: 120 | I54: 360 | J54: 3.3 b) | K54: 0 | L54: Threshold exceeded due to storm activity on the network
B55: 9/04/2017 | C55: 980502-1 | D55: TRG003 | E55: Rural Long | F55: Weather | G55: 1 | H55: 1639 | I55: 1639 | J55: 3.3 b) | K55: 0 | L55: Threshold exceeded due to storm activity on the network
B56: 9/04/2017 | C56: 980505-1 | D56: TRG003 | E56: Rural Long | F56: Other | G56: 1312 | H56: 0 | I56: 0 | J56: 3.3 b) | K56: 0.006364637453 | L56: Threshold exceeded due to storm activity on the network
B57: 9/04/2017 | C57: 980513-1 | D57: CLC006 | E57: Rural Long | F57: Weather | G57: 22 | H57: 149 | I57: 3278 | J57: 3.3 b) | K57: 0 | L57: Threshold exceeded due to storm activity on the network
B58: 9/04/2017 | C58: 980535-1 | D58: WIN013 | E58: Rural Short | F58: Weather | G58: 2 | H58: 124 | I58: 248 | J58: 3.3 b) | K58: 0 | L58: Threshold exceeded due to storm activity on the network
B59: 9/04/2017 | C59: 980536-1 | D59: CLC006 | E59: Rural Long | F59: Weather | G59: 111 | H59: 1257.666667 | I59: 139601 | J59: 3.3 b) | K59: 0 | L59: Threshold exceeded due to storm activity on the network
B60: 9/04/2017 | C60: 980552-1 | D60: TRG005 | E60: Rural Long | F60: Vegetation | G60: 1 | H60: 1092 | I60: 1092 | J60: 3.3 b) | K60: 0 | L60: Threshold exceeded due to storm activity on the network
B61: 9/04/2017 | C61: 980554-1 | D61: BAS021 | E61: Rural Long | F61: Equipment failure | G61: 4 | H61: 450 | I61: 1800 | J61: 3.3 b) | K61: 0 | L61: Threshold exceeded due to storm activity on the network
B62: 9/04/2017 | C62: 980559-1 | D62: KYM006 | E62: Rural Short | F62: Other | G62: 5 | H62: 240 | I62: 1200 | J62: 3.3 b) | K62: 0 | L62: Threshold exceeded due to storm activity on the network
B63: 9/04/2017 | C63: 980567-1 | D63: TRG003 | E63: Rural Long | F63: Vegetation | G63: 2 | H63: 1002 | I63: 2004 | J63: 3.3 b) | K63: 0 | L63: Threshold exceeded due to storm activity on the network
B64: 9/04/2017 | C64: 980571-1 | D64: EHK024 | E64: Rural Long | F64: Animals | G64: 1 | H64: 209 | I64: 209 | J64: 3.3 b) | K64: 0 | L64: Threshold exceeded due to storm activity on the network
B65: 9/04/2017 | C65: 980572-1 | D65: KRT022 | E65: Rural Short | F65: Equipment failure | G65: 2 | H65: 258 | I65: 516 | J65: 3.3 b) | K65: 0 | L65: Threshold exceeded due to storm activity on the network
B66: 9/04/2017 | C66: 980573-1 | D66: BAS021 | E66: Rural Long | F66: Other | G66: 461 | H66: 0 | I66: 0 | J66: 3.3 b) | K66: 0.002236355081 | L66: Threshold exceeded due to storm activity on the network
B67: 9/04/2017 | C67: 980588-1 | D67: PLD003 | E67: Rural Long | F67: Other | G67: 1 | H67: 51 | I67: 51 | J67: 3.3 b) | K67: 0 | L67: Threshold exceeded due to storm activity on the network
B68: 9/04/2017 | C68: 980605-1 | D68: CMN001 | E68: Rural Long | F68: Other | G68: 28 | H68: 0 | I68: 0 | J68: 3.3 b) | K68: 0.0001358306774 | L68: Threshold exceeded due to storm activity on the network
B69: 9/04/2017 | C69: 980609-1 | D69: CLC006 | E69: Rural Long | F69: Weather | G69: 1533 | H69: 0 | I69: 0 | J69: 3.3 b) | K69: 0.007436729585 | L69: Threshold exceeded due to storm activity on the network
B70: 9/04/2017 | C70: 980619-1 | D70: WND013 | E70: Rural Long | F70: Other | G70: 75 | H70: 0 | I70: 0 | J70: 3.3 b) | K70: 0.0003638321715 | L70: Threshold exceeded due to storm activity on the network
B71: 9/04/2017 | C71: 980620-1 | D71: CDN002 | E71: Rural Long | F71: Weather | G71: 80 | H71: 842.2 | I71: 67376 | J71: 3.3 b) | K71: 0 | L71: Threshold exceeded due to storm activity on the network
B72: 9/04/2017 | C72: 980623-1 | D72: CMN001 | E72: Rural Long | F72: Weather | G72: 121 | H72: 262 | I72: 31702 | J72: 3.3 b) | K72: 0 | L72: Threshold exceeded due to storm activity on the network
B73: 9/04/2017 | C73: 980625-1 | D73: BAN008 | E73: Rural Long | F73: Weather | G73: 28 | H73: 309 | I73: 8652 | J73: 3.3 b) | K73: 0 | L73: Threshold exceeded due to storm activity on the network
B74: 9/04/2017 | C74: 980626-1 | D74: WND013 | E74: Rural Long | F74: Other | G74: 870 | H74: 0 | I74: 0 | J74: 3.3 b) | K74: 0.004220453189 | L74: Threshold exceeded due to storm activity on the network
B75: 9/04/2017 | C75: 980630-1 | D75: CLC004 | E75: Rural Long | F75: Weather | G75: 6 | H75: 354 | I75: 2124 | J75: 3.3 b) | K75: 0 | L75: Threshold exceeded due to storm activity on the network
B76: 9/04/2017 | C76: 980632-1 | D76: WBL012 | E76: Rural Long | F76: Weather | G76: 23 | H76: 305 | I76: 7015 | J76: 3.3 b) | K76: 0 | L76: Threshold exceeded due to storm activity on the network
B77: 9/04/2017 | C77: 980633-1 | D77: BAN011 | E77: Rural Long | F77: Other | G77: 632 | H77: 0 | I77: 0 | J77: 3.3 b) | K77: 0.003065892432 | L77: Threshold exceeded due to storm activity on the network
B78: 9/04/2017 | C78: 980637-1 | D78: BAS023 | E78: Rural Short | F78: Weather | G78: 2 | H78: 282 | I78: 564 | J78: 3.3 b) | K78: 0 | L78: Threshold exceeded due to storm activity on the network
B79: 9/04/2017 | C79: 980643-1 | D79: WBL003 | E79: Urban | F79: Equipment failure | G79: 66 | H79: 64 | I79: 4224 | J79: 3.3 b) | K79: 0 | L79: Threshold exceeded due to storm activity on the network
B80: 9/04/2017 | C80: 980650-1 | D80: BMH006 | E80: Rural Long | F80: Other | G80: 25 | H80: 0 | I80: 0 | J80: 3.3 b) | K80: 0.0001212773905 | L80: Threshold exceeded due to storm activity on the network
B81: 9/04/2017 | C81: 980667-1 | D81: CLC006 | E81: Rural Long | F81: Weather | G81: 2718 | H81: 0 | I81: 0 | J81: 3.3 b) | K81: 0.0131852779 | L81: Threshold exceeded due to storm activity on the network
B82: 9/04/2017 | C82: 980671-1 | D82: WND013 | E82: Rural Long | F82: Weather | G82: 17 | H82: 289 | I82: 4913 | J82: 3.3 b) | K82: 0 | L82: Threshold exceeded due to storm activity on the network
B83: 9/04/2017 | C83: 980675-1 | D83: BAS022 | E83: Rural Long | F83: Weather | G83: 22 | H83: 490 | I83: 10780 | J83: 3.3 b) | K83: 0 | L83: Threshold exceeded due to storm activity on the network
B84: 9/04/2017 | C84: 980678-1 | D84: CRO022 | E84: Urban | F84: Weather | G84: 1 | H84: 378 | I84: 378 | J84: 3.3 b) | K84: 0 | L84: Threshold exceeded due to storm activity on the network
B85: 9/04/2017 | C85: 980679-1 | D85: CLC001 | E85: Urban | F85: Equipment failure | G85: 1 | H85: 1107 | I85: 1107 | J85: 3.3 b) | K85: 0 | L85: Threshold exceeded due to storm activity on the network
B86: 9/04/2017 | C86: 980681-1 | D86: CMN003 | E86: Rural Long | F86: Weather | G86: 1 | H86: 939 | I86: 939 | J86: 3.3 b) | K86: 0 | L86: Threshold exceeded due to storm activity on the network
B87: 9/04/2017 | C87: 980683-1 | D87: HTN003 | E87: Rural Long | F87: Equipment failure | G87: 1 | H87: 162 | I87: 162 | J87: 3.3 b) | K87: 0 | L87: Threshold exceeded due to storm activity on the network
B88: 9/04/2017 | C88: 980688-1 | D88: CMN003 | E88: Rural Long | F88: Vegetation | G88: 1 | H88: 360 | I88: 360 | J88: 3.3 b) | K88: 0 | L88: Threshold exceeded due to storm activity on the network
B89: 9/04/2017 | C89: 980691-1 | D89: BAN008 | E89: Rural Long | F89: Weather | G89: 57 | H89: 158 | I89: 9006 | J89: 3.3 b) | K89: 0 | L89: Threshold exceeded due to storm activity on the network
B90: 9/04/2017 | C90: 980693-1 | D90: CMN001 | E90: Rural Long | F90: Weather | G90: 1 | H90: 241 | I90: 241 | J90: 3.3 b) | K90: 0 | L90: Threshold exceeded due to storm activity on the network
B91: 9/04/2017 | C91: 980694-1 | D91: MRO005 | E91: Rural Long | F91: Weather | G91: 30 | H91: 263 | I91: 7890 | J91: 3.3 b) | K91: 0 | L91: Threshold exceeded due to storm activity on the network
B92: 9/04/2017 | C92: 980696-1 | D92: WBL005 | E92: Rural Short | F92: Equipment failure | G92: 61 | H92: 86 | I92: 5246 | J92: 3.3 b) | K92: 0 | L92: Threshold exceeded due to storm activity on the network
B93: 9/04/2017 | C93: 980711-1 | D93: PLD001 | E93: Rural Long | F93: Animals | G93: 1 | H93: 455 | I93: 455 | J93: 3.3 b) | K93: 0 | L93: Threshold exceeded due to storm activity on the network
B94: 9/04/2017 | C94: 980712-1 | D94: BAS021 | E94: Rural Long | F94: Other | G94: 2184 | H94: 0 | I94: 0 | J94: 3.3 b) | K94: 0.01059479283 | L94: Threshold exceeded due to storm activity on the network
B95: 9/04/2017 | C95: 980715-1 | D95: CLC007 | E95: Rural Long | F95: Weather | G95: 2486 | H95: 0 | I95: 0 | J95: 3.3 b) | K95: 0.01205982371 | L95: Threshold exceeded due to storm activity on the network
B96: 9/04/2017 | C96: 980718-1 | D96: BAS012 | E96: Urban | F96: Weather | G96: 1 | H96: 141 | I96: 141 | J96: 3.3 b) | K96: 0 | L96: Threshold exceeded due to storm activity on the network
B97: 9/04/2017 | C97: 980719-1 | D97: BAS021 | E97: Rural Long | F97: Vegetation | G97: 180 | H97: 358 | I97: 64440 | J97: 3.3 b) | K97: 0 | L97: Threshold exceeded due to storm activity on the network
B98: 9/04/2017 | C98: 980722-1 | D98: CLC002 | E98: Urban | F98: Weather | G98: 1 | H98: 290 | I98: 290 | J98: 3.3 b) | K98: 0 | L98: Threshold exceeded due to storm activity on the network
B99: 9/04/2017 | C99: 980728-1 | D99: CMN001 | E99: Rural Long | F99: Weather | G99: 7 | H99: 350 | I99: 2450 | J99: 3.3 b) | K99: 0 | L99: Threshold exceeded due to storm activity on the network
B100: 9/04/2017 | C100: 980734-1 | D100: BAN011 | E100: Rural Long | F100: Equipment failure | G100: 31 | H100: 1055 | I100: 32705 | J100: 3.3 b) | K100: 0 | L100: Threshold exceeded due to storm activity on the network
B101: 9/04/2017 | C101: 980741-1 | D101: KGT004 | E101: Rural Long | F101: Equipment failure | G101: 2 | H101: 1199 | I101: 2398 | J101: 3.3 b) | K101: 0 | L101: Threshold exceeded due to storm activity on the network
B102: 9/04/2017 | C102: 980745-1 | D102: WBL004 | E102: Urban | F102: Equipment failure | G102: 1 | H102: 834 | I102: 834 | J102: 3.3 b) | K102: 0 | L102: Threshold exceeded due to storm activity on the network
B103: 9/04/2017 | C103: 980746-1 | D103: BAS013 | E103: Rural Short | F103: Weather | G103: 1 | H103: 178 | I103: 178 | J103: 3.3 b) | K103: 0 | L103: Threshold exceeded due to storm activity on the network
B104: 9/04/2017 | C104: 980751-1 | D104: BAS013 | E104: Rural Short | F104: Weather | G104: 1 | H104: 492 | I104: 492 | J104: 3.3 b) | K104: 0 | L104: Threshold exceeded due to storm activity on the network
B105: 9/04/2017 | C105: 980754-1 | D105: STN021 | E105: Rural Short | F105: Vegetation | G105: 18 | H105: 174 | I105: 3132 | J105: 3.3 b) | K105: 0 | L105: Threshold exceeded due to storm activity on the network
B106: 9/04/2017 | C106: 980756-1 | D106: BET004 | E106: Rural Short | F106: Weather | G106: 1 | H106: 65 | I106: 65 | J106: 3.3 b) | K106: 0 | L106: Threshold exceeded due to storm activity on the network
B107: 9/04/2017 | C107: 980762-1 | D107: BAS013 | E107: Rural Short | F107: Weather | G107: 1 | H107: 134 | I107: 134 | J107: 3.3 b) | K107: 0 | L107: Threshold exceeded due to storm activity on the network
B108: 9/04/2017 | C108: 980764-1 | D108: TRG005 | E108: Rural Long | F108: Weather | G108: 1 | H108: 441 | I108: 441 | J108: 3.3 b) | K108: 0 | L108: Threshold exceeded due to storm activity on the network
B109: 9/04/2017 | C109: 980775-1 | D109: GSB011 | E109: Rural Short | F109: Other | G109: 321 | H109: 0 | I109: 0 | J109: 3.3 b) | K109: 0.001171635472 | L109: Threshold exceeded due to storm activity on the network
B110: 9/04/2017 | C110: 980783-1 | D110: WND023 | E110: Rural Long | F110: Weather | G110: 3 | H110: 209 | I110: 627 | J110: 3.3 b) | K110: 0 | L110: Threshold exceeded due to storm activity on the network
B111: 9/04/2017 | C111: 980784-1 | D111: CLC003 | E111: Rural Long | F111: Equipment failure | G111: 3 | H111: 1122 | I111: 3366 | J111: 3.3 b) | K111: 0 | L111: Threshold exceeded due to storm activity on the network
B112: 9/04/2017 | C112: 980792-1 | D112: WPD021 | E112: Rural Short | F112: Weather | G112: 3387 | H112: 0 | I112: 0 | J112: 3.3 b) | K112: 0.01236239671 | L112: Threshold exceeded due to storm activity on the network
B113: 9/04/2017 | C113: 980801-1 | D113: GL021 | E113: Urban | F113: Weather | G113: 1 | H113: 478 | I113: 478 | J113: 3.3 b) | K113: 0 | L113: Threshold exceeded due to storm activity on the network
B114: 9/04/2017 | C114: 980802-1 | D114: CLC007 | E114: Rural Long | F114: Weather | G114: 555 | H114: 0 | I114: 0 | J114: 3.3 b) | K114: 0.002692358069 | L114: Threshold exceeded due to storm activity on the network
B115: 9/04/2017 | C115: 980808-1 | D115: DDL012 | E115: Rural Short | F115: Equipment failure | G115: 1 | H115: 1400 | I115: 1400 | J115: 3.3 b) | K115: 0 | L115: Threshold exceeded due to storm activity on the network
B116: 9/04/2017 | C116: 980814-1 | D116: CLC007 | E116: Rural Long | F116: Weather | G116: 1 | H116: 1501 | I116: 1501 | J116: 3.3 b) | K116: 0 | L116: Threshold exceeded due to storm activity on the network
B117: 9/04/2017 | C117: 980822-1 | D117: GLE031 | E117: Rural Short | F117: Weather | G117: 42 | H117: 964 | I117: 40488 | J117: 3.3 b) | K117: 0 | L117: Threshold exceeded due to storm activity on the network
B118: 9/04/2017 | C118: 981904-1 | D118: CTN002 | E118: Rural Long | F118: Other | G118: 15 | H118: 0 | I118: 0 | J118: 3.3 b) | K118: 7.27664343e-05 | L118: Threshold exceeded due to storm activity on the network
B119: 9/04/2017 | C119: F-8393-b | D119: SHN011 | E119: Rural Long | F119: Weather | G119: 966 | H119: 18 | I119: 17388 | J119: 3.3 b) | K119: 0 | L119: Threshold exceeded due to storm activity on the network
B120: 9/04/2017 | C120: F-8394-b | D120: BMH003 | E120: Rural Long | F120: Equipment failure | G120: 25 | H120: 80 | I120: 2000 | J120: 3.3 b) | K120: 0 | L120: Threshold exceeded due to storm activity on the network
B121: 9/04/2017 | C121: F-8395-b | D121: WIN013 | E121: Rural Short | F121: Weather | G121: 800 | H121: 132.41375 | I121: 105931 | J121: 3.3 b) | K121: 0 | L121: Threshold exceeded due to storm activity on the network
B122: 9/04/2017 | C122: F-8396-b | D122: OYN001 | E122: Rural Long | F122: Equipment failure | G122: 402 | H122: 76.26119403 | I122: 30657 | J122: 3.3 b) | K122: 0 | L122: Threshold exceeded due to storm activity on the network
B123: 9/04/2017 | C123: F-8396-b.1 | D123: OYN001 | E123: Rural Long | F123: Other | G123: 543 | H123: 0 | I123: 0 | J123: 3.3 b) | K123: 0.002634144922 | L123: Threshold exceeded due to storm activity on the network
B124: 9/04/2017 | C124: F-8399-b | D124: MNA021 | E124: Rural Short | F124: Other | G124: 1760 | H124: 19 | I124: 33440 | J124: 3.3 b) | K124: 0 | L124: Threshold exceeded due to storm activity on the network
B125: 9/04/2017 | C125: F-8401-b | D125: CLC006 | E125: Rural Long | F125: Weather | G125: 137 | H125: 585.3576642 | I125: 80194 | J125: 3.3 b) | K125: 0 | L125: Threshold exceeded due to storm activity on the network
B126: 9/04/2017 | C126: F-8402-b | D126: COB011 | E126: Rural Long | F126: Other | G126: 720 | H126: 0 | I126: 0 | J126: 3.3 b) | K126: 0.003492788846 | L126: Threshold exceeded due to storm activity on the network
B127: 9/04/2017 | C127: F-8402-b.1 | D127: COB011 | E127: Rural Long | F127: Weather | G127: 718 | H127: 488.1253482 | I127: 350474 | J127: 3.3 b) | K127: 0 | L127: Threshold exceeded due to storm activity on the network
B128: 9/04/2017 | C128: F-8403-b | D128: TRG003 | E128: Rural Long | F128: Weather | G128: 652 | H128: 635.9509202 | I128: 414640 | J128: 3.3 b) | K128: 0 | L128: Threshold exceeded due to storm activity on the network
B129: 9/04/2017 | C129: F-8404-b | D129: CDN002 | E129: Rural Long | F129: Vegetation | G129: 136 | H129: 1507 | I129: 204952 | J129: 3.3 b) | K129: 0 | L129: Threshold exceeded due to storm activity on the network
B130: 9/04/2017 | C130: F-8405-b | D130: CDN001 | E130: Rural Long | F130: Weather | G130: 277 | H130: 1424.66787 | I130: 394633 | J130: 3.3 b) | K130: 0 | L130: Threshold exceeded due to storm activity on the network
B131: 9/04/2017 | C131: F-8406-b | D131: TRG003 | E131: Rural Long | F131: Weather | G131: 537 | H131: 460.0335196 | I131: 247038 | J131: 3.3 b) | K131: 0 | L131: Threshold exceeded due to storm activity on the network
B132: 9/04/2017 | C132: F-8407-b | D132: CDN001 | E132: Rural Long | F132: Other | G132: 578 | H132: 0 | I132: 0 | J132: 3.3 b) | K132: 0.002803933268 | L132: Threshold exceeded due to storm activity on the network
B133: 9/04/2017 | C133: F-8407-b.1 | D133: CDN001 | E133: Rural Long | F133: Weather | G133: 340 | H133: 1225.529412 | I133: 416680 | J133: 3.3 b) | K133: 0 | L133: Threshold exceeded due to storm activity on the network
B134: 9/04/2017 | C134: F-8408-b | D134: CLC006 | E134: Rural Long | F134: Weather | G134: 17 | H134: 2793 | I134: 47481 | J134: 3.3 b) | K134: 0 | L134: Threshold exceeded due to storm activity on the network
B135: 9/04/2017 | C135: F-8409-b | D135: RCT014 | E135: Rural Short | F135: Vegetation | G135: 222 | H135: 74 | I135: 16428 | J135: 3.3 b) | K135: 0 | L135: Threshold exceeded due to storm activity on the network
B136: 9/04/2017 | C136: F-8410-b | D136: BAS022 | E136: Rural Long | F136: Weather | G136: 3438 | H136: 0 | I136: 0 | J136: 3.3 b) | K136: 0.01667806674 | L136: Threshold exceeded due to storm activity on the network
B137: 9/04/2017 | C137: F-8410-b.1 | D137: BAS022 | E137: Rural Long | F137: Weather | G137: 3135 | H137: 133.2236045 | I137: 417656 | J137: 3.3 b) | K137: 0 | L137: Threshold exceeded due to storm activity on the network
B138: 9/04/2017 | C138: F-8411-b | D138: BAS013 | E138: Rural Short | F138: Weather | G138: 4422 | H138: 0 | I138: 0 | J138: 3.3 b) | K138: 0.01614009986 | L138: Threshold exceeded due to storm activity on the network
B139: 9/04/2017 | C139: F-8412-b | D139: BAS013 | E139: Rural Short | F139: Weather | G139: 4422 | H139: 203.2684306 | I139: 898853 | J139: 3.3 b) | K139: 0 | L139: Threshold exceeded due to storm activity on the network
B140: 9/04/2017 | C140: F-8413-b | D140: BAS021 | E140: Rural Long | F140: Other | G140: 461 | H140: 0 | I140: 0 | J140: 3.3 b) | K140: 0.002236355081 | L140: Threshold exceeded due to storm activity on the network
B141: 9/04/2017 | C141: F-8414-b | D141: TRG004 | E141: Rural Short | F141: Weather | G141: 486 | H141: 459.8744856 | I141: 223499 | J141: 3.3 b) | K141: 0 | L141: Threshold exceeded due to storm activity on the network
B142: 9/04/2017 | C142: F-8415-b | D142: BAS012 | E142: Urban | F142: Weather | G142: 2298 | H142: 108 | I142: 248184 | J142: 3.3 b) | K142: 0 | L142: Threshold exceeded due to storm activity on the network
B143: 9/04/2017 | C143: F-8417-b | D143: BAN009 | E143: Rural Long | F143: Weather | G143: 3152 | H143: 0 | I143: 0 | J143: 3.3 b) | K143: 0.01529065339 | L143: Threshold exceeded due to storm activity on the network
B144: 9/04/2017 | C144: F-8418-b | D144: BAN009 | E144: Rural Long | F144: Weather | G144: 3152 | H144: 0 | I144: 0 | J144: 3.3 b) | K144: 0.01529065339 | L144: Threshold exceeded due to storm activity on the network
B145: 9/04/2017 | C145: F-8418-b.1 | D145: BAN009 | E145: Rural Long | F145: Weather | G145: 3155 | H145: 373.4380349 | I145: 1178197 | J145: 3.3 b) | K145: 0 | L145: Threshold exceeded due to storm activity on the network
B146: 9/04/2017 | C146: F-8420-b | D146: CLC006 | E146: Rural Long | F146: Weather | G146: 1533 | H146: 0 | I146: 0 | J146: 3.3 b) | K146: 0.007436729585 | L146: Threshold exceeded due to storm activity on the network
B147: 9/04/2017 | C147: F-8423-b | D147: WND011 | E147: Rural Short | F147: Vegetation | G147: 268 | H147: 107.1977612 | I147: 28729 | J147: 3.3 b) | K147: 0 | L147: Threshold exceeded due to storm activity on the network
B148: 9/04/2017 | C148: F-8424-b | D148: WND013 | E148: Rural Long | F148: Other | G148: 2631 | H148: 0 | I148: 0 | J148: 3.3 b) | K148: 0.01276323258 | L148: Threshold exceeded due to storm activity on the network
B149: 9/04/2017 | C149: F-8425-b | D149: BAN011 | E149: Rural Long | F149: Weather | G149: 632 | H149: 120.3037975 | I149: 76032 | J149: 3.3 b) | K149: 0 | L149: Threshold exceeded due to storm activity on the network
B150: 9/04/2017 | C150: F-8426-b | D150: BAS021 | E150: Rural Long | F150: Other | G150: 461 | H150: 0 | I150: 0 | J150: 3.3 b) | K150: 0.002236355081 | L150: Threshold exceeded due to storm activity on the network
B151: 9/04/2017 | C151: F-8427-b | D151: CLC006 | E151: Rural Long | F151: Weather | G151: 2452 | H151: 217.9371941 | I151: 534382 | J151: 3.3 b) | K151: 0 | L151: Threshold exceeded due to storm activity on the network
B152: 9/04/2017 | C152: F-8427-b.1 | D152: CLC006 | E152: Rural Long | F152: Weather | G152: 1533 | H152: 0 | I152: 0 | J152: 3.3 b) | K152: 0.007436729585 | L152: Threshold exceeded due to storm activity on the network
B153: 9/04/2017 | C153: F-8430-b | D153: BAS022 | E153: Rural Long | F153: Weather | G153: 763 | H153: 355 | I153: 270865 | J153: 3.3 b) | K153: 0 | L153: Threshold exceeded due to storm activity on the network
B154: 9/04/2017 | C154: F-8431-b | D154: CMN004 | E154: Rural Long | F154: Other | G154: 1674 | H154: 0 | I154: 0 | J154: 3.3 b) | K154: 0.008120734068 | L154: Threshold exceeded due to storm activity on the network
B155: 9/04/2017 | C155: F-8432-b | D155: GSB011 | E155: Rural Short | F155: Equipment failure | G155: 2256 | H155: 38.68351064 | I155: 87270 | J155: 3.3 b) | K155: 0 | L155: Threshold exceeded due to storm activity on the network
B156: 9/04/2017 | C156: F-8433-b | D156: CLC007 | E156: Rural Long | F156: Weather | G156: 2268 | H156: 86.17416226 | I156: 195443 | J156: 3.3 b) | K156: 0 | L156: Threshold exceeded due to storm activity on the network
B157: 9/04/2017 | C157: F-8434-b | D157: MRO008 | E157: Rural Long | F157: Weather | G157: 210 | H157: 385.5428571 | I157: 80964 | J157: 3.3 b) | K157: 0 | L157: Threshold exceeded due to storm activity on the network
B158: 9/04/2017 | C158: F-8435-b | D158: BAN011 | E158: Rural Long | F158: Weather | G158: 168 | H158: 900 | I158: 151200 | J158: 3.3 b) | K158: 0 | L158: Threshold exceeded due to storm activity on the network
B159: 9/04/2017 | C159: F-8436-b | D159: KYM004 | E159: Rural Long | F159: Weather | G159: 1518 | H159: 0 | I159: 0 | J159: 3.3 b) | K159: 0.007363963151 | L159: Threshold exceeded due to storm activity on the network
B160: 9/04/2017 | C160: F-8437-b | D160: CLC005 | E160: Rural Short | F160: Weather | G160: 2183 | H160: 380.3110399 | I160: 830219 | J160: 3.3 b) | K160: 0 | L160: Threshold exceeded due to storm activity on the network
B161: 9/04/2017 | C161: F-8438-b | D161: WPD021 | E161: Rural Short | F161: Weather | G161: 3388 | H161: 279.2113341 | I161: 945968 | J161: 3.3 b) | K161: 0 | L161: Threshold exceeded due to storm activity on the network
B162: 9/04/2017 | C162: F-8439-b | D162: EHK021 | E162: Urban | F162: Weather | G162: 299 | H162: 251.638796 | I162: 75240 | J162: 3.3 b) | K162: 0 | L162: Threshold exceeded due to storm activity on the network
B163: 9/04/2017 | C163: F-8440-b | D163: WPD024 | E163: Rural Short | F163: Other | G163: 2855 | H163: 0 | I163: 0 | J163: 3.3 b) | K163: 0.01042062078 | L163: Threshold exceeded due to storm activity on the network
B164: 9/04/2017 | C164: F-8441-b | D164: SHP021 | E164: Rural Long | F164: Other | G164: 229 | H164: 0 | I164: 0 | J164: 3.3 b) | K164: 0.001110900897 | L164: Threshold exceeded due to storm activity on the network
B165: 9/04/2017 | C165: F-8442-b | D165: WPD024 | E165: Rural Short | F165: Weather | G165: 2855 | H165: 155.4900175 | I165: 443924 | J165: 3.3 b) | K165: 0 | L165: Threshold exceeded due to storm activity on the network
B166: 9/04/2017 | C166: F-8443-b | D166: CLC007 | E166: Rural Long | F166: Weather | G166: 300 | H166: 1181 | I166: 354300 | J166: 3.3 b) | K166: 0 | L166: Threshold exceeded due to storm activity on the network
B167: 9/04/2017 | C167: F-8446-b | D167: SHP014 | E167: Rural Long | F167: Weather | G167: 1032 | H167: 221 | I167: 228072 | J167: 3.3 b) | K167: 0 | L167: Threshold exceeded due to storm activity on the network
B168: 9/04/2017 | C168: F-8448-b | D168: BET001 | E168: Rural Long | F168: Weather | G168: 1758 | H168: 117 | I168: 205686 | J168: 3.3 b) | K168: 0 | L168: Threshold exceeded due to storm activity on the network
B169: 9/04/2017 | C169: J-117265-b | D169: WPD014 | E169: Rural Short | F169: Weather | G169: 2367 | H169: 324.7858048 | I169: 768768 | J169: 3.3 b) | K169: 0 | L169: Threshold exceeded due to storm activity on the network
B170: 19/12/2017 | C170: 1061653-1 | D170: MNA034 | E170: Rural Long | F170: Animals | G170: 78 | H170: 158 | I170: 12324 | J170: 3.3 b) | K170: 0 | L170: Threshold exceeded due to storm activity on the network
B171: 19/12/2017 | C171: 1061656-1 | D171: GSB014 | E171: Rural Short | F171: Equipment failure | G171: 10 | H171: 339 | I171: 3390 | J171: 3.3 b) | K171: 0 | L171: Threshold exceeded due to storm activity on the network
B172: 19/12/2017 | C172: 1061661-1 | D172: ART031 | E172: Rural Short | F172: Other | G172: 36 | H172: 0 | I172: 0 | J172: 3.3 b) | K172: 0.0001313983707 | L172: Threshold exceeded due to storm activity on the network
B173: 19/12/2017 | C173: 1061662-1 | D173: MRO007 | E173: Rural Long | F173: Other | G173: 46 | H173: 0 | I173: 0 | J173: 3.3 b) | K173: 0.0002231503985 | L173: Threshold exceeded due to storm activity on the network
B174: 19/12/2017 | C174: 1061664-1 | D174: SHN012 | E174: Urban | F174: Third party impacts | G174: 1 | H174: 27 | I174: 27 | J174: 3.3 b) | K174: 0 | L174: Threshold exceeded due to storm activity on the network
B175: 19/12/2017 | C175: 1061667-1 | D175: CME014 | E175: Rural Short | F175: Animals | G175: 2 | H175: 123 | I175: 246 | J175: 3.3 b) | K175: 0 | L175: Threshold exceeded due to storm activity on the network
B176: 19/12/2017 | C176: 1061668-1 | D176: MRO007 | E176: Rural Long | F176: Animals | G176: 1 | H176: 135 | I176: 135 | J176: 3.3 b) | K176: 0 | L176: Threshold exceeded due to storm activity on the network
B177: 19/12/2017 | C177: 1061671-1 | D177: GCY023 | E177: Urban | F177: Other | G177: 1 | H177: 78 | I177: 78 | J177: 3.3 b) | K177: 0 | L177: Threshold exceeded due to storm activity on the network
B178: 19/12/2017 | C178: 1061672-1 | D178: MNA014 | E178: Rural Long | F178: Animals | G178: 1 | H178: 66 | I178: 66 | J178: 3.3 b) | K178: 0 | L178: Threshold exceeded due to storm activity on the network
B179: 19/12/2017 | C179: 1061676-1 | D179: TRG001 | E179: Rural Short | F179: Animals | G179: 1 | H179: 71 | I179: 71 | J179: 3.3 b) | K179: 0 | L179: Threshold exceeded due to storm activity on the network
B180: 19/12/2017 | C180: 1061678-1 | D180: RVL008 | E180: Rural Short | F180: Animals | G180: 1 | H180: 79 | I180: 79 | J180: 3.3 b) | K180: 0 | L180: Threshold exceeded due to storm activity on the network
B181: 19/12/2017 | C181: 1061679-1 | D181: MNA014 | E181: Rural Long | F181: Animals | G181: 1 | H181: 93 | I181: 93 | J181: 3.3 b) | K181: 0 | L181: Threshold exceeded due to storm activity on the network
B182: 19/12/2017 | C182: 1061683-1 | D182: HTN006 | E182: Rural Long | F182: Animals | G182: 1 | H182: 42 | I182: 42 | J182: 3.3 b) | K182: 0 | L182: Threshold exceeded due to storm activity on the network
B183: 19/12/2017 | C183: 1061684-1 | D183: DDL024 | E183: Rural Short | F183: Animals | G183: 1 | H183: 125 | I183: 125 | J183: 3.3 b) | K183: 0 | L183: Threshold exceeded due to storm activity on the network
B184: 19/12/2017 | C184: 1061685-1 | D184: KRT013 | E184: Rural Long | F184: Equipment failure | G184: 2 | H184: 199 | I184: 398 | J184: 3.3 b) | K184: 0 | L184: Threshold exceeded due to storm activity on the network
B185: 19/12/2017 | C185: 1061703-1 | D185: OYN001 | E185: Rural Long | F185: Weather | G185: 1 | H185: 14 | I185: 14 | J185: 3.3 b) | K185: 0 | L185: Threshold exceeded due to storm activity on the network
B186: 19/12/2017 | C186: 1061716-1 | D186: MRO008 | E186: Rural Long | F186: Other | G186: 3 | H186: 93 | I186: 279 | J186: 3.3 b) | K186: 0 | L186: Threshold exceeded due to storm activity on the network
B187: 19/12/2017 | C187: 1061720-1 | D187: BAN015 | E187: Rural Short | F187: Equipment failure | G187: 1 | H187: 124 | I187: 124 | J187: 3.3 b) | K187: 0 | L187: Threshold exceeded due to storm activity on the network
B188: 19/12/2017 | C188: 1061731-1 | D188: HTN002 | E188: Rural Long | F188: Equipment failure | G188: 1 | H188: 231 | I188: 231 | J188: 3.3 b) | K188: 0 | L188: Threshold exceeded due to storm activity on the network
B189: 19/12/2017 | C189: 1061766-1 | D189: WPD011 | E189: Rural Short | F189: Weather | G189: 3 | H189: 20 | I189: 60 | J189: 3.3 b) | K189: 0 | L189: Threshold exceeded due to storm activity on the network
B190: 19/12/2017 | C190: 1061771-1 | D190: PLD006 | E190: Rural Short | F190: Equipment failure | G190: 18 | H190: 27 | I190: 486 | J190: 3.3 b) | K190: 0 | L190: Threshold exceeded due to storm activity on the network
B191: 19/12/2017 | C191: 1061821-1 | D191: MRO005 | E191: Rural Long | F191: Other | G191: 1087 | H191: 0 | I191: 0 | J191: 3.3 b) | K191: 0.005273140939 | L191: Threshold exceeded due to storm activity on the network
B192: 19/12/2017 | C192: 1061825-1 | D192: CLC007 | E192: Rural Long | F192: Other | G192: 35 | H192: 81 | I192: 2835 | J192: 3.3 b) | K192: 0 | L192: Threshold exceeded due to storm activity on the network
B193: 19/12/2017 | C193: 1061848-1 | D193: BAS034 | E193: Urban | F193: Weather | G193: 55 | H193: 102 | I193: 5610 | J193: 3.3 b) | K193: 0 | L193: Threshold exceeded due to storm activity on the network
B194: 19/12/2017 | C194: 1061854-1 | D194: SHN024 | E194: Rural Short | F194: Animals | G194: 1 | H194: 212 | I194: 212 | J194: 3.3 b) | K194: 0 | L194: Threshold exceeded due to storm activity on the network
B195: 19/12/2017 | C195: 1061871-1 | D195: MDA023 | E195: Rural Short | F195: Equipment failure | G195: 1 | H195: 2870 | I195: 2870 | J195: 3.3 b) | K195: 0 | L195: Threshold exceeded due to storm activity on the network
B196: 19/12/2017 | C196: 1061884-1 | D196: CDN001 | E196: Rural Long | F196: Weather | G196: 2 | H196: 225 | I196: 450 | J196: 3.3 b) | K196: 0 | L196: Threshold exceeded due to storm activity on the network
B197: 19/12/2017 | C197: 1061906-1 | D197: RCT022 | E197: Rural Short | F197: Weather | G197: 849 | H197: 0 | I197: 0 | J197: 3.3 b) | K197: 0.003098811575 | L197: Threshold exceeded due to storm activity on the network
B198: 19/12/2017 | C198: 1061943-1 | D198: MDA024 | E198: Rural Short | F198: Weather | G198: 24 | H198: 275 | I198: 6600 | J198: 3.3 b) | K198: 0 | L198: Threshold exceeded due to storm activity on the network
B199: 19/12/2017 | C199: 1061951-1 | D199: CLC007 | E199: Rural Long | F199: Equipment failure | G199: 35 | H199: 175 | I199: 6125 | J199: 3.3 b) | K199: 0 | L199: Threshold exceeded due to storm activity on the network
B200: 19/12/2017 | C200: 1061980-1 | D200: GL014 | E200: Urban | F200: Equipment failure | G200: 1 | H200: 268 | I200: 268 | J200: 3.3 b) | K200: 0 | L200: Threshold exceeded due to storm activity on the network
B201: 19/12/2017 | C201: 1061981-1 | D201: RVL001 | E201: Rural Short | F201: Weather | G201: 868 | H201: 22 | I201: 19096 | J201: 3.3 b) | K201: 0 | L201: Threshold exceeded due to storm activity on the network
B202: 19/12/2017 | C202: 1061992-1 | D202: MDA024 | E202: Rural Short | F202: Weather | G202: 1280 | H202: 0 | I202: 0 | J202: 3.3 b) | K202: 0.004671942068 | L202: Threshold exceeded due to storm activity on the network
B203: 19/12/2017 | C203: 1062002-1 | D203: RVL004 | E203: Urban | F203: Weather | G203: 236 | H203: 22 | I203: 5192 | J203: 3.3 b) | K203: 0 | L203: Threshold exceeded due to storm activity on the network
... 245 more rows

Sheet 6.9 STPIS - GSL
B1: =(LOOKUP(dms_Model,dms_Model_List,dms_Worksheet_List)) -> ANNUAL REPORTING STATEMENT
B2: =dms_TradingName -> Powercor Australia
B3: =CONCATENATE("Annual Reporting RIN Response ",CRY) -> Annual Reporting RIN Response 2017
B4: 6.9 STPIS - GUARANTEED SERVICE LEVEL
B6: Did the AER's GSL Scheme apply at any time during the regulatory year? | D6: No | E6: **IMPORTANT Please ensure this flag is set. Conditional formatting on this worksheet is dependant on this response.
B8: Instructions: Table 6.9.1 collects information relating to jurisdiction GSL scheme parameters. These parameters can be found in the jurisdictonal scheme relevant to NSP. Please identify each parameter in the relevant sub-tables and provide the volume and value of GSL payments. For GSL parameters that do not fit within the provided sub-tables provided, please enter a heading and identify the relevant parameter(s).
B10: 6.9.1 - GUARANTEED SERVICE LEVELS - JURISDICTIONAL GSL SCHEME
D11: =CRY -> 2017 | E11: =CRY -> 2017
D12: Volume | E12: Value of GSL payments
D13: 0's | E13: $0's
B14: Appointments
B15: Customer arranged appointments Central | D15: 3542
B16: Appointments not met within 15 minutes of agreed time | D16: 7
B17: Appointments - GSL payments | D17: 7 | E17: 210
B19: To enter further GSL parameters relating to appointments - please copy a row from above and "insert copied cells" above this row.
B21: Connections
B22: Connections made | D22: 89298
B23: Connections not made on agreed date | D23: 2826 | E23: 630420
B24: Connections - GSL payments - 1-4 day delay | D24: 1776 | E24: 262920
B25: Connections - GSL payments - 5+ day delay | D25: 1050 | E25: 367500
B27: To enter further GSL parameters relating to connections - please copy a row from above and "insert copied cells" above this row.
B29: Reliability of supply
B30: Supply restoration payments - 20 hours | D30: 10285 | E30: 1234200
B31: Supply restoration payments - 30 hours | D31: 2605 | E31: 468900
B32: Supply restoration payments - 60 hours | D32: 3 | E32: 1080
B33: Supply restoration payments - CBD/Urban feeders 12 hours duration | D33: 673 | E33: 53840
B34: Supply restoration payments - Rural (long/short) feeders 18 hours duration | D34: 1247 | E34: 99760
B35: Low reliability payments - 10 events (prior 2016) / 8 events (2017) | D35: 1526 | E35: 183120
B36: Low reliability payments - 15 events (prior 2016) / 12 events (2017) | D36: 187 | E36: 33660
B37: Low reliability payments - 30 events (prior 2016) / 24 events (2017) | D37: 0 | E37: 0
B38: Low reliability payments over 24 momentary events | D38: 0 | E38: 0
B39: Low reliability payments over 36 momentary events | D39: 0 | E39: 0
B41: To enter further GSL parameters relating to reliability of supply - please copy a row from above and "insert copied cells" above this row.
B43: Street lights
B44: Streetlights | D44: 170676 | E44: 0
B45: Street lights "out" during period | D45: 6894 | E45: 0
B46: Street lights not repaired by "fix by" date | D46: 34 | E46: 0
B47: Street lights not repaired in 2 business days | D47: 39 | E47: 0
B48: Number of business days to repair | D48: 1.85 | E48: 0
B49: GSL payments | D49: 40 | E49: 1000
B51: To enter further GSL parameters relating to street lights - please copy a row from above and "insert copied cells" above this row.
B53: Planned interruptions
B54: Notice of planned interruptions - 4 business days notice not given (customers affected) | D54: 328 | E54: 0
B63: To enter further GSL parameters relating to planned interruptions - please copy a row from above and "insert copied cells" above this row.
B65: <NSP defined parameter category>
B69: To enter further GSL parameters - please identify the parameter and if insufficient rows please copy a row from above and "insert copied cells" above this row.
B71: <NSP defined parameter category>
B75: To enter further GSL parameters - please identify the parameter and if insufficient rows please copy a row from above and "insert copied cells" above this row.
B77: <NSP defined parameter category>
B81: To enter further GSL parameters - please identify the parameter and if insufficient rows please copy a row from above and "insert copied cells" above this row.
B83: <NSP defined parameter category>
B87: To enter further GSL parameters - please identify the parameter and if insufficient rows please copy a row from above and "insert copied cells" above this row.
B90: 6.9.2 - GUARANTEED SERVICE LEVELS - AER GSL SCHEME
B92: Complete Table 6.9.2 if the AER's GSL scheme applied at any time during the regulatory year. Do not complete Table 6.9.2 if the AER's GSL scheme did not apply during the regulatory year.
D94: =CRY -> 2017 | E94: =CRY -> 2017
D95: Volume | E95: Value of GSL payments
D96: 0's | E96: $0's
B97: New connections
B98: Number of connections made
B99: Number of connections not made on or before the day agreed
B100: Connections - GSL payments – 1-6 day delay
B101: Connections - GSL payments – 7+ day delay
B102: Reliability of supply
B103: Frequency of interruptions – CBD feeders – 9 interruptions
B104: Frequency of interruptions – Urban feeders – 9 interruptions
B105: Frequency of interruptions – Rural (short and long) feeders – 15 interruptions
B106: Interruptions – CBD feeders – 12 hours duration
B107: Interruptions – Urban feeders – 12 hours duration
B108: Interruptions – Rural (short and long) feeders – 18 hours duration
B109: Total duration of interruptions Level 1 – 20 hours
B110: Total duration of interruptions Level 2 – 30 hours
B111: Total duration of interruptions Level 3 – 60 hours
B112: Street lights
B113: Streetlight repair 5 days – GSL payments
B114: Planned interruptions
B115: Notice of planned interruptions – 4 business days notice not given
B116: Total | E116: =SUM(E115,E113,E103:E111,E100:E101) -> 0

Sheet 7.8 Avoided TUOS Payments
B1: =(LOOKUP(dms_Model,dms_Model_List,dms_Worksheet_List)) -> ANNUAL REPORTING STATEMENT
B2: =dms_TradingName -> Powercor Australia
B3: =CONCATENATE("Annual Reporting RIN Response ",CRY) -> Annual Reporting RIN Response 2017
B4: 7.8 - AVOIDED TUOS PAYMENTS
B6: 7.8.1 - AVOIDED TUOS PAYMENTS
C7: Avoided TUOS Payment
C8: $0's, nominal
B9: Embedded generators | C9: 2210381.24
B10: Market network service providers | C10: 0
B11: Other | C11: 0

Sheet 7.10 Juris Scheme
B1: =(LOOKUP(dms_Model,dms_Model_List,dms_Worksheet_List)) -> ANNUAL REPORTING STATEMENT
B2: =dms_TradingName -> Powercor Australia
B3: =CONCATENATE("Annual Reporting RIN Response ",CRY) -> Annual Reporting RIN Response 2017
B4: 7.10 - JURISDICTIONAL SCHEMES
B6: Instructions Business must list each relevant jurisdictional scheme individually and report information for each scheme separately from other schemes.
B8: 7.10.1 - JURISDICTIONAL SCHEME PAYMENTS
B9: Jurisdictional Scheme Name | C9: Description | D9: Date DNSP Became Subject to Scheme | E9: Description of Cost Recovery Method | F9: Total Scheme Payments
F10: $0's, nominal
B11: Premium feed-in tariff | C11: PFiT | D11: 2009-11-01 | F11: 26906090.34
B12: Transitional feed-in tariff | C12: TFiT | D12: 2012-01-01 | F12: 1503477.51
E17: Total | F17: =SUM(F11:F16) -> 28409567.85

Sheet 7.11 DMIS-DMIA
B1: =(LOOKUP(dms_Model,dms_Model_List,dms_Worksheet_List)) -> ANNUAL REPORTING STATEMENT
B2: =dms_TradingName -> Powercor Australia
B3: =CONCATENATE("Annual Reporting RIN Response ",CRY) -> Annual Reporting RIN Response 2017
B4: 7.11 - DEMAND MANAGEMENT INCENTIVE SCHEME
B6: 7.11.1 - DMIA - PROJECTS SUBMITTED FOR APPROVAL
C7: =CONCATENATE("Total amount of the DMIA spent in ", CRY) -> Total amount of the DMIA spent in 2017
C8: Operating expenditure | D8: Capital expenditure | E8: Total
B9: Name of project | C9: $0's, nominal
B10: AC Analystics Tool | C10: 56903 | E10: =SUM(C10:D10) -> 56903
E11: 0
E12: 0
E13: 0
E14: 0
E15: 0
E16: 0
E17: 0
E18: 0
E19: 0
E20: 0
E21: 0
E22: 0
E23: 0
E24: 0
E25: 0
E26: 0
E27: 0
E28: 0
E29: 0
E30: 0
E31: 0
E32: 0
E33: 0
E34: 0
E35: 0
E36: 0
E37: 0
E38: 0
E39: 0
E40: 0
E41: 0
E42: 0
E43: 0
E44: 0
B45: To enter additional projects - please copy an existing row and insert above this row.
B46: Total | C46: =SUM(C10:C45) -> 56903 | D46: =SUM(D10:D45) -> 0 | E46: =SUM(E10:E45) -> 56903

Sheet 7.12 Safety and Bushfire
B1: =(LOOKUP(dms_Model,dms_Model_List,dms_Worksheet_List)) -> ANNUAL REPORTING STATEMENT
B2: =dms_TradingName -> Powercor Australia
B3: =CONCATENATE("Annual Reporting RIN Response ",CRY) -> Annual Reporting RIN Response 2017
B4: 7.12 SAFETY AND BUSHFIRE RELATED EXPENDITURE
B6: These templates collect information from Victorian businesses only. Bushfire and safety related expenditure information is used by the AER to monitor the expenditures throughout the regulatory control period.
B8: CPI applied to convert expected expenditure in real $ to nominal based on lagged September CPI index
B10: Instructions
B11: For "Exclusive of Margins & Overheads" reported expenditure is to EXCLUDE any overheads, profit margins or management fees paid directly or indirectly to related party contractors (not including actual incurred expense of the related party contractor) for the reporting period.
B12: For "Value of Margins & Overheads" reported expenditure is to COMPRISE ONLY the sum of overheads, profit margins or management fees paid directly or indirectly to related party contractors (not including actual incurred expenses of the related party contractor) for the reporting period.
B14: =CONCATENATE(dms_TradingName, " is to specify each activity in this table in accordance with the definition in Appendix F of the RIN.") -> Powercor Australia is to specify each activity in this table in accordance with the definition in Appendix F of the RIN.
B15: All activities must be reported but the Reason for Difference is only required if there is a 10 per cent difference between the expected value and the actual value. Use median unit costs. Where unit costs are not recorded at the asset category level - provide the best estimates of the unit cost using the cost allocation method identified in this table. (As a transitional measure, the unit cost may be based on a statistically significant annual sample of actual work orders at a 5% or better confidence interval.) Provide basis of allocation where applicable.
B17: 7.12.1 - SAFETY AND BUSHFIRE RELATED ASSET GROUP DEFINITIONS AND ALLOCATION BASIS
B18: Activity | C18: Definitions | G18: Basis for allocation of cost to activity
B19: Planned non-preferred services replacements
B20: Planned replacement of non-preferred services due to height
B21: Removal of public lighting switchwire
B22: Replacement of existing SWER lines with 22kV overhead bare conductor
B23: Installation of GFN and associated equipment at zone substations | C23: Installation of ground fault neutralizer equipment at a specific zone substation | G23: Actual costs are captured from the SAP accounting system at a project level based on the labour material and contract work undertaken.
B24: Replacement of crossarms/insulator sets – pole top fire mitigation
B25: Replacement of crossarms – based on age and condition
B26: Replacement of poles – based on age and condition | G26: Actual costs are captured at a composite project level including these and other physicals. Costs are allocated to function codes for settlement based on allocation rules. Allocation to voltages for poles is based on actual physicals completed.
B27: Stake poles – based on age and condition
B28: Replacement of undersized poles
B29: Stake undersized poles
B30: Replacement of overhead conductor – mainly steel
B31: Service line clearance – overhead services requiring relocation
B32: Service line clearance – overhead services requiring undergrounding
B33: Replacement of 22kV distribution feeders with ABC/underground cabling
B34: Replacement of SWER with covered carbon core conductor or equivalent | C34: Route length of SWER line replaced by covered carbon core conductor or equivalent - completed projects (not WIP) | G34: Actual costs are captured from the SAP accounting system at a project level based on the labour material and contract work undertaken.
B35: Replacement of SWER with ABC | C35: Route length of SWER line replaced by ABC | G35: Actual costs are captured from the SAP accounting system at a project level based on the labour material and contract work undertaken.
B36: Replacement of SWER with underground | C36: Route length of SWER line replaced by underground cable - completed projects (not WIP) | G36: Actual costs are captured from the SAP accounting system at a project level based on the labour material and contract work undertaken.
B37: Replacement of surge diverters (neptune configuration) | C37: Number of individual surge diverters replaced using neptune configuration | G37: Actual costs are captured from the SAP accounting system at a project level based on the labour material and contract work undertaken.
B38: Replacement of surge diverters (single phase or three phase) | C38: Number of individual surge arresters replaced on a like-for-like basis | G38: Actual costs are captured from the SAP accounting system at a project level based on the labour material and contract work undertaken.
B39: Armour Rods and Vibration Dampers | C39: Number of spans treated with armour rods and/or vibration dampers | G39: Actual costs are captured from the SAP accounting system at a project level based on the labour material and contract work undertaken.
B40: SWER ACRS | C40: Number of new generation SWER ACRs installed | G40: Actual costs are captured from the SAP accounting system at a project level based on the labour material and contract work undertaken.
B41: Multicircuit Clearances (LBRA Survey) | C41: Number of line kilometers surveyed | G41: Actual costs are captured from the SAP accounting system at a project level based on the labour material and contract work undertaken.
B42: Multicircuit Clearances (HBRA) | C42: Number of poles treated with HV spreaders | G42: Actual costs are captured from the SAP accounting system at a project level based on the labour material and contract work undertaken.
B50: To enter further activities - please copy row from above and "insert copied cells" into a row above this row.
B53: 7.12.2 - BUSHFIRE RELATED
B55: 7.12.2.1 - NUMBER OF ACTIVITIES
B56: Activity | C56: Units | D56: Number of Activities
B57: Planned non-preferred services replacements | C57: number of services | D57: 0
B58: Planned replacement of non-preferred services due to height | C58: number of services | D58: 0
B59: Removal of public lighting switchwire | C59: number of spans removed | D59: 0
B60: Replacement of existing SWER lines with 22kV overhead bare conductor | C60: kms of SWER | D60: 0
B61: Installation of GFN and associated equipment at zone substations | C61: number of zone substations | D61: 0
B62: Replacement of crossarms/insulator sets – pole top fire mitigation | C62: number of crossarms/sets | D62: 0
B63: Replacement of crossarms – based on age and condition | C63: number of crossarms | D63: 0
B64: Replacement of poles – based on age and condition | C64: number of poles | D64: 0
B65: Stake poles – based on age and condition | C65: number of poles | D65: 0
B66: Replacement of undersized poles | C66: number of poles | D66: 0
B67: Stake undersized poles | C67: number of poles | D67: 0
B68: Replacement of overhead conductor – mainly steel | C68: kms | D68: 0
B69: Service line clearance – overhead services requiring relocation | C69: number of services | D69: 0
B70: Service line clearance – overhead services requiring undergrounding | C70: number of services | D70: 0
B71: Replacement of 22kV distribution feeders with ABC/underground cabling | C71: number of feeders | D71: 4
B72: Replacement of SWER with covered carbon core conductor or equivalent | C72: kms | D72: 0
B73: Replacement of SWER with ABC | C73: kms | D73: 0
B74: Replacement of SWER with underground | C74: kms | D74: 82
B75: Replacement of surge diverters (neptune configuration) | C75: number of units | D75: 0
B76: Replacement of surge diverters (single phase or three phase) | C76: number of units | D76: 0
B77: =IF(ISBLANK(B39),"",B39) -> Armour Rods and Vibration Dampers | C77: number of units | D77: 18121
B78: =IF(ISBLANK(B40),"",B40) -> SWER ACRS | C78: number of units | D78: 145
B79: =IF(ISBLANK(B41),"",B41) -> Multicircuit Clearances (LBRA Survey) | C79: kms | D79: 0
B80: =IF(ISBLANK(B42),"",B42) -> Multicircuit Clearances (HBRA) | C80: number of units | D80: 0
B81: =IF(ISBLANK(B43),"",B43) -> 
B82: =IF(ISBLANK(B48),"",B48) -> 
B83: =IF(ISBLANK(B49),"",B49) -> 
B84: To enter further activities - please copy row from above and "insert copied cells" into a row above this row.
B87: 7.12.2.2 - EXPENDITURE
B88: Activity | C88: Units | D88: Exclusive of Margins & Overheads | E88: Value of Margins & Overheads
D89: Actual Expenditure
D90: $0's, Nominal
B91: Planned non-preferred services replacements | C91: number of services | D91: 0 | E91: 0
B92: Planned replacement of non-preferred services due to height | C92: number of services | D92: 0 | E92: 0
B93: Removal of public lighting switchwire | C93: number of spans removed | D93: 0 | E93: 0
B94: Replacement of existing SWER lines with 22kV overhead bare conductor | C94: kms of SWER | D94: 0 | E94: 0
B95: Installation of GFN and associated equipment at zone substations | C95: number of zone substations | D95: 0 | E95: 0
B96: Replacement of crossarms/insulator sets – pole top fire mitigation | C96: number of crossarms/sets | D96: 0 | E96: 0
B97: Replacement of crossarms – based on age and condition | C97: number of crossarms | D97: 0 | E97: 0
B98: Replacement of poles – based on age and condition | C98: number of poles | D98: 0 | E98: 0
B99: Stake poles – based on age and condition | C99: number of poles | D99: 0 | E99: 0
B100: Replacement of undersized poles | C100: number of poles | D100: 0 | E100: 0
B101: Stake undersized poles | C101: number of poles | D101: 0 | E101: 0
B102: Replacement of overhead conductor – mainly steel | C102: kms | D102: 0 | E102: 0
B103: Service line clearance – overhead services requiring relocation | C103: number of services | D103: 0 | E103: 0
B104: Service line clearance – overhead services requiring undergrounding | C104: number of services | D104: 0 | E104: 0
B105: Replacement of 22kV distribution feeders with ABC/underground cabling | C105: number of feeders | D105: 4344460 | E105: 969062
B106: Replacement of SWER with covered carbon core conductor or equivalent | C106: kms | D106: 0 | E106: 0
B107: Replacement of SWER with ABC | C107: kms | D107: 0 | E107: 0
B108: Replacement of SWER with underground | C108: kms | D108: 9256859 | E108: 1975602
B109: Replacement of surge diverters (neptune configuration) | C109: number of units | D109: 0 | E109: 0
B110: Replacement of surge diverters (single phase or three phase) | C110: number of units | D110: 0 | E110: 0
B111: =IF(ISBLANK(B39),"",B39) -> Armour Rods and Vibration Dampers | C111: number of units | D111: 7995836 | E111: 2056371
B112: =IF(ISBLANK(B40),"",B40) -> SWER ACRS | C112: number of units | D112: 5257583 | E112: 1044986
B113: =IF(ISBLANK(B41),"",B41) -> Multicircuit Clearances (LBRA Survey) | C113: kms | D113: 430 | E113: 106
B114: =IF(ISBLANK(B42),"",B42) -> Multicircuit Clearances (HBRA) | C114: number of units | D114: 10602 | E114: 12493
B115: =IF(ISBLANK(B43),"",B43) ->  | C115: =IF(ISBLANK(C81),"",C81) -> 
B116: =IF(ISBLANK(B48),"",B48) ->  | C116: =IF(ISBLANK(C82),"",C82) -> 
B117: =IF(ISBLANK(B49),"",B49) ->  | C117: =IF(ISBLANK(C83),"",C83) -> 
B118: To enter further activities - please copy row from above and "insert copied cells" into a row above this row.
B121: 7.12.2.3 - UNIT COSTS
B122: Activity | D122: Actual
D123: $0's, Per Unit
B124: Planned non-preferred services replacements | D124: 0
B125: Planned replacement of non-preferred services due to height | D125: 0
B126: Removal of public lighting switchwire | D126: 0
B127: Replacement of existing SWER lines with 22kV overhead bare conductor | D127: 0
B128: Installation of GFN and associated equipment at zone substations | D128: 0
B129: Replacement of crossarms/insulator sets – pole top fire mitigation | D129: 0
B130: Replacement of crossarms – based on age and condition | D130: 0
B131: Replacement of poles – based on age and condition | D131: 0
B132: Stake poles – based on age and condition | D132: 0
B133: Replacement of undersized poles | D133: 0
B134: Stake undersized poles | D134: 0
B135: Replacement of overhead conductor – mainly steel | D135: 0
B136: Service line clearance – overhead services requiring relocation | D136: 0
B137: Service line clearance – overhead services requiring undergrounding | D137: 0
B138: Replacement of 22kV distribution feeders with ABC/underground cabling | D138: 1328380
B139: Replacement of SWER with covered carbon core conductor or equivalent | D139: 0
B140: Replacement of SWER with ABC | D140: 0
B141: Replacement of SWER with underground | D141: 136981
B142: Replacement of surge diverters (neptune configuration) | D142: 0
B143: Replacement of surge diverters (single phase or three phase) | D143: 0
B144: =IF(ISBLANK(B39),"",B39) -> Armour Rods and Vibration Dampers | D144: 555
B145: =IF(ISBLANK(B40),"",B40) -> SWER ACRS | D145: 43466
B146: =IF(ISBLANK(B41),"",B41) -> Multicircuit Clearances (LBRA Survey) | D146: 0
B147: =IF(ISBLANK(B42),"",B42) -> Multicircuit Clearances (HBRA) | D147: 0
B148: =IF(ISBLANK(B43),"",B43) -> 
B149: =IF(ISBLANK(B48),"",B48) -> 
B150: =IF(ISBLANK(B49),"",B49) -> 
B151: To enter further activities - please copy row from above and "insert copied cells" into a row above this row.
B154: 7.12.2.4 - CONTINGENT PROJECT APPLICATIONS - VOLUMES APPROVED
B155: Activity | C155: Units | D155: Volume approved under contingent project applications | E155: Actual volumes | F155: Difference
F156: =E156-D156 -> 0
F157: 0
F158: 0
F159: 0
F160: 0
F161: 0
F162: 0
F163: 0
B164: To enter further activities - please copy row from above and "insert copied cells" into a row above this row.
B166: 7.12.2.5 - CONTINGENT PROJECT APPLICATIONS - EXPENDITURE APPROVED
B167: Activity | C167: Exclusive of Margins & Overheads | D167: Value of Margins & Overheads
C168: Actual Expenditure
C169: $0's, Nominal
B170: REFCL | C170: 33327453.86 | D170: 5899709.56
B178: To enter further activities - please copy row from above and "insert copied cells" into a row above this row.
B182: 7.12.3 - SAFETY RELATED
B184: 7.12.3.1 - NUMBER OF ACTIVITIES
B185: Activity | C185: Units | D185: Number of Activities
B186: Planned non-preferred services replacements | C186: number of services | D186: 0
B187: Planned replacement of non-preferred services due to height | C187: number of services | D187: 0
B188: Removal of public lighting switchwire | C188: number of spans removed | D188: 0
B189: Replacement of existing SWER lines with 22kV overhead bare conductor | C189: kms of SWER | D189: 0
B190: Installation of GFN and associated equipment at zone substations | C190: number of zone substations | D190: 0
B191: Replacement of crossarms/insulator sets – pole top fire mitigation | C191: number of crossarms/sets | D191: 0
B192: Replacement of crossarms – based on age and condition | C192: number of crossarms | D192: 5688
B193: Replacement of poles – based on age and condition | C193: number of poles | D193: 1153
B194: Stake poles – based on age and condition | C194: number of poles | D194: 623
B195: Replacement of undersized poles | C195: number of poles | D195: 0
B196: Stake undersized poles | C196: number of poles | D196: 0
B197: Replacement of overhead conductor – mainly steel | C197: kms | D197: 278
B198: Service line clearance – overhead services requiring relocation | C198: number of services | D198: 0
B199: Service line clearance – overhead services requiring undergrounding | C199: number of services | D199: 0
B200: Replacement of 22kV distribution feeders with ABC/underground cabling | C200: number of feeders | D200: 0
B201: Replacement of SWER with covered carbon core conductor or equivalent | C201: kms | D201: 0
B202: Replacement of SWER with ABC | C202: kms | D202: 0
B203: Replacement of SWER with underground | C203: kms | D203: 0
B204: Replacement of surge diverters (neptune configuration) | C204: number of units | D204: 0
B205: Replacement of surge diverters (single phase or three phase) | C205: number of units | D205: 0
B206: =IF(ISBLANK(B39),"",B39) -> Armour Rods and Vibration Dampers | C206: number of units | D206: 0
B207: =IF(ISBLANK(B40),"",B40) -> SWER ACRS | C207: number of units | D207: 0
B208: =IF(ISBLANK(B41),"",B41) -> Multicircuit Clearances (LBRA Survey) | C208: kms | D208: 0
B209: =IF(ISBLANK(B42),"",B42) -> Multicircuit Clearances (HBRA) | C209: number of units | D209: 0
B210: =IF(ISBLANK(B43),"",B43) ->  | C210: =IF(ISBLANK(C81),"",C81) -> 
B211: =IF(ISBLANK(B48),"",B48) ->  | C211: =IF(ISBLANK(C82),"",C82) -> 
B212: =IF(ISBLANK(B49),"",B49) ->  | C212: =IF(ISBLANK(C83),"",C83) -> 
B213: To enter further activities - please copy row from above and "insert copied cells" into a row above this row.
B216: 7.12.3.2 - EXPENDITURE
B217: Activity | C217: Units | D217: Exclusive of Margins & Overheads | E217: Value of Margins & Overheads
D218: Actual Expenditure
D219: $0's, Nominal
B220: Planned non-preferred services replacements | C220: number of services | D220: 0 | E220: 0
B221: Planned replacement of non-preferred services due to height | C221: number of services | D221: 0 | E221: 0
B222: Removal of public lighting switchwire | C222: number of spans removed | D222: 0 | E222: 0
B223: Replacement of existing SWER lines with 22kV overhead bare conductor | C223: kms of SWER | D223: 0 | E223: 0
B224: Installation of GFN and associated equipment at zone substations | C224: number of zone substations | D224: 0 | E224: 0
B225: Replacement of crossarms/insulator sets – pole top fire mitigation | C225: number of crossarms/sets | D225: 0 | E225: 0
B226: Replacement of crossarms – based on age and condition | C226: number of crossarms | D226: 14339303 | E226: 2729164
B227: Replacement of poles – based on age and condition | C227: number of poles | D227: 10007348 | E227: 1904673
B228: Stake poles – based on age and condition | C228: number of poles | D228: 847269 | E228: 161259
B229: Replacement of undersized poles | C229: number of poles | D229: 0 | E229: 0
B230: Stake undersized poles | C230: number of poles | D230: 0 | E230: 0
B231: Replacement of overhead conductor – mainly steel | C231: kms | D231: 6501673 | E231: 1237447
B232: Service line clearance – overhead services requiring relocation | C232: number of services | D232: 0 | E232: 0
B233: Service line clearance – overhead services requiring undergrounding | C233: number of services | D233: 0 | E233: 0
B234: Replacement of 22kV distribution feeders with ABC/underground cabling | C234: number of feeders | D234: 0 | E234: 0
B235: Replacement of SWER with covered carbon core conductor or equivalent | C235: kms | D235: 0 | E235: 0
... 103 more rows

Sheet 7.13 TARC
B1: =(LOOKUP(dms_Model,dms_Model_List,dms_Worksheet_List)) -> ANNUAL REPORTING STATEMENT
B2: =dms_TradingName -> Powercor Australia
B3: =CONCATENATE("Annual Reporting RIN Response ",CRY) -> Annual Reporting RIN Response 2017
B4: 7.13 - TARC
B7: 7.13.1 - TOTAL ANNUAL RETAILER CHARGES
C8: $0's
B9: TARC | C9: 932398704

Sheet 8.1 Income
B1: =(LOOKUP(dms_Model,dms_Model_List,dms_Worksheet_List)) -> ANNUAL REPORTING STATEMENT
B2: =dms_TradingName -> Powercor Australia
B3: =CONCATENATE("Annual Reporting RIN Response ",CRY) -> Annual Reporting RIN Response 2017
B4: 8.1 - INCOME
B6: 8.1.1 - INCOME STATEMENT
C7: Audited Statutory Accounts | D7: Adjustments | E7: Distribution business | F7: Standard Control Services | G7: Alternative Control Services | L7: Negotiated Services
G8: Public Lighting | I8: Other
G9: =IF(dms_Jurisdiction="Vic","Energy efficient","") -> Energy efficient | H9: =IF(dms_Jurisdiction="Vic","Non-energy efficient","") -> Non-energy efficient | I9: Connection services | J9: Metering services | K9: Ancillary network services
C10: $0's, nominal
B11: 8.1.1.1 - REVENUE
B12: Distribution revenue | C12: 727680765 | D12: 5253193 | E12: 732933958 | F12: 628568882 | G12: 5342314 | H12: 3057567 | I12: 12588180 | J12: 73993124 | K12: 9357037 | L12: 26854
B13: Cross boundary revenue | C13: 5479744 | D13: -5479744 | E13: - | F13: - | G13: - | H13: - | I13: - | J13: - | K13: - | L13: -
B14: Contributions | C14: 101046480 | D14: -101046480 | E14: - | F14: - | G14: - | H14: - | I14: - | J14: - | K14: - | L14: -
B15: Interest Income | C15: 8907 | D15: - | E15: 8907 | F15: 8907 | G15: - | H15: - | I15: - | J15: - | K15: - | L15: -
B16: Jurisdictional scheme amounts | C16: 31097237 | D16: -31097237 | E16: - | F16: - | G16: - | H16: - | I16: - | J16: - | K16: - | L16: -
B17: Profit from sale of fixed assets | C17: -3741543 | D17: 3741543 | E17: - | F17: - | G17: - | H17: - | I17: - | J17: - | K17: - | L17: -
B18: TUOS revenue | C18: 162914618 | D18: -162914618 | E18: - | F18: - | G18: - | H18: - | I18: - | J18: - | K18: - | L18: -
B19: Pass through revenue (F-factor) | C19: - | D19: - | E19: - | F19: - | G19: - | H19: - | I19: - | J19: - | K19: - | L19: -
B20: Other Revenue | C20: 303040780 | D20: -297646871 | E20: 5393909 | F20: 5147805 | G20: - | H20: - | I20: - | J20: 89462 | K20: 156642 | L20: -
B21: Total revenue | C21: =SUM(C12:C20) -> 1327526988 | D21: -589190214 | E21: 738336774 | F21: 633725594 | G21: 5342314 | H21: 3057567 | I21: 12588180 | J21: 74082586 | K21: 9513679 | L21: 26854
B23: 8.1.1.2 - EXPENDITURE
B24: TUOS expenditure | C24: 160704237 | D24: -160704237 | E24: - | F24: - | G24: - | H24: - | I24: - | J24: - | K24: - | L24: -
B25: Avoided TUOS expenditure | C25: 2210381 | D25: -2210381 | E25: - | F25: - | G25: - | H25: - | I25: - | J25: - | K25: - | L25: -
B26: Cross boundary expenditure | C26: 5479744 | D26: -5479744 | E26: - | F26: - | G26: - | H26: - | I26: - | J26: - | K26: - | L26: -
B27: Depreciation | C27: 216087793 | D27: 10284163 | E27: 226371956 | F27: 185725446 | G27: 611566 | H27: 600245 | I27: - | J27: 39434699 | K27: - | L27: -
B28: Finance charges | C28: 31407631 | D28: -31456956 | E28: -49325 | F28: -49325 | G28: - | H28: - | I28: - | J28: - | K28: - | L28: -
B29: Impairment losses | C29: - | D29: 0 | E29: - | F29: - | G29: - | H29: - | I29: - | J29: - | K29: - | L29: -
B30: Jurisdictional scheme amounts | C30: 31097237 | D30: -31097237 | E30: - | F30: - | G30: - | H30: - | I30: - | J30: - | K30: - | L30: -
B31: Loss from sale of fixed assets | C31: 0 | D31: 3741543 | E31: 3741543 | F31: 3741543 | G31: - | H31: - | I31: - | J31: - | K31: - | L31: -
B32: Maintenance expenditure | C32: 110087153 | D32: =E32-C32 -> 20503577.3 | E32: =SUM(F32:K32) -> 130590730.3 | F32: ='[1]8.1 Income'!$F$36 -> 115703637.3 | G32: 3661058 | H32: - | I32: - | J32: 8515323 | K32: 2710712 | L32: -
B33: Operating expenditure excluding maintenance expenditure | C33: 410540427 | D33: -286512820 | E33: 124027607 | F33: 98376123 | G33: 396467 | H33: 388959 | I33: 15461505 | J33: 6273282 | K33: 2445007 | L33: 686264
B34: Other | C34: 66808 | D34: 0 | E34: 66808 | F34: 66808 | G34: - | H34: - | I34: - | J34: - | K34: - | L34: -
B36: 8.1.1.3 - PROFIT
B37: Profit before tax (PBT) | C37: =C21-SUM(C24:C34) -> 359845577 | D37: -106258122.3 | E37: 253587454.7 | F37: 230161361.7 | G37: 673223 | H37: 2068363 | I37: -2873325 | J37: 19859282 | K37: 4357960 | L37: -659410
B38: Income tax expenses (/ benefit) | C38: 74347486 | D38: -21953929.03 | E38: 52393556.97 | F38: 47553505.48 | G38: 139094.2136 | H38: 427343.28 | I38: -593656.0121 | J38: 4103114.738 | K38: 900395.5885 | L38: -136240.3177
B39: Profit after tax | C39: =C37-C38 -> 285498091 | D39: -84304193.26 | E39: 201193897.7 | F39: 182607856.2 | G39: 534128.7864 | H39: 1641019.72 | I39: -2279668.988 | J39: 15756167.26 | K39: 3457564.411 | L39: -523169.6823

Sheet 8.2 Capex
B1: =(LOOKUP(dms_Model,dms_Model_List,dms_Worksheet_List)) -> ANNUAL REPORTING STATEMENT
B2: =dms_TradingName -> Powercor Australia
B3: =CONCATENATE("Annual Reporting RIN Response ",CRY) -> Annual Reporting RIN Response 2017
B4: 8.2 - CAPEX
B6: Instructions
B7: Reported expenditure must EXCLUDE capital contributions (except tables 8.2.1 and 8.2.5 which should include all capital contributions).
B8: =CONCATENATE("Forecast expenditure is to be taken from ",dms_TradingName,"'s ",dms_DeterminationRef,".") -> Forecast expenditure is to be taken from Powercor Australia's 2016-20 Distribution Determination.
B9: If allocating based on assumptions then provide method in Basis of Preparation. All adjustments must be explained in Basis of Preparation with supporting documentation attached.
B11: For tables 8.2.1 and 8.2.3: Reported expenditure must INCLUDE any profit margins or management fees paid directly or indirectly to related party contractors (not including actual incurred expenses of the related party contractor) for the regulatory reporting period. 'Related Party Margin Expenditure' must COMPRISE ONLY profit margins or management fees paid directly or indirectly to related party contractors (not including actual incurred expenses of the related party contractor) for the regulatory reporting period.
B13: 8.2.1 - CAPEX BY PURPOSE - STANDARD CONTROL SERVICES
B15: Each line item in this table must INCLUDE the capital contributions. Total capital contributions should also be identified in the last item in the table.
C17: EXPENDITURE
C18: CPI adjusted Forecast | D18: Actual | E18: Difference | F18: Related Party Margin | G18: Voltage level
G19: Subtransmission | H19: HV | I19: LV | J19: Other
B20: Description | C20: $0's, nominal | E20: (%) | F20: $0's, nominal
B21: Replacement Capex | C21: 115390605 | D21: =SUM(G21:J21) -> 84276212.98 | E21: =IF(C21=0,1,(D21-C21)/C21*1) -> -0.2696440669 | G21: ='[1]8.2 Capex'!G24 -> 15492709.11 | H21: ='[1]8.2 Capex'!H24 -> 47284943.36 | I21: ='[1]8.2 Capex'!I24 -> 20908380.53 | J21: ='[1]8.2 Capex'!J24 -> 590179.9829
B22: Augmentation Capex | C22: 54874652 | D22: 77151918 | E22: 0.4059664196 | G22: 6971803 | H22: 48245038 | I22: 21332914 | J22: 602163
B23: Connections Capex | C23: 176893245 | D23: 169437439 | E23: -0.04214861907 | G23: 31148112 | H23: 95066442 | I23: 42036327 | J23: 1186558
B24: VBRC | C24: 72474213 | D24: 16378407 | E24: -0.7740105574 | G24: 3010884 | H24: 9189450 | I24: 4063376 | J24: 114697
B25: IT Capex | C25: 40589675 | D25: 22819871 | E25: -0.4377912363 | J25: 22819871
B26: Other Capex | C26: 17857875 | D26: 54193751 | E26: 2.034725632 | J26: 54193751
D27: 0 | E27: 1
D28: 0 | E28: 1
D29: 0 | E29: 1
D30: 0 | E30: 1
D31: 0 | E31: 1
D32: 0 | E32: 1
D33: 0 | E33: 1
D34: 0 | E34: 1
D35: 0 | E35: 1
B36: Capital contributions included in the above | C36: 85489004 | D36: 91026953 | E36: 0.06477966453 | G36: 15045457 | H36: 52233174 | I36: 23096381 | J36: 651941
B37: Total | C37: =SUM(C21:C35) -> 478080265 | D37: =SUM(D21:D35) -> 424257599 | E37: -0.1125808153 | F37: =SUM(F21:F35) -> 0 | G37: =SUM(G21:G35) -> 56623508.11 | H37: =SUM(H21:H35) -> 199785873.4 | I37: =SUM(I21:I35) -> 88340997.53 | J37: =SUM(J21:J35) -> 79507219.98
B40: 8.2.2 - CAPEX BY PURPOSE - MATERIAL DIFFERENCE EXPLANATION
B42: Where the difference between forecast and actual expenditure shown in table 8.2.1 is a Material Difference please explain the main factors driving the difference.
B44: Description | C44: Reason for material difference
B45: Replacement Capex | C45: The allowance reflects a more conservative maintenance expenditure outcome compared with actual expenditure. In addition a review of maintenance replacement policies since 2014 have resulted in spend reductions. CTN transformer replacement works have not occurred in Repex as the transformer was replaced as part a network planning augmentation project. Together these factors have contributed to a lower spend.
B46: Augmentation Capex | C46: Expenditure is less than forecast at the 2016-20 Distribution Determination largely as a result of a large customer (Australian Vinyls) shutting down in Laverton which deferred the works on the LVN21 feeder. In addition the RBE ZSS land purchase was deferred due to external delays related to land availability and landowner negotiations.
B47: VBRC | C47: Reduced expenditure on Armour Rod and Vibration Dampers Program and SWER ACR due to efficiency. This is partially offset by higher spend on REFCL Tranche 1
B48: IT Capex | C48: Underspend mainly due to the deferral of CRM billing and technological innovation and synergies resulting in changes of solutions resulting in a lower cost.
B49: Other Capex | C49: Expenditure is less than forecast at the 2016-20 Distribution Determination which was based on the 2011-2014 average as a result of:
C50: 1. Higher property expenditure on depot construction and refurbishment; and
C51: 2. Higher fleet expenditure driven by in-sourcing resources and a catch up on existing fleet replacement
B62: 8.2.3 - CAPEX OTHER
C63: EXPENDITURE
C64: CPI adjusted Forecast | D64: Actual | E64: Difference | F64: Related Party Margin | G64: Voltage level
G65: Subtransmission | H65: HV | I65: LV | J65: Other
C66: $0's, nominal | E66: (%) | F66: $0's, nominal
B67: Public lighting
B68: =IF(dms_Jurisdiction="Vic","Energy Efficient", "Total") -> Energy Efficient | C68: 70755 | D68: =SUM(G68:J68) -> 1077401 | E68: =IF(C68=0,1,((D68-C68)/C68)*1) -> 14.22720656 | J68: 1077401
B69: =IF(dms_Jurisdiction="Vic","Non-energy efficient", "") -> Non-energy efficient | C69: 2000730 | D69: =SUM(G69:J69) -> 1057458 | E69: =IF(C69=0,1,((D69-C69)/C69)*1) -> -0.4714639157 | J69: 1057458
B70: Alternative Control Services
B71: Connection services | D71: =SUM(G71:J71) -> 0 | E71: =IF(C71=0,1,((D71-C71)/C71)*1) -> 1
B72: Metering services | D72: =SUM(G72:J72) -> 0 | E72: =IF(C72=0,1,((D72-C72)/C72)*1) -> 1
B73: Ancillary network services | D73: =SUM(G73:J73) -> 0 | E73: =IF(C73=0,1,((D73-C73)/C73)*1) -> 1
B74: Negotiated Services
B75: Negotiated services | D75: =SUM(G75:J75) -> 0 | E75: =IF(C75=0,1,((D75-C75)/C75)*1) -> 1
B76: Total | C76: =SUM(C68:C69,C71:C73,C75) -> 2071485 | D76: =SUM(D68:D69,D71:D73,D75) -> 2134859 | E76: =IF(C76=0,1,((D76-C76)/C76)*1) -> 0.03059351142 | G76: =SUM(G68:G69,G71:G73,G75) -> 0 | H76: =SUM(H68:H69,H71:H73,H75) -> 0 | I76: =SUM(I68:I69,I71:I73,I75) -> 0 | J76: =SUM(J68:J69,J71:J73,J75) -> 2134859
B80: 8.2.4 - CAPEX BY ASSET CLASS
B82: =CONCATENATE(dms_TradingName, " to enter in Table 8.2.4 each Asset Class specified in its current determination as listed in the AER's final decision in its Roll Forward Model and Post-tax Revenue Model and enter information against that Asset Class.") -> Powercor Australia to enter in Table 8.2.4 each Asset Class specified in its current determination as listed in the AER's final decision in its Roll Forward Model and Post-tax Revenue Model and enter information against that Asset Class.
C84: CPI adjusted Forecast | D84: Actual | E84: Difference | F84: Movements in provisions allocated to as-incurred capex
B85: Asset class | C85: $0's, nominal | E85: (%) | F85: $0's, nominal
B86: Subtransmission | C86: 51536697 | D86: ='[1]8.2 Capex'!D90 -> 41672791.32 | E86: =IF(C86=0,1,((D86-C86)/C86)*1) -> -0.1913957675 | F86: -293374
B87: Distribution system assets | C87: 347727035 | D87: ='[1]8.2 Capex'!D91 -> 183739170.4 | E87: -0.4715994103 | F87: -1297530
B88: Standard metering | C88: 0 | E88: 1 | F88: 0
B89: Public lighting | C89: 0 | E89: 1 | F89: 0
B90: SCADA/Network control | C90: 6985358 | D90: 17437538 | E90: 1.4962984 | F90: -113871
B91: Non-network general assets - IT | C91: 40699233 | D91: 22819871 | E91: -0.4393046424 | F91: -149019
B92: Non-network general assets - Other | C92: 17537803 | D92: 42235242 | E92: 1.408240188 | F92: -275805
B93: VBRC | C93: 13405028 | D93: 13367523 | E93: -0.002797830784 | F93: -87293
B94: Supervisory cables | C94: 0 | E94: 1 | F94: 0
B95: Old SWER ACRs | C95: 0 | E95: 1 | F95: 0
B96: Land | C96: 189110 | D96: 11958509 | E96: 62.23573053 | F96: -78092
E97: 1
E98: 1
E99: 1
E100: 1
E101: 1
E102: 1
E103: 1
E104: 1
E105: 1
E106: 1
E107: 1
E108: 1
E109: 1
E110: 1
E111: 1
E112: 1
E113: 1
E114: 1
E115: 1
E116: 1
E117: 1
E118: =IF(C118=0,1,((D118-C118)/C118)*1) -> 1
E119: 1
E120: 1
E121: 1
E122: 1
E123: 1
E124: 1
E125: 1
E126: 1
E127: 1
E128: 1
E129: 1
E130: 1
E131: 1
E132: 1
E133: 1
E134: 1
E135: 1
B136: Total | C136: =SUM(C86:C135) -> 478080264 | D136: =SUM(D86:D135) -> 333230644.7 | E136: -0.3029818008 | F136: =SUM(F86:F135) -> -2294984
B139: 8.2.5 - CAPITAL CONTRIBUTIONS BY ASSET CLASS
C140: CPI Adjusted Forecast | D140: Actual | E140: Difference
B141: Asset class | C141: $0's, nominal | E141: (%)
B142: Subtransmission | C142: 12910955 | D142: 15045457 | E142: =IF(C142=0,1,((D142-C142)/C142)*1) -> 0.1653248733
B143: Distribution system assets | C143: 72578049 | D143: 75981496 | E143: 0.0468936138
B144: Standard metering | C144: 0 | E144: 1
B145: Public lighting | C145: 0 | E145: 1
B146: SCADA/Network control | C146: 0 | E146: 1
B147: Non-network general assets - IT | C147: 0 | E147: 1
B148: Non-network general assets - Other | C148: 0 | E148: 1
B149: VBRC | C149: 0 | E149: 1
B150: Supervisory cables | C150: 0 | E150: 1
B151: Old SWER ACRs | C151: 0 | E151: 1
B152: Land | C152: 0 | E152: 1
E153: 1
E154: 1
E155: 1
E156: 1
E157: 1
E158: 1
E159: 1
E160: 1
E161: 1
E162: 1
E163: 1
E164: 1
E165: 1
E166: 1
E167: 1
E168: 1
E169: 1
B170: =IF(ISBLANK(B114),"",B114) ->  | E170: 1
E171: 1
E172: 1
E173: 1
E174: =IF(C174=0,1,((D174-C174)/C174)*1) -> 1
E175: 1
E176: 1
E177: 1
E178: 1
E179: 1
E180: 1
E181: 1
E182: 1
E183: 1
E184: 1
E185: 1
E186: 1
E187: 1
E188: 1
E189: 1
E190: 1
E191: 1
B192: Total | C192: =SUM(C142:C191) -> 85489004 | D192: =SUM(D142:D191) -> 91026953 | E192: 0.06477966453
B195: 8.2.6 - DISPOSALS BY ASSET CLASS
C196: CPI Adjusted Forecast | D196: Actual | E196: Difference
B197: Asset class | C197: $0's, nominal | E197: (%)
B198: Subtransmission | C198: 0 | E198: =IF(C198=0,1,((D198-C198)/C198)*1) -> 1
B199: Distribution system assets | C199: 0 | E199: 1
B200: Standard metering | C200: 0 | E200: 1
B201: Public lighting | C201: 0 | E201: 1
B202: SCADA/Network control | C202: 0 | E202: 1
B203: Non-network general assets - IT | C203: 0 | E203: 1
B204: Non-network general assets - Other | C204: 2122978 | D204: 2561858 | E204: 0.2067284729
B205: VBRC | C205: 0 | E205: 1
B206: Supervisory cables | C206: 0 | E206: 1
B207: Old SWER ACRs | C207: 0 | E207: 1
B208: Land | C208: 0 | E208: 1
E209: 1
E210: 1
E211: 1
E212: 1
E213: 1
E214: 1
E215: 1
E216: 1
E217: 1
E218: 1
E219: 1
E220: 1
E221: 1
E222: 1
E223: 1
E224: 1
E225: 1
B226: =IF(ISBLANK(B114),"",B114) ->  | E226: 1
E227: 1
E228: 1
... 20 more rows

Sheet 8.4 Opex
B1: =(LOOKUP(dms_Model,dms_Model_List,dms_Worksheet_List)) -> ANNUAL REPORTING STATEMENT
B2: =dms_TradingName -> Powercor Australia
B3: =CONCATENATE("Annual Reporting RIN Response ",CRY) -> Annual Reporting RIN Response 2017
B4: 8.4 OPEX
B6: Instructions
B7: =CONCATENATE("Forecast expenditure is to be taken from ",dms_TradingName,"'s ",dms_DeterminationRef,".") -> Forecast expenditure is to be taken from Powercor Australia's 2016-20 Distribution Determination.
B8: If allocating based on assumptions then provide method in Basis of Preparation. All adjustments must be explained in Basis of Preparation with supporting documentation attached.
B10: 8.4.1 - OPERATING & MAINTENANCE EXPENDITURE - BY PURPOSE
B12: =CONCATENATE(dms_TradingName," is to list the operating expenditure categories identified in ", dms_TradingName,"'s regulatory proposal at table 3.2.1.1 current opex categories and cost allocations.") -> Powercor Australia is to list the operating expenditure categories identified in Powercor Australia's regulatory proposal at table 3.2.1.1 current opex categories and cost allocations.
B13: =CONCATENATE(dms_TradingName, " must specify any expenditure category where the expense is more than 5 per cent of the total standard control services operating expenditure.") -> Powercor Australia must specify any expenditure category where the expense is more than 5 per cent of the total standard control services operating expenditure.
B14: Reported operating expenditure must INCLUDE any profit margins or management fees paid directly or indirectly to related party contractors (not including actual incurred expenditure of the related party contractor) for the regulatory reporting period.
C16: Audited Statutory Accounts | D16: Adjustments | E16: Distribution business | F16: Standard Control Services | I16: Alternative Control Services | N16: Negotiated Services
F17: CPI Adjusted Forecast | G17: Actual | H17: Difference | I17: Public Lighting | K17: Other
I18: =IF(dms_Jurisdiction="Vic","Energy efficient","") -> Energy efficient | J18: =IF(dms_Jurisdiction="Vic","Non-energy efficient","") -> Non-energy efficient | K18: Connection services | L18: Metering services | M18: Ancillary network services
B19: Opex category | C19: $0's, nominal | H19: % | I19: $0's, nominal
B20: Routine | C20: 32031059.49 | E20: 32031059.49 | F20: 58164787.35 | G20: 32031059.49 | H20: =IF(F20=0,1,((G20-F20)/F20)*1) -> -0.449304967
B21: Condition based | C21: 38171376.13 | D21: =E21-C21 -> 12672938.03 | E21: ='[1]8.4 Opex'!D24 -> 50844314.16 | F21: 41581946.55 | G21: =E21 -> 50844314.16 | H21: 0.2227497358
B22: Emergency | C22: 20290742.13 | D22: =E22-C22 -> 7830638.898 | E22: ='[1]8.4 Opex'!D25 -> 28121381.03 | F22: 26928997.27 | G22: =E22 -> 28121381.03 | H22: 0.04427880273
B23: SCADA/Network Control | C23: 225566.12 | E23: 225566.12 | F23: 1024515.69 | G23: 225566.12 | H23: -0.7798314636
B24: Other - Standard Control Services | C24: 4481316.49 | E24: 4481316.49 | F24: 3916759.51 | G24: 4481316.49 | H24: 0.1441387909
B25: Network Operating Costs | C25: 907820.72 | D25: 3841000 | E25: 4748820.72 | F25: 24460511.82 | G25: 4748820.72 | H25: -0.8058576715
B26: Billing & Revenue Collection | C26: 3862950.46 | D26: 0 | E26: 3862950.46 | F26: 6902914.98 | G26: 3862950.46 | H26: -0.4403885212
B27: Advertising/Marketing | C27: 39824.95 | E27: 39824.95 | F27: 13112.02 | G27: 39824.95 | H27: 2.037285636
B28: Customer Service | C28: 5083616.19 | E28: 5083616.19 | F28: 8203435.65 | G28: 5083616.19 | H28: -0.3803064464
B29: Regulatory | C29: 0 | E29: 0 | F29: 4261267.31 | G29: 0 | H29: -1
B30: Regulatory Reset | C30: 0 | E30: 0 | F30: 784939.79 | G30: 0 | H30: -1
B31: IT | C31: 29451584.82 | E31: 29451584.82 | F31: 25666845.06 | G31: 29451584.82 | H31: 0.1474563684
B32: Licence fee | C32: 2506999.55 | E32: 2506999.55 | F32: 19972.16 | G32: 2506999.55 | H32: 124.5247079
B33: GSL payments | C33: 3051107.17 | E33: 3051107.17 | F33: 3116230.13 | G33: 3051107.17 | H33: -0.02089799446
B34: Non-network alternatives costs | C34: 0 | E34: 0 | F34: 0 | G34: 0 | H34: 1
B35: Debt Raising Costs | C35: 0 | E35: 0 | F35: 0 | G35: 0 | H35: 1
B36: Other Operating - Standard Control Services | C36: 352690829.3 | D36: -303059611 | E36: 49631219 | F36: 30090767.96 | G36: 49631219 | H36: 0.6493835939
B37: Public Lighting | C37: 4446483.79 | E37: 4446483.79 | H37: 1 | I37: 2244096.65 | J37: 2202387.13
B38: Connection Services | C38: 5541685.96 | D38: 9919818.91 | E38: 15461504.87 | H38: 1 | K38: 15461504.87
B39: Metering Services | C39: 14283568.16 | D39: 505036.92 | E39: 14788605.08 | H39: 1 | L39: 14788605.08
B40: Ancillary Network Services | C40: 2874784.74 | D40: 2280934.58 | E40: 5155719.32 | H40: 1 | M40: 5155719.32
B41: Negotiated Services | C41: 686263.76 | E41: 686263.76 | H41: 1 | N41: 686263.76
H42: 1
H43: 1
H44: 1
H45: 1
H46: 1
H47: 1
H48: 1
H49: 1
H50: 1
H51: 1
H52: =IF(F52=0,1,((G52-F52)/F52)*1) -> 1
H53: 1
H54: 1
H55: 1
H56: 1
H57: 1
H58: 1
H59: 1
H60: 1
H61: 1
H62: 1
H63: 1
H64: 1
H65: 1
H66: 1
H67: 1
H68: 1
H69: 1
B70: Total | C70: =SUM(C20:C69) -> 520627579.9 | D70: =SUM(D20:D69) -> -266009243.7 | E70: =SUM(E20:E69) -> 254618337 | F70: =SUM(F20:F69) -> 235137003.2 | G70: =SUM(G20:G69) -> 214079760.1 | H70: -0.08955308102 | I70: =SUM(I20:I69) -> 2244096.65 | J70: 2202387.13 | K70: 15461504.87 | L70: 14788605.08 | M70: 5155719.32 | N70: 686263.76
B73: 8.4.2 - OPERATING & MAINTENANCE EXPENDITURE - BY PURPOSE - MARGINS ONLY
B75: "Related party margin expenditure' must COMPRISE ONLY profit margins or management fees paid directly or indirectly to related party contractors (for expenditure that is not an actual incurred expenditure of the related party contractor) for the regulatory reporting period.
C77: Audited Statutory Accounts | D77: Adjustments | E77: Distribution business | F77: Standard Control Services | I77: Alternative Control Services | N77: Negotiated Services
F78: CPI Adjusted Forecast | G78: Actual | H78: Difference | I78: Public Lighting | K78: Other
I79: =IF(dms_Jurisdiction="Vic","Energy efficient","") -> Energy efficient | J79: =IF(dms_Jurisdiction="Vic","Non-energy efficient","") -> Non-energy efficient | K79: Connection services | L79: Metering services | M79: Ancillary network services
B80: Opex category | C80: $0's, nominal | G80: $0's, nominal | H80: per cent | I80: $0's, nominal
B81: Routine | H81: =IF(F81=0,1,((G81-F81)/F81)*1) -> 1
B82: Condition based | H82: 1
B83: Emergency | H83: 1
B84: SCADA/Network Control | H84: 1
B85: Other - Standard Control Services | H85: 1
B86: Network Operating Costs | H86: 1
B87: Billing & Revenue Collection | H87: 1
B88: Advertising/Marketing | H88: 1
B89: Customer Service | H89: 1
B90: Regulatory | H90: 1
B91: Regulatory Reset | H91: 1
B92: IT | H92: 1
B93: Licence fee | H93: 1
B94: GSL payments | H94: 1
B95: Non-network alternatives costs | H95: 1
B96: Debt Raising Costs | H96: 1
B97: Other Operating - Standard Control Services | H97: 1
B98: Public Lighting | H98: 1
B99: Connection Services | H99: 1
B100: Metering Services | H100: 1
B101: Ancillary Network Services | H101: 1
B102: Negotiated Services | H102: 1
H103: 1
H104: 1
H105: 1
H106: 1
H107: 1
H108: 1
H109: 1
H110: 1
H111: 1
H112: 1
H113: =IF(F113=0,1,((G113-F113)/F113)*1) -> 1
H114: 1
H115: 1
H116: 1
H117: 1
H118: 1
H119: 1
H120: 1
H121: 1
H122: 1
H123: 1
H124: 1
H125: 1
H126: 1
H127: 1
H128: 1
H129: 1
H130: 1
B131: Total | C131: =SUM(C81:C130) -> 0 | D131: =SUM(D81:D130) -> 0 | E131: =SUM(E81:E130) -> 0 | F131: =SUM(F81:F130) -> 0 | G131: =SUM(G81:G130) -> 0 | H131: 1 | I131: =SUM(I81:I130) -> 0 | J131: 0 | K131: 0 | L131: 0 | M131: 0 | N131: 0
B134: 8.4.3 - OPERATING & MAINTENANCE EXPENDITURE - EXPLANATION OF MATERIAL DIFFERENCE
B136: Where the difference between forecast and actual expenditure shown in table 8.4.1, column I is a Material Difference please explain the main factors driving the difference.
B138: Category | C138: Explanation
B139: Routine | C139: Lower than forecast expenditure due to efficiences realised in vegetation management and asset inspection
B140: SCADA/Network Control | C140: The absolute expenditure variance is not material.
B141: Other - Standard Control Services | C141: The absolute expenditure variance is not material.
B142: Operating Expenditure | C142: Impacted by internal restructuring between areas of the business. Total expenditure in these categories combined is not materially different than AER Forecast.

Sheet 9.5 TUoS
B1: =(LOOKUP(dms_Model,dms_Model_List,dms_Worksheet_List)) -> ANNUAL REPORTING STATEMENT
B2: =dms_TradingName -> Powercor Australia
B3: =CONCATENATE("Annual Reporting RIN Response ",CRY) -> Annual Reporting RIN Response 2017
B4: 9.5 - TUoS AUDIT (t-2)
B6: This template collects information for annual pricing proposals from Victorian businesses only.
B8: 9.5.1 - TUOS CHARGES (AEMO)
F9: =CRY -> 2017
B10: AEMO (Locational & Non-Locational) | F10: 75116921
B11: AEMO (TUoS Common Service Charge) | F11: 63999476
B12: Grid equalisation | F12: -3802200
B13: Adjustment | F13: 0
E16: Total | F16: =SUM(F10:F15) -> 135314197
B19: 9.5.2 - TRANSMISSION CONNECTION FEES
F20: =CRY -> 2017
B21: Ausnet Services (Connection) | F21: 15035319
B22: Ausnet Services (Augmentation) | F22: 3715697
E27: Total | F27: =SUM(F21:F26) -> 18751016
B30: 9.5.3 - CROSS BOUNDARY NETWORK CHARGES
C31: Amount (payable)/receivable
C32: $0's, nominal
C33: HV crossings | D33: Subtransmission crossings | E33: TUoS Adjustment | F33: Total
B34: Distribution Business | F34: =CRY -> 2017
B35: Jemena | D35: -5538553 | F35: =IF((SUM(C35:E35)=0),"",(SUM(C35:E35))) -> -5538553
B36: SAPN | D36: -536727 | F36: -536727
B43: Total | F43: =SUM(F35:F42) -> -6075280
B46: 9.5.4 - PAYMENTS TO EMBEDDED GENERATORS
B47: 9.5.4.1 - AVOIDED TRANSMISSION COSTS | F47: =CRY -> 2017
B48: Avoided Transmission Cost | F48: 2210381
B56: Total | F56: =SUM(F48:F55) -> 2210381
B57: 9.5.4.2 - AVOIDED TUoS USAGE CHARGES | F57: =CRY -> 2017
F58: 0
B66: Total | F66: =SUM(F58:F65) -> 0
B67: Total payments to embedded generators | F67: =F66+F56 -> 2210381
